{"text_format":"1","workbook":"xlsx","n_sheets":5,"sheets":["PRA disclosure statement","SMI - SED Introduction","SMI - SED Definitions","SMI - SED Instructions","SMI - SED Avail Assessment"],"not_rendered":{"charts":0,"images":0,"macros":1,"external_links":0,"defined_names":13,"comments":0,"pivot_tables":0},"unopened":[],"bounds":{"document_bytes":16777216,"sheet_cells":100000,"rows_first":2000,"rows_last":500,"rows_between":2000,"halvings":0,"cell_chars":16384,"cell_head_chars":4096},"cells_cut":0,"cells_raw":0,"read":"whole","date_system":"1900"}

{"sheet":"PRA disclosure statement","index":0,"n_rows":4,"n_cols":1,"rows_kept":4,"cut":false,"hidden":false,"merged":[]}
["Serious Mental Illness and Serious Emotional Disturbance (SMI/SED)"]
["Note: PRA Disclosure Statement to be added here"]
["end of worksheet"]
["end of worksheet"]

{"sheet":"SMI - SED Introduction","index":1,"n_rows":4,"n_cols":1,"rows_kept":4,"cut":false,"hidden":false,"merged":[]}
["Medicaid Section 1115 SMI/SED Demonstrations Annual Availability Assessment - Introduction (Version 3.0)"]
["Introduction to the Annual Assessment of the Availability of Mental Health Services"]
["\n\nThis template has three main tabs: 1) SMI - SED Instructions, 2) SMI - SED Definitions, and 3) SMI - SED Avail Assessment. \n\nFor questions, please contact the section 1115 demonstration monitoring and evaluation mailbox (1115MonitoringAndEvaluation@cms.hhs.gov), copying the CMS demonstration team on the message.\n\n\n\n\n\n\n\n\n\n\nVersion 3.0"]
["end of worksheet"]

{"sheet":"SMI - SED Definitions","index":2,"n_rows":33,"n_cols":2,"rows_kept":33,"cut":false,"hidden":false,"merged":[]}
["Medicaid Section 1115 SMI/SED Demonstrations Annual Availability Assessment - Definitions (Version 3.0)"]
["Terms used in Availability Assessment","Definitions of terms"]
["Term","Definition"]
["Accepting new Medicaid patients","Accepting new Medicaid patients means any provider enrolled in Medicaid to obtain Medicaid billing privileges who will treat new Medicaid-enrolled patients."]
["Adult","An adult is a person age 18 and over [SMDL #18-011]."]
["Available to Medicaid patients","Available to Medicaid patients means any facility or bed available to serve Medicaid patients. "]
["Community mental health center (CMHC)","A community mental health center (CMHC) is defined in §410.2 as “an entity that (1) provides outpatient services, including specialized outpatient services for children, the elderly, individuals who are chronically mentally ill, and clients of its mental health service area who have been discharged from inpatient treatment at a mental health facility; (2) provides 24-hour-a-day emergency care services; (3) provides day treatment or other partial hospitalization services, or psychosocial rehabilitation services; (4) provides screening for patients being considered for admission to state mental health facilities to determine the appropriateness of this admission; (5) meets applicable licensing or certification requirements for CMHCs in the state in which it is located; and (6) provides at least 40 percent of its services to individuals who are not eligible for benefits under title XVIII of the Social Security Act."]
["Coordinated community crisis response","Coordinated community crisis response means a community-based program or entity that manages crisis response across various community entities or programs, as defined by the state."]
["Crisis call center","Crisis call centers are defined by the state. "]
["Crisis stabilization unit","Crisis stabilization units offer medically monitored short-term crisis stabilization services, as defined by the state. "]
["Critical access hospital","A critical access hospital is a small facility that provides 24-hour emergency care, outpatient services, as well as inpatient services to people in rural areas, as defined in 42 CFR §485.606.  "]
["Federally qualified health center","Federally qualified health center (FQHC) means an entity that meets all the requirements at 1905(l)(2)(B) of the Social Security Act."]
["Geographic designation ","Geographic designation means a state-defined geographic unit for reporting data, such as county, region, or catchment area."]
["Institution for mental diseases (IMD)","An institution for mental diseases is a hospital, nursing facility, or other institution of more than 16 beds that is primarily engaged in providing diagnosis, treatment or care of persons with mental diseases, including medical attention, nursing care and related services per section 1905(i) of the Social Security Act. See also 42 CFR §435.1010 and section 4390 of the State Medicaid Manual."]
["Intensive outpatient services","Intensive outpatient services are designed to meet the needs of individuals who may be at risk for crisis or requiring a higher level of care, or who are in transition from a higher level of care. Intensive outpatient services may include partial hospitalization programs, day treatment services, intensive outpatient programs, Assertive Community Treatment, intensive case management, intensive peer supports, written standardized protocols for escalating outpatient services when an individual is experiencing a crisis or increased need, and other services and settings more intensive than regular outpatient and less intensive than inpatient or residential care. "]
["Licensed psychiatric hospital bed","Licensed psychiatric hospital bedsare defined by state licensure requirements.  "]
["Medicaid beneficiary","Medicaid beneficiary means a person who has been determined to be eligible to receive Medicaid services as defined at 42 CFR §400.200."]
["Medicaid-enrolled","Medicaid-enrolled means any provider enrolled in Medicaid to obtain Medicaid billing privileges, as defined in 42 CFR §455.410."]
["Mental health practitioners other than psychiatrists who are certified or licensed by the state to independently treat mental illness","Mental health practitioners other than psychiatrists who are certified or licensed to independently treat mental illness are non-psychiatrist mental health providers who are certified or licensed to independently treat mental illness as defined by state licensure laws. This may include, but is not limited to, licensed psychologists, clinical social workers, and professional counselors. Practitioners who are required to work under the supervision of another practitioner and/or who are required to bill Medicaid under another practitioner should be excluded. "]
["Mobile crisis unit","A mobile crisis unit is a team that intervenes during mental health crises, as defined by the state."]
["Observation or assessment centers ","Observation or assessment centers are defined by the state."]
["Other practitioners who are authorized to prescribe psychiatric medications","Other practitioners who are authorized to prescribe psychiatric medications are defined by state licensure laws."]
["Psychiatric hospital ","A psychiatric hospital is an institution which provides diagnosis and treatment of mentally ill person, as defined at 42 USC §1395x. The state should report on both public and private psychiatric hospitals."]
["Psychiatric residential treatment facility (PRTF)","A psychiatric residential treatment facility is a non-hospital facility with a provider agreement with a state Medicaid agency to provide the inpatient psychiatric services to individuals under age 21 benefit (psych under 21 benefit). The facility must be accredited by the Joint Commission, the Council on Accreditation of Services for Families and Children, the Commission on Accreditation of Rehabilitation Facilities, or any other accrediting organization with comparable standards recognized by the State. PRTFs must also meet the requirements at 42 CFR §441.151 - §441.182, and 42 CFR §483.350 – §483.376."]
["Psychiatric unit","A psychiatric unit is a separate inpatient psychiatric unit of a general hospital that provides inpatient mental health services and has specifically allocated staff and space (beds) for the treatment of persons with mental illness, as defined for SAMHSA's National Substance Use and Mental Health Services Survey (N-SUMHSS)."]
["Psychiatrist ","A psychiatrist is any psychiatrist licensed to practice in the state under state licensure laws."]
["Qualified residential treatment program (QRTP)","A qualified residential treatment program (QRTP) is a child care institution designed to address the needs, including clinical needs, of children with serious emotional or behavioral disorders or disturbances. QRTPs are defined in title IV-E of the Social Security Act (the Act), as amended by Division E, Title VII Family First Prevention Services Act of the Balanced Budget Act of 2018 (BBA of 2018, Pub. L. 1115-123). A QRTP must meet the definition of a child care institution at sections 472(c)(2)(A) and (C) of the Act. Further, title IV-E agencies, including QRTPs, must meet detailed assessment, case planning, documentation, judicial determinations, and ongoing review and permanency hearing requirements (sections 472(k)(1)(B) and 475A(c) of the Act)."]
["Residential mental health treatment facilities (adult) ","A residential mental health treatment facilities (adult) is a facility not licensed as a psychiatric hospital, whose primary purpose is to provide individually planned programs of mental health treatment services in a residential care setting for adults as defined for SAMHSA's N-SUMHSS. Please exclude residential SUD treatment facilities."]
["Rural","Rural means any area outside an urban area as defined in 42 CFR § 412.64(b)."]
["Serious emotional disturbance (SED)","Persons with serious emotional disturbance means individuals from birth up to age 18 who currently, or at any time during the past year, have had a diagnosable mental, behavioral, or emotional disorder of sufficient duration to meet diagnostic criteria that resulted in functional impairment which substantially interferes with or limits the child’s role or functioning in family, school, or community activities. Functional impairment” is defined as difficulties that substantially interfere with or limit a child or adolescent from achieving or maintaining one or more developmentally-appropriate social, behavioral, cognitive, communicative, or adaptive skills [SMDL #18-011]. "]
["Serious mental illness (SMI)","Persons with serious mental illness means individuals, age 18 and over, who currently, or at any time during the past year, have had a diagnosable mental, behavioral, or emotional disorder of sufficient duration to meet diagnostic criteria, that has resulted in functional impairment which substantially interferes with or limits one or more major life activities. [SMDL #18-011]\n\nNote: In the SMDL, SMI is defined to include individuals age 18 years and older, and SED includes children younger than 18. However, the residential treatment section of the availability assessment requests data on PRTFs, and the federal definition for PRTFs includes facilities that serve individuals under the age of 21. In order to avoid double counting beneficiaries in the residential treatment category, the assessment requests data on beneficiaries age 0-17, 18-20, and 21 and older separately."]
["Urban","Urban means a Metropolitan Statistical Area or a Metropolitan division (in the case where a Metropolitan Statistical Area is divided into Metropolitan Divisions), as defined by the Executive Office of Management and Budget (42 CFR § 412.64(b))."]
["End of worksheet"]

{"sheet":"SMI - SED Instructions","index":3,"n_rows":125,"n_cols":2,"rows_kept":125,"cut":false,"hidden":false,"merged":[]}
["Medicaid Section 1115 SMI/SED Demonstrations Annual Availability Assessment - Instructions (Version 3.0)"]
["blank","Instructions for Completing the Assessment of the Availability of Mental Health Services (\"SMI - SED Avail Assessment\" tab)  "]
["Before you begin:","The state will submit multiple Availability Assessments. The state will submit an Initial Availability Assessment at the time of application and annual assessments thereafter. "]
["Before you begin:","Enter the state name, date of assessment, and time period reflected in assessment in cells B2-4."]
["Before you begin:","To hide pop-up instructions as you complete the Availability Assessment, hit \"escape.\""]
["Before you begin:","In populating its Initial Availability Assessment and each subsequent Annual Availability Assessment, the state should report data as of the same month and day each year. In other words, if the Initial Availability Assessment displays values as of August 1, 2019, subsequent Availability Assessments should display values as of August 1, 2020, August 1, 2021, August 1, 2022, etc. Within each assessment, the state should enter this information into the cell labeled “Time Period Reflected in Assessment (month/day/year)\" (found in the \"SMI - SED Avail Assessment\" tab).\n\nIt is also important to use the same data sources to populate the Initial and Annual Availability Assessments. The state should enter information on its data sources into the columns labeled “Brief description of data source(s) used to populate this (sub-)section” (found in the “SMI - SED Avail Assessment” tab). "]
["Before you begin:","Please note: To add rows for additional geographic designations you must click the \"Add Row\" button in cell F4 or use the keyboard shortcut SHIFT+CTRL+T. (As a first step, click \"Enable Content\" in the yellow message bar if it appears at the top of the tab). Please do not add rows manually."]
["Column   ","Instructions"]
["B","In column B, enter each geographic designation starting in cell B10. Add rows using the \"Add Row\" button as needed to capture all geographic designations. \nGeographic designation means a state-defined geographic unit for reporting data, such as county, region, or catchment area. The state should consider how it divides its mental health system into smaller units or catchment areas to select geographic designations that will yield meaningful, actionable information. "]
["C","In column C, starting in cell C10, please select whether geographic designation entered in the corresponding cell in column B could be considered urban or rural.  If the geographic designation should be categorized as something other than urban or rural, select \"Other-please explain\" and record an explanation in the corresponding notes cell (column D). \nUrban is defined as a Metropolitan Statistical Area or a Metropolitan division (in the case where a Metropolitan Statistical Area is divided into Metropolitan Divisions), as defined by the Executive Office of Management and Budget (42 CFR § 412.64(b))  Rural is defined as any area outside an urban area as defined in 42 CFR § 412.64(b)."]
["D","In column D, beginning in cell D10, please use this space to explain the state's response if the state selects 'Other-please explain' in column C."]
["E","In column E, starting in cell E10, enter the total number of adult Medicaid beneficiaries ages 18-20 in each geographic designation at the selected point in time. Medicaid beneficiary means a person who has been determined to be eligible to receive Medicaid services as defined at 42 CFR §400.200. \nNote: We are asking for this information in order to avoid double counting beneficiaries in the residential treatment category and to facilitate the calculation of certain ratios in the assessment. See the note in the following cell for additional explanation. "]
["F","In column F, starting in cell F8, enter the number of adult Medicaid beneficiaries ages 18-20 with SMI in each geographic designation at the selected point in time. As defined on page 1 of the State Medicaid Directors Letter, serious mental illness means persons age 18 and over who currently, or at any time during the past year, have had a diagnosable mental, behavioral, or emotional disorder of sufficient duration to meet diagnostic criteria, that has resulted in functional impairment which substantially interferes with or limits one or more major life activities. \nNote: We are asking this information because the State Medicaid Director letter (SMDL #18-011), defines SMI to include individuals age 18 years and older, while SED includes children younger than 18. However, the residential treatment section of the Availability Assessment requests data on PRTFs, and the federal definition for PRTFs includes facilities that serve individuals under the age of 21. In order to avoid double counting beneficiaries in the residential treatment category, the assessment requests data on beneficiaries age 0-17, 18-20, and 21 and older separately."]
["G","In column G, starting in cell G8, enter the total number of adult Medicaid beneficiaries age 21 and older in each geographic designation at the selected point in time.\nNote: We are asking for this information in order to avoid double counting beneficiaries in the residential treatment category and to facilitate the calculation of certain ratios in the assessment. See the note in the following cell for additional explanation. "]
["H","In column H, starting in cell H10, enter the number of adult Medicaid beneficiaries age 21 and older with SMI in each geographic designation at the selected point in time. \nNote: We are asking this information because the State Medicaid Director letter (SMDL #18-011), defines SMI to include individuals age 18 years and older, while SED includes children younger than 18. However, the residential treatment section of the Availability Assessment requests data on PRTFs, and the federal definition for PRTFs includes facilities that serve individuals under the age of 21. In order to avoid double counting beneficiaries in the residential treatment category, the assessment requests data on beneficiaries age 0-17, 18-20, and 21 and older separately."]
["I","In column I, starting in cell I10, the Availability Assessment will automatically calculate the percent of adult Medicaid beneficiaries who have SMI in each geographic designation. The state should not input any values into this column or modify the formulas in this column. "]
["J","In column J, starting in cell J10, enter the total number of Medicaid beneficiaries under the age of 18 (ages 0 - 17) in each geographic designation at the selected point in time. "]
["K","In column K, starting in cell K10, enter the number of beneficiaries under the age of 18 (ages 0 - 17) with SED in each geographic designation at the selected point in time. \nAs defined on page 2 of the SMDL #18-011, individuals with SED are those from birth up to age 18 who currently, or at any time during the past year, have had a diagnosable mental, behavioral, or emotional disorder of sufficient duration to meet diagnostic criteria that resulted in functional impairment which substantially interferes with or limits the child’s role or functioning in family, school, or community activities. \nFunctional impairment is defined as difficulties that substantially interfere with or limit a child or adolescent from achieving or maintaining one or more developmentally-appropriate social, behavioral, cognitive, communicative, or adaptive skills. "]
["L","In column L starting in cell L10, the Availability Assessment will automatically calculate the percent of beneficiaries under the age of 18 who have SED in each geographic designation. The state should not input any values into this column or modify the formulas in this column. "]
["M","In column M, starting in cell M10, the Availability Assessment will automatically calculate the number of Medicaid beneficiaries (total) in each geographic designation. "]
["N","In column N, starting in cell N10, the Availability Assessment will automatically calculate the percent with Medicaid beneficiaries with SMI or SED (total) in each geographic designation."]
["O","In column O, starting in cell O10, the Availability Assessment will automatically calculate the percent with SMI or SED (total) in each geographic designation."]
["P","In column P, beginning in cell P10, please use this space to provide notes about the data source(s) used to populate the section. "]
["Q","In column Q, beginning in cell Q10, please use this space to provide any additional notes regarding the section, such as notes on data limitations, explanations for specific values, or information that could assist with data interpretation."]
["R","In column R, starting in cell R10, enter the number of psychiatrists or other practitioners who are authorized to prescribe psychiatric medications in each geographic designation. \nA psychiatrist is any psychiatrist licensed to practice in the state under state licensure laws.  \n\"Other prescribers authorized to prescribe psychiatric medications\" means mental health practitioners other than psychiatrists who are authorized to prescribe psychiatric medications as defined by state licensure laws."]
["S","In column S, starting in cell S10, enter the number of Medicaid-enrolled psychiatrists or other practitioners who are authorized to prescribe psychiatric medications in each geographic designation. \n\"Medicaid-enrolled\" means any provider enrolled in Medicaid to obtain Medicaid billing privileges, as defined in 42 CFR §455.410."]
["T","In column T, starting in cell T10, enter the number of Medicaid-enrolled psychiatrists or other practitioners who are authorized to prescribe psychiatric medications and are accepting new Medicaid patients in each geographic designation.  \n\"Accepting new Medicaid patients\" means any provider enrolled in Medicaid to obtain Medicaid billing privileges who will treat new Medicaid-enrolled patients."]
["U-W","In columns U-W, starting in cell U10, the Availability Assessment will automatically calculate the ratios in each geographic designation. The state should not input any values into these columns or modify the formulas in these columns. "]
["X","In column X, beginning in cell X10, please use this space to provide details on the specific types of practitioners used to populate this sub-section."]
["Y","In column Y, beginning in cell Y10, please use this space to provide notes about the data source(s) used to populate the sub-section. "]
["Z","In column Z, beginning in cell Z10, please use this space to provide any additional notes regarding the sub-section, such as notes on data limitations, explanations for specific values, or information that could assist with data interpretation."]
["AA","In column AA, starting in cell AA10, enter the number of other practitioners certified or licensed to independently treat mental illness in each geographic designation. \n\"Other types of practitioners certified or licensed to independently treat mental illness\" means non-psychiatrist mental health providers who are certified or licensed to independently treat mental illness as defined by state licensure laws. This may include, but is not limited to, licensed psychologists, clinical social workers, and professional counselors."]
["AB","In column AB, starting in cell AB10, enter the number of Medicaid-enrolled other practitioners certified or licensed to independently treat mental illness in each geographic designation."]
["AC","In column AC, starting in cell AC10, enter the number of Medicaid-enrolled other practitioners certified or licensed to independently treat mental illness accepting new Medicaid patients in each geographic designation."]
["AD-AF","In columns AD-AF, starting in cell AD10, the Availability Assessment will automatically calculate the ratios in each geographic designation. The state should not input any values into these columns or modify the formulas in these columns. "]
["AG","In column AG, beginning in cell AG10, please use this space to provide details on the specific types of practitioners used to populate this sub-section."]
["AH","In column AH, beginning in cell AH10, please use this space to provide notes about the data source(s) used to populate the sub-section."]
["AI","In column AI, beginning in cell AI10, please use this space to provide any additional notes regarding the sub-section, such as notes on data limitations, explanations for specific values, or information that could assist with data interpretation."]
["AJ","In column AJ, starting in cell AJ10, enter the number of community mental health centers (CMHCs) in each geographic designation. A community mental health center is an entity that provides outpatient mental health services, 24 hour emergency care services, day treatment, screenings, and consultation and educational services, as defined at 42 CFR §410.2."]
["AK","In column AK, starting in cell AK10, enter the number of Medicaid-enrolled CMHCs in each geographic designation."]
["AL","In column AL, starting in cell AL10, enter the number of Medicaid-enrolled CMHCs accepting new Medicaid patients in each geographic designation."]
["AM-AO","In columns AM-AO, starting in cell AM10, the Availability Assessment will automatically calculate the ratios in each geographic designation. The state should not input any values into these columns or modify the formulas in these columns. "]
["AP","In column AP, beginning in cell AP10, please use this space to provide notes about the data source(s) used to populate the section. "]
["AQ","In column AQ, beginning in cell AQ10, please use this space to provide any additional notes regarding the section, such as notes on data limitations, explanations for specific values, or information that could assist with data interpretation."]
["AR","In column AR, starting in cell AR10, enter the number of providers offering intensive outpatient services in each geographic designation. Intensive outpatient services are designed to meet the needs of individuals who may be at risk for crisis or requiring a higher level of care, or who are in transition from a higher level of care. \nIntensive outpatient services may include partial hospitalization programs, day treatment, intensive outpatient programs, assertive community treatment, and other services and settings more intensive than regular outpatient and less intensive than inpatient or residential care. "]
["AS","In column AS, starting in cell AS10, enter the number of Medicaid-enrolled providers offering intensive outpatient services providers in each geographic designation."]
["AT","In column AT, starting in cell AT10, enter the number of Medicaid-enrolled providers offering intensive outpatient services accepting new Medicaid patients in each geographic designation."]
["AU-AW","In columns AU-AW, starting in cell AU10, the Availability Assessment will automatically calculate the ratios in each geographic designation. The state should not input any values into these columns or modify the formulas in these columns. "]
["AX","In column AX, beginning in cell AX10, please use this space to provide details on the specific types of services used to populate this section."]
["AY","In column AY, beginning in cell AY10, please use this space to provide notes about the data source(s) used to populate the section. "]
["AZ","In column AZ, beginning in cell AZ10, please use this space to provide any additional notes regarding the section, such as notes on data limitations, explanations for specific values, or information that could assist with data interpretation."]
["BA","In column BA, starting in cell BA10, enter the number of residential mental health treatment facilities (adult) in each geographic designation.  \nA residential mental health treatment facility (adult) is a facility not licensed as a psychiatric hospital, whose primary purpose is to provide individually planned programs of mental health treatment services in a residential care setting for adults as defined for SAMHSA's National Substance Use and Mental Health Services Survey (N-SUMHSS). Note: please exclude residential SUD treatment facilities."]
["BB","In column BB, starting in cell BB10, enter the number of Medicaid-enrolled residential mental health treatment facilities (adult) in each geographic designation."]
["BC","In column BC, starting in cell BC10, enter the number of Medicaid-enrolled residential mental health treatment facilities (adult) accepting new Medicaid patients in each geographic designation."]
["BD-BF","In columns BD-BF, starting in cell BD10, the Availability Assessment will automatically calculate the ratios in each geographic designation. The state should not input any values into these columns or modify the formulas in these columns. "]
["BG","In column BG, starting in cell BG10, enter the total number of residential mental health treatment facility beds (adult) in each geographic designation."]
["BH","In column BH, starting in cell BH10, enter the total number of Medicaid-enrolled residential mental health treatment beds (adult) in each geographic designation."]
["BI","In column BI, starting in cell BI10, enter the total number of Medicaid-enrolled residential mental health treatment beds available to adult Medicaid patients in each geographic designation. \n\"Available to adult Medicaid patients\" means any facility or bed available to serve Medicaid patients ages 18 and older. "]
["BJ-BL","In columns BJ-BL, starting in cell BJ10, the Availability Assessment will automatically calculate the ratios in each geographic designation. The state should not input any values into these columns or modify the formulas in these columns."]
["BM","In column BM, beginning in cell BM10, please use this space to provide details on the specific types of facilities used to populate this sub-section."]
["BN","In column BN, beginning in cell BN10, please use this space to provide notes about the data source(s) used to populate the sub-section. "]
["BO","In column BO, beginning in cell BO10, please use this space to provide any additional notes regarding the sub-section, such as notes on data limitations, explanations for specific values, or information that could assist with data interpretation."]
["BP","In column BP, starting in cell BP10, enter the number of psychiatric residential treatment facilities (PRTF) in each geographic designation. A PRTF is a non-hospital facility with a provider agreement with a state Medicaid agency to provide the inpatient psychiatric services to individuals under age 21 benefit (psych under 21 benefit). The facility must be accredited by the Joint Commission, the Council on Accreditation of Services for Families and Children, the Commission on Accreditation of Rehabilitation Facilities, or any other accrediting organization with comparable standards recognized by the State. PRTFs must also meet the requirements at 42 CFR §441.151 - §441.1102, and 42 CFR §4103.350 – §4103.376.\nNote: To avoid double counting facilities, qualified residential treatment programs (QRTPs) that qualify as IMDs should not be reported in the Availability Assessment subcategory for PRTFs. Instead, data on QRTPs that are IMDs should be reported separately starting in column DN."]
["BQ","In column BQ, starting in cell BQ10, enter the number of Medicaid-enrolled PRTFs in each geographic designation."]
["BR","In column BR, starting in cell BR10, enter the number of Medicaid-enrolled PRTFs accepting new Medicaid patients in each geographic designation."]
["BS-BU","In columns BS-BU, starting in cell BS10, the Availability Assessment will automatically calculate the ratios in each geographic designation. The state should not input any values into these columns or modify the formulas in these columns."]
["BV","In column BV, starting in cell BV10, enter the total number of PRTF beds in each geographic designation."]
["BW","In column BW, starting in cell BW10, enter the number of Medicaid-enrolled PRTF beds in each geographic designation."]
["BX","In column BX, starting in cell BX10, enter the number of Medicaid-enrolled PRTF beds available to Medicaid patients in each geographic designation. Available to Medicaid patients means any facility or bed available to serve Medicaid patients."]
["BY-CA","In columns BY-CA, starting in cell BY10, the Availability Assessment will automatically calculate the ratios in each geographic designation. The state should not input any values into these columns or modify the formulas in these columns. "]
["CB","In column CB, beginning in cell CB10, please use this space to provide details on the specific types of facilities used to populate this sub-section."]
["CC","In column CC, beginning in cell CC10, please use this space to provide notes about the data source(s) used to populate the sub-section. "]
["CD","In column CD, beginning in cell CD10, please use this space to provide any additional notes regarding the sub-section, such as notes on data limitations, explanations for specific values, or information that could assist with data interpretation."]
["CE","In column CE, starting in cell CE10, enter the number of public and private psychiatric hospitals in each geographic designation. \nA psychiatric hospital is an institution which provides diagnosis and treatment of mentally ill persons, as defined at 42 USC §1395x.  "]
["CF","In column CF, starting in cell CF10, enter the number of public and private psychiatric hospitals available to Medicaid patients in each geographic designation."]
["CG-CH","In columns CG-CH, starting in cell CG10, the Availability Assessment will automatically calculate the ratios in each geographic designation. The state should not input any values into these columns or modify the formulas in these columns. "]
["CI","In column CI, beginning in cell CI10, please use this space to provide notes about the data source(s) used to populate the sub-section. "]
["CJ","In column CJ, beginning in cell CJ10, please use this space to provide any additional notes regarding the sub-section, such as notes on data limitations, explanations for specific values, or information that could assist with data interpretation."]
["CK","In column CK, starting in cell CK10, enter the number of psychiatric units in acute care hospitals in each geographic designation.  \nA psychiatric unit is a separate inpatient psychiatric unit of a general hospital that provides inpatient mental health services and has specifically allocated staff and space (beds) for the treatment of persons with mental illness, as defined for SAMHSA's N-SUMHSS."]
["CL","In column CL, starting in cell CL10, enter the number of psychiatric units in critical access hospitals (CAHs) in each geographic designation.  \nA critical access hospital is a small facility that provides 24-hour emergency care, outpatient services, as well as inpatient services to people in rural areas, as defined in 42 CFR §4105.606.  "]
["CM","In column CM, starting in cell CM10, enter the number of Medicaid-enrolled psychiatric units in acute care hospitals in each geographic designation."]
["CN","In column CN, starting in cell CN10, enter the number of Medicaid-enrolled psychiatric units in CAHs in each geographic designation."]
["CO","In column CO, starting in cell CO10, enter the number of Medicaid-enrolled psychiatric units in acute care hospitals accepting new Medicaid patients in each geographic designation."]
["CP","In column CP starting in cell CP10, enter the number of Medicaid-enrolled psychiatric units in CAHs accepting new Medicaid patients in each geographic designation."]
["CQ-CV","In columns CQ-CV, starting in cell CQ10, the Availability Assessment will automatically calculate the ratios in each geographic designation. The state should not input any values into these columns or modify the formulas in these columns. "]
["CW","In column CW, beginning in cell CW10, please use this space to provide notes about the data source(s) used to populate the sub-section. "]
["CX","In column CX, beginning in cell CX10, please use this space to provide any additional notes regarding the sub-section, such as notes on data limitations, explanations for specific values, or information that could assist with data interpretation."]
["CY","In column CY, starting in cell CY10, enter the total number of licensed psychiatric hospital beds (adding together beds in psychiatric hospitals, beds in psychiatric units in acute care hospitals, and beds in psychiatric units in critical access hospitals) in each geographic designation. Please enter the number of licensed psychiatric hospital beds as defined by state licensure requirements.  "]
["CZ","In column CZ, starting in cell CZ10, enter the number of licensed psychiatric hospital beds (adding together beds in psychiatric hospitals, beds in psychiatric units in acute care hospitals, and beds in psychiatric units in critical access hospitals) available to Medicaid patients in each geographic designation."]
["DA-DB","In columns DA-DB, starting in cell DA10, the Availability Assessment will automatically calculate the ratios in each geographic designation. The state should not input any values into these columns or modify the formulas in these columns. "]
["DC","In column DC, beginning in cell DC10, please use this space to provide notes about the data source(s) used to populate the sub-section. "]
["DD","In column DD, beginning in cell DD10, please use this space to provide any additional notes regarding the sub-section, such as notes on data limitations, explanations for specific values, or information that could assist with data interpretation."]
["DE","In column DE, starting in cell DE10, enter the number of residential mental health treatment facilities (adult) that qualify as an institution for mental diseases (IMDs) in each geographic designation. \nAn IMD is a hospital, nursing facility, or other institution of more than 16 beds that is primarily engaged in providing diagnosis, treatment or care of persons with mental diseases, including medical attention, nursing care and related services per section 1905(i) of the Social Security Act. See also 42 CFR §435.1010 and section 4390 of the State Medicaid Manual."]
["DF","In column DF, starting in cell DF10, enter the number of Medicaid-enrolled residential mental health treatment facilities (adult) that qualify as IMDs in each geographic designation."]
["DG","In column DG, starting in cell DG10, enter the number of Medicaid-enrolled residential mental health treatment facilities (adult) that qualify as IMDs accepting Medicaid patients in each geographic designation."]
["DH-DJ","In columns DH-DJ, starting in cell DH10, the Availability Assessment will automatically calculate the ratios in each geographic designation. The state should not input any values into these columns or modify the formulas in these columns."]
["DK","In column DK, beginning in cell DK10, please use this space to provide details on the specific types of facilities used to populate this sub-section."]
["DL","In column DL, beginning in cell DL10, please use this space to provide notes about the data source(s) used to populate the sub-section. "]
["DM","In column DM, beginning in cell DM10, please use this space to provide any additional notes regarding the sub-section, such as notes on data limitations, explanations for specific values, or information that could assist with data interpretation."]
["DN","In column DN, starting in cell DN10, enter the number of qualified residential treatment programs (QRTPs) that qualify as institutions for mental diseases (IMDs) in each geographic designation. A qualified residential treatment program (QRTP) is a child care institution that provides a trauma-informed model of care designed to address the needs, including clinical needs, of children with serious emotional or behavioral disorders or disturbances. QRTPs are defined in title IV-E of the Social Security Act (the Act), as amended by Division E, Title VII Family First Prevention Services Act of the Balanced Budget Act of 2018 (BBA of 2018, Pub. L. 1115-123). A QRTP must meet the definition of a child-care institution at sections 472(c)(2)(A) and (C) of the Act. Further, title IV-E agencies, including QRTPs, must meet detailed assessment, case planning, documentation, judicial determinations and ongoing review and permanency hearing requirements for a child to be placed in and continue to receive title IV-E FCMPs for the placement (sections 472(k)(1)(B) and 475A(c) of the Act).\nNote: To avoid double counting facilities, psychiatric residential treatment facilities (PRTFs) should not be reported in the Availability Assessment subcategory for QRTPs that qualify as IMDs. Instead, data on PRTFs should be reported separately starting in column BP."]
["DO","In column DO, starting in cell DO10, enter the number of Medicaid-enrolled qualified residential treatment programs (QRTPs) that qualify as IMDs in each geographic designation."]
["DP","In column DP, starting in cell DP10, enter the number of Medicaid-enrolled qualified residential treatment programs (QRTPs) that qualify as IMDs accepting Medicaid patients in each geographic designation."]
["DQ-DS","In columns DQ-DS, starting in cell DQ10, the Availability Assessment will automatically calculate the ratios in each geographic designation. The state should not input any values into these columns or modify the formulas in these columns."]
["DT","In column DT, beginning in cell DT10, please use this space to provide details on the specific types of facilities used to populate this sub-section."]
["DU","In column DU, beginning in cell DU10, please use this space to provide notes about the data source(s) used to populate the sub-section. "]
["DV","In column DV, beginning in cell DV10, please use this space to provide any additional notes regarding the sub-section, such as notes on data limitations, explanations for specific values, or information that could assist with data interpretation."]
["DW","In column DW, starting in cell DW10, enter the number of psychiatric hospitals that qualify as IMDs in each geographic designation."]
["DX","In column DX, starting in cell DX10, the Availability Assessment will automatically calculate the ratios in each geographic designation. The state should not input any values into these columns or modify the formulas in these columns."]
["DY","In column DY, beginning in cell DY10, please use this space to provide notes about the data source(s) used to populate the sub-section. "]
["DZ","In column DZ, beginning in cell DZ10, please use this space to provide any additional notes regarding the sub-section, such as notes on data limitations, explanations for specific values, or information that could assist with data interpretation."]
["EA","In column EA, starting in cell EA10, enter the number of crisis call centers in each geographic designation. Please enter the number of crisis call centers as defined by the state. "]
["EB","In column EB, starting in cell EB10, enter the number of mobile crisis units in each geographic designation. \nA mobile crisis unit is a team that intervenes during mental health crises, as defined by the state."]
["EC","In column EC, starting in cell EC10, enter the number of crisis observation/assessment centers in each geographic designation. Please enter the number of crisis observation or assessment centers as defined by the state."]
["ED","In column ED, starting in cell ED10, enter the number of crisis stabilization units in each geographic designation. \nCrisis stabilization units offer medically monitored short-term crisis stabilization services, as defined by the state. "]
["EE","In column EE, starting in cell EE10, enter the number of coordinated community crisis response teams in each geographic designation. \"Coordinated community crisis response\" means a community-based program or entity that manages crisis response across various community entities or programs, as defined by the state."]
["EF-EJ","In columns EF-EJ, starting in cell EF10, the Availability Assessment will automatically calculate the ratios in each geographic designation. The state should not input any values into these columns or modify the formulas in these columns."]
["EK","In column EK, beginning in cell EK10, please use this space to provide details on the specific types of services used to populate this section."]
["EL","In column EL, beginning in cell EL10, please use this space to provide notes about the data source(s) used to populate the section. "]
["EM","In column EM, beginning in cell EM10, please use this space to provide any additional notes regarding the section, such as notes on data limitations, explanations for specific values, or information that could assist with data interpretation."]
["EN","In column EN, starting in cell EN10, enter the number of federally qualified health center (FQHCs) that offer behavioral health services in each geographic designation. \nFederally qualified health center (FQHC) means an entity that has entered into an agreement with CMS to meet Medicare program requirements under 42 CFR §405.2434 and 42 CFR §405.2401."]
["EO","In column EO, starting in cell EO10, the Availability Assessment will automatically calculate the ratios in each geographic designation. The state should not input any values into these columns or modify the formulas in these columns. "]
["EP","In column EP, beginning in cell EP10, please use this space to provide notes about the data source(s) used to populate the section. "]
["EQ","In column EQ, beginning in cell EQ10, please use this space to provide any additional notes regarding the section, such as notes on data limitations, explanations for specific values, or information that could assist with data interpretation."]
["ER","Beginning in column ER, add additional counts and ratios for provider and setting types that the state considers important to its mental health system. The state should not modify any of the previous columns. "]
["End of worksheet"]

{"sheet":"SMI - SED Avail Assessment","index":4,"n_rows":88,"n_cols":147,"rows_kept":88,"cut":false,"hidden":false,"merged":[[7,82,7,87],[7,88,7,101],[7,102,7,107],[7,52,7,66],[7,67,7,81],[7,126,7,129],[7,151,7,152],[6,108,6,129],[6,130,6,142],[6,143,6,146],[7,108,7,116],[7,117,7,125],[7,130,7,142],[7,143,7,146],[7,4,7,8],[7,9,7,11],[7,17,7,25],[7,26,7,34],[7,12,7,16],[6,82,6,107],[6,4,6,16],[6,17,6,34],[6,35,6,42],[6,43,6,51],[6,52,6,81]]}
["Medicaid Section 1115 SMI/SED Demonstrations Annual Availability Assessment (Version 3.0)",null,null,"blank","To add a new row, use button below or the keyboard shortcut SHIFT+CTRL+T"]
["State Name","Oklahoma","blank","blank"]
["Date of Assessment","2024-05-30","blank","blank"]
["Time Period Reflected in Assessment (month/day/year)","2/28/2023","PLEASE NOTE: The state should use the same reporting month and day (under “Time Period Reflected in Assessment”) and data sources across its Initial and Annual Availability Assessment submissions.","blank"]
["blank row",null,null,"blank"]
["Table: Serious Mental Illness and Serious Emotional Disturbance Annual Availability Assessment"]
["Geographic Designation","Geographic Designation","Geographic Designation","Geographic Designation","Beneficiaries",null,null,null,null,null,null,null,null,null,null,null,null,"Providers",null,null,null,null,null,null,null,null,null,null,null,null,null,null,null,null,null,"Community Mental Health Centers",null,null,null,null,null,null,null,"Intensive Outpatient Services",null,null,null,null,null,null,null,null,"Residential Mental Health Treatment Facilities ",null,null,null,null,null,null,null,null,null,null,null,null,null,null,null,null,null,null,null,null,null,null,null,null,null,null,null,null,null,"Inpatient",null,null,null,null,null,null,null,null,null,null,null,null,null,null,null,null,null,null,null,null,null,null,null,null,null,"Institutions for Mental Diseases",null,null,null,null,null,null,null,null,null,null,null,null,null,null,null,null,null,null,null,null,null,"Crisis Stabilization Services",null,null,null,null,null,null,null,null,null,null,null,null,"Federally Qualified Health Centers"]
["Geographic Designation","Geographic Designation","Geographic Designation","Geographic Designation","Beneficiaries:\nAdult  ",null,null,null,null,"Beneficiaries:\nChildren",null,null,"Beneficiaries:\nTotal",null,null,null,null,"Psychiatrists and Other Practitioners Who Are Authorized to Prescribe Psychiatric Medications",null,null,null,null,null,null,null,null,"Other Practitioners Certified and Licensed to Independently Treat Mental Illness",null,null,null,null,null,null,null,null,"Community Mental Health Centers","Community Mental Health Centers","Community Mental Health Centers","Community Mental Health Centers","Community Mental Health Centers","Community Mental Health Centers","Community Mental Health Centers","Community Mental Health Centers","Intensive Outpatient Services","Intensive Outpatient Services","Intensive Outpatient Services","Intensive Outpatient Services","Intensive Outpatient Services","Intensive Outpatient Services","Intensive Outpatient Services","Intensive Outpatient Services","Intensive Outpatient Services","Residential Mental Health Treatment Facilities (Adult)",null,null,null,null,null,null,null,null,null,null,null,null,null,null,"Psychiatric Residential Treatment Facilities",null,null,null,null,null,null,null,null,null,null,null,null,null,null,"Public and Private Psychiatric Hospitals",null,null,null,null,null,"Psychiatric Units",null,null,null,null,null,null,null,null,null,null,null,null,null,"Psychiatric Beds",null,null,null,null,null,"Residential Treatment Facilities That Qualify As IMDs",null,null,null,null,null,null,null,null,"Qualified Residential Treatment Programs That Qualify as IMDs",null,null,null,null,null,null,null,null,"Psychiatric Hospitals That Qualify As IMDs",null,null,null,"Crisis Stabilization Services",null,null,null,null,null,null,null,null,null,null,null,null,"Federally Qualified Health Centers"]
["Geographic designation #","Geographic designation name","Geographic designation:\nIs this geographic designation primarily urban or rural?","\nGeographic designation:\nAdditional notes on Geographic Designation sub-section, including data limitations","Adult Beneficiaries:\nNumber of adult Medicaid beneficiaries (18 - 20)","Adult Beneficiaries: \nNumber of adult Medicaid beneficiaries with SMI (18 - 20)","Adult Beneficiaries: \nNumber of adult Medicaid beneficiaries (21+)","Adult Beneficiaries: \nNumber of adult Medicaid beneficiaries with SMI (21+)","Adult Beneficiaries: \nPercent with SMI (Adult)","Children Beneficiaries: \nNumber of Medicaid beneficiaries (0 - 17)","Children Beneficiaries: \nNumber of Medicaid beneficiaries with SED \n(0 - 17)","Children Beneficiaries: \nPercent with SED (0-17)","Total Beneficiaries: \nNumber of Medicaid beneficiaries (Total)","Total Beneficiaries: \nNumber of Medicaid beneficiaries with SMI or SED (Total)","Total Beneficiaries: \nPercent with SMI or SED (Total)","Brief description of data source(s) used to populate the Beneficiaries section","Additional notes on the Beneficiaries section, including data limitations","Providers: \nNumber of Psychiatrists and Other Practitioners Who Are Authorized to Prescribe Psychiatric Medications","Providers: \nNumber of Medicaid-Enrolled Psychiatrists and Other Practitioners Who Are Authorized to Prescribe Psychiatric Medications","Providers: \nNumber of Medicaid-Enrolled Psychiatrists and Other Practitioners Who Are Authorized to Prescribe Psychiatric Medications Accepting New Medicaid Patients","Providers: \nRatio of Medicaid beneficiaries with SMI/SED to Medicaid-Enrolled Psychiatrists and Other Prescribers","Providers: \nRatio of Total Psychiatrists or Other Prescribers to Medicaid-Enrolled Psychiatrists and Other Prescribers","Providers: \nRatio of Medicaid-Enrolled Psychiatrists and Other Prescribers to Medicaid-Enrolled Psychiatrists and Other Prescribers Accepting New Medicaid Patients","Psychiatrists and Other Practitioners Who Are Authorized to Prescribe Psychiatric Medications: \nSpecific type(s) of practitioners used to populate this sub-section","Psychiatrists and Other Practitioners Who Are Authorized to Prescribe Psychiatric Medications: \nBrief description of data source(s) used to populate this sub-section","Psychiatrists and Other Practitioners Who Are Authorized to Prescribe Psychiatric Medications:\nAdditional notes on this sub-section, including data limitations","Providers: \nNumber of Other Practitioners Certified or Licensed to Independently Treat Mental Illness","Providers: \nNumber of Medicaid-Enrolled Other Practitioners Certified or Licensed to Independently Treat Mental Illness","Providers: \nNumber of Medicaid-Enrolled Other Practitioners Certified or Licensed to Independently Treat Mental Illness Accepting New Medicaid Patients","Providers: \nRatio of Medicaid Beneficiaries with SMI/SED to Medicaid-Enrolled Other Practitioners Certified or Licensed to Independently Treat Mental Illness","Providers: \nRatio of Other Practitioners Certified or Licensed to Independently Treat Mental Illness to Medicaid-Enrolled Other Practitioners Certified or Licensed to Independently Treat Mental Illness","Providers: \nRatio of Medicaid-Enrolled Other Practitioners Certified and Licensed to Independently Treat Mental Illness to Medicaid-Enrolled Other Practitioners Certified and Licensed to Independently Treat Mental Illness Accepting New Patients","Other Practitioners Certified and Licensed to Independently Treat Mental Illness: \nSpecific type(s) of practitioners used to populate this sub-section","Other Practitioners Certified and Licensed to Independently Treat Mental Illness: \nBrief description of data source(s) used to populate this sub-section","Other Practitioners Certified and Licensed to Independently Treat Mental Illness: \nAdditional notes on this sub-section, including data limitations","Community Mental Health Centers: \nNumber of CMHCs","Community Mental Health Centers: \nNumber of Medicaid- Enrolled CMHCs","Community Mental Health Centers: \nNumber of Medicaid-Enrolled CMHCs Accepting New Medicaid Patients","Community Mental Health Centers: \nRatio of Medicaid Beneficiaries with SMI/SED to Medicaid- Enrolled CMHCs","Community Mental Health Centers: \nRatio of Total CMHCs to Medicaid- Enrolled CMHCs","Community Mental Health Centers: \nRatio of Medicaid-Enrolled CMHCs to Medicaid-Enrolled CMHCs Accepting New Patients","Community Mental Health Centers: \nBrief description of data source(s) used to populate this section","Community Mental Health Centers: \nAdditional notes on this section, including data limitations","Intensive Outpatient Services: \nNumber of Providers Offering Intensive Outpatient Services","Intensive Outpatient Services: \nNumber of Medicaid-Enrolled Providers Offering Intensive Outpatient Services","Intensive Outpatient Services: \nNumber of Medicaid-Enrolled Providers Offering Intensive Outpatient Services Accepting New Medicaid Patients","Intensive Outpatient Services: \nRatio of Medicaid Beneficiaries with SMI/SED to Medicaid- Enrolled Providers Offering Intensive Outpatient Services","Intensive Outpatient Services: \nRatio of Total Providers Offering Intensive Outpatient Services to Medicaid-Enrolled Providers Offering Intensive Outpatient Services","Intensive Outpatient Services: \nRatio of Medicaid-Enrolled Providers Offering Intensive Outpatient Services to Medicaid- Enrolled Providers Offering Intensive Outpatient Services Accepting New Medicaid Patients","Intensive Outpatient Services: \nSpecific type(s) of services used to populate this section","Intensive Outpatient Services: \nBrief description of data source(s) used to populate this section","Intensive Outpatient Services: \nAdditional notes on this section, including data limitations","Residential Mental Health Treatment Facilities: \nNumber of Residential Mental Health Treatment Facilities (Adult)","Residential Mental Health Treatment Facilities: \nNumber of Medicaid- Enrolled Residential Mental Health Treatment Facilities (Adult)","Residential Mental Health Treatment Facilities: \nNumber of Medicaid-Enrolled Residential Mental Health Treatment Facilities Accepting New Medicaid Patients (Adult)","Residential Mental Health Treatment Facilities: \nRatio of Medicaid Beneficiaries with SMI (Adult) to Medicaid- Enrolled Residential Mental Health Treatment Facilities (Adult)","Residential Mental Health Treatment Facilities: \nRatio of Total Residential Mental Health Treatment Facilities (Adult) to Medicaid-Enrolled Residential Mental Health Treatment Facilities (Adult)","Residential Mental Health Treatment Facilities: \nRatio of Medicaid-Enrolled Residential Mental Health Treatment Facilities (Adult) to Medicaid- Enrolled Residential Mental Health Treatment Facilities (Adult) Accepting New Patients","Residential Mental Health Treatment Facilities: \nTotal Number of Residential Mental Health Treatment Facility Beds (Adult)","Residential Mental Health Treatment Facilities: \nTotal Number of Medicaid- Enrolled Residential Mental Health Treatment Beds (Adult)","Residential Mental Health Treatment Facilities: \nTotal Number of Medicaid-Enrolled Residential Mental Health Treatment Beds Available to Adult Medicaid Patients","Residential Mental Health Treatment Facilities: \nRatio of Medicaid Beneficiaries with SMI (Adult) to Medicaid-Enrolled Residential Mental Health Treatment Beds","Residential Mental Health Treatment Facilities: \nRatio of Total Residential Mental Health Treatment Beds to Medicaid-Enrolled Residential Mental Health Treatment Beds","Residential Mental Health Treatment Facilities: \nRatio of Medicaid-Enrolled Residential Mental Health Treatment Beds to Medicaid- Enrolled Residential Mental Health Treatment Beds Available to Medicaid Patients","Residential Mental Health Treatment Facilities (Adult): \nSpecific type(s) of facilities used to populate this sub-section","Residential Mental Health Treatment Facilities (Adult): \nBrief description of data source(s) used to populate this sub-section","Residential Mental Health Treatment Facilities (Adult): \nAdditional notes on this sub-section, including data limitations","Residential Mental Health Treatment Facilities: \nNumber of Psychiatric Residential Treatment Facilities (PRTF)","Residential Mental Health Treatment Facilities: \nNumber of Medicaid- Enrolled PRTFs","Residential Mental Health Treatment Facilities: \nNumber of Medicaid-Enrolled PRTFs Accepting New Medicaid Patients","Residential Mental Health Treatment Facilities: \nRatio of Medicaid Beneficiaries with SED to Medicaid-Enrolled PTRFs","Residential Mental Health Treatment Facilities: \nRatio of Total PTRFs to Medicaid- Enrolled PRTFs","Residential Mental Health Treatment Facilities: \nRatio of Medicaid-Enrolled PRTFs to Medicaid-Enrolled PRTFs Accepting New Medicaid Patients","Residential Mental Health Treatment Facilities: \nTotal Number of PRTF Beds","Residential Mental Health Treatment Facilities: \nNumber of Medicaid-Enrolled PRTF Beds","Residential Mental Health Treatment Facilities: \nNumber of Medicaid-Enrolled PRTF Beds Available to Medicaid Patients","Residential Mental Health Treatment Facilities: \nRatio of Medicaid Beneficiaries with SED to Medicaid-Enrolled PRTF Beds Available to Medicaid Patients","Residential Mental Health Treatment Facilities: \nRatio of Total Number of PRTF Beds to Medicaid- Enrolled PRTF Beds","Residential Mental Health Treatment Facilities: \nRatio of Medicaid- Enrolled PRTF Beds to Medicaid- Enrolled PRTFs Available to Medicaid Patients","Psychiatric Residential Treatment Facilities: \nSpecific type(s) of facilities used to populate this sub-section","Psychiatric Residential Treatment Facilities: \nBrief description of data source(s) used to populate this sub-section","Psychiatric Residential Treatment Facilities: \nAdditional notes on this sub-section, including data limitations","Inpatient: \nNumber of Public and Private Psychiatric Hospitals","Inpatient: \nPublic and Private Psychiatric Hospitals Available to Medicaid Patients","Inpatient: \nRatio of Medicaid Beneficiaries with SMI/SED to Public and Private Psychiatric Hospitals Available to Medicaid Patients","Inpatient: \nRatio of Public and Private Psychiatric Hospitals to Public and Private Psychiatric Hospitals Available to Medicaid Patients","Inpatient Public and Private Psychiatric Hospitals: \nBrief description of data source(s) used to populate this sub-section","Inpatient Public and Private Psychiatric Hospitals: \nAdditional notes on this sub-section, including data limitations","Inpatient: \nNumber of Psychiatric Units in Acute Care Hospitals","Inpatient: \nNumber of Psychiatric Units in Critical Access Hospitals (CAHs)","Inpatient: \nNumber of Medicaid- Enrolled Psychiatric Units in Acute Care Hospitals","Inpatient: \nNumber of Medicaid-Enrolled Psychiatric Units in CAHs","Inpatient: \nNumber of Medicaid-Enrolled Psychiatric Units in Acute Care Hospitals Accepting New Medicaid Patients","Inpatient: \nNumber of Medicaid-Enrolled Psychiatric Units in CAHs Accepting New Medicaid Patients","Inpatient: \nRatio of Medicaid Beneficiaries with SMI/SED to Medicaid-Enrolled Psychiatric Units in Acute Care Hospitals","Inpatient: \nRatio of Medicaid Beneficiaries with SMI/SED to Medicaid-Enrolled Psychiatric Units in CAHs","Inpatient: \nRatio of Psychiatric Units in Acute Care Hospitals to Medicaid-Enrolled Psychiatric Units in Acute Care Hospitals","Inpatient: \nRatio of Psychiatric Units in CAHs to Medicaid-Enrolled Psychiatric Units in CAHs","Inpatient: \nRatio of Medicaid-Enrolled Psychiatric Units in Acute Care Hospitals to Medicaid-Enrolled Psychiatric Units in Acute Care Hospitals Accepting New Medicaid Patients","Inpatient: \nRatio of Medicaid-Enrolled Psychiatric Units in CAHs to Medicaid-Enrolled Psychiatric Units in CAHs Accepting New Medicaid Patients","Inpatient Psychiatric Units: \nBrief description of data source(s) used to populate this sub-section","Inpatient Psychiatric Units: \nAdditional notes on this sub-section, including data limitations","Inpatient: \nNumber of Licensed Psychiatric Hospital Beds (Psychiatric Hospital + Psychiatric Units)","Inpatient: \nNumber of Licensed Psychiatric Hospital Beds (Psychiatric Hospital + Psychiatric Units) Available to Medicaid Patients","Inpatient: \nRatio of Medicaid Beneficiaries with SMI/SED to Licensed Psychiatric Hospital Beds Available to Medicaid Patients","Inpatient: \nRatio of Licensed Psychiatric Hospital Beds to Licensed Psychiatric Hospital Beds Available to Medicaid Patients","Inpatient Psychiatric Beds: \nBrief description of data source(s) used to populate this sub-section","Inpatient Psychiatric Beds: \nAdditional notes on this sub-section, including data limitations","IMDs: \nNumber of Residential Mental Health Treatment Facilities (Adult) that Qualify as IMDs","IMDs: \nNumber of Medicaid- Enrolled Residential Mental Health Treatment Facilities (Adult) that Qualify as IMDs","IMDs: \nNumber of Medicaid- Enrolled Residential Mental Health Treatment Facilities (Adult) that Qualify as IMDs Accepting Medicaid Patients","IMDs: \nRatio of Medicaid Beneficiaries with SMI (Adult) to Medicaid- Enrolled Residential Mental Health Treatment Facilities that Qualify as IMDs","IMDs: \nRatio of Total Residential Mental Health Treatment Facilities (Adult) that Qualify as IMDs to Medicaid-Enrolled Residential Mental Health Treatment Facilities (Adult) that Qualify as IMDs","IMDs: \nRatio of Medicaid-Enrolled Residential Mental Health Treatment Facilities (Adult) that Qualify as IMDs to Medicaid- Enrolled Residential Mental Health Treatment Facilities (Adult) that Qualify as IMDs Accepting New Medicaid Patients","Residential Treatment Facilities That Qualify As IMDs:\nSpecific type(s) of facilities used to populate this sub-section","Residential Treatment Facilities That Qualify As IMDs:\nBrief description of data source(s) used to populate this sub-section","Residential Treatment Facilities That Qualify As IMDs:\nAdditional notes on this sub-section, including data limitations","QRTPs: \nNumber of Qualified Residential Treatment Programs (QRTPs) that Qualify as IMDs","QRTPs: \nNumber of Medicaid- Enrolled Qualified Residential Treatment Programs (QRTPs) that Qualify as IMDs","QRTPs: \nNumber of Medicaid- Enrolled Qualified Residential Treatment Programs (QRTPs) that Qualify as IMDs Accepting Medicaid Patients","QRTPs: \nRatio of Medicaid Beneficiaries with SMI/SED to Medicaid- Enrolled Qualified Residential Treatment Programs (QRTPs) that Qualify as IMDs","QRTPs: \nRatio of Total Qualified Residential Treatment Programs (QRTPs) that Qualify as IMDs to Medicaid-Enrolled Qualified Residential Treatment Programs (QRTPs) that Qualify as IMDs","QRTPs: \nRatio of Medicaid-Enrolled Qualified Residential Treatment Programs (QRTPs) that Qualify as IMDs to Medicaid- Enrolled Qualified Residential Treatment Programs (QRTPs) that Qualify as IMDs Accepting New Medicaid Patients","Qualified Residential Treatment Programs (QRTPs) That Qualify As IMDs:\nSpecific type(s) of facilities used to populate this sub-section","Qualified Residential Treatment Programs (QRTPs) That Qualify As IMDs:\nBrief description of data source(s) used to populate this sub-section","Qualified Residential Treatment Programs (QRTPs) That Qualify As IMDs:\nAdditional notes on this sub-section, including data limitations10","Institutions for Mental Diseases: \nNumber of Psychiatric Hospitals that Qualify as IMDs","Institutions for Mental Diseases: \nRatio of Medicaid Beneficiaries with SMI/SED to Psychiatric Hospitals that Qualify as IMDs","Psychiatric Hospitals That Qualify As IMDs:\nBrief description of data source(s) used to populate this sub-section","Psychiatric Hospitals That Qualify As IMDs:\nAdditional notes on this sub-section, including data limitations","Crisis Stabilization Services: \nNumber of Crisis Call Centers","Crisis Stabilization Services: \nNumber of Mobile Crisis Units","Crisis Stabilization Services: \nNumber of Crisis Observation/ Assessment Centers","Crisis Stabilization Services: \nNumber of Crisis Stabilization Units","Crisis Stabilization Services: \nNumber of Coordinated Community Crisis Response Teams","Crisis Stabilization Services: \nRatio of Medicaid Beneficiaries with SMI/SED to Crisis Call Centers","Crisis Stabilization Services: \nRatio of Medicaid Beneficiaries with SMI/SED to Mobile Crisis Units","Crisis Stabilization Services: \nRatio of Medicaid Beneficiaries with SMI/SED to Crisis Observation/ Assessment Centers","Crisis Stabilization Services: \nRatio of Medicaid Beneficiaries with SMI/SED to Crisis Stabilization Units","Crisis Stabilization Services: \nRatio of Medicaid Beneficiaries with SMI/SED to Coordinated Community Crisis Response Teams","Crisis Stabilization Services: \nSpecific type(s) of services used to populate this section","Crisis Stabilization Services: \nBrief description of data source(s) used to populate this section","Crisis Stabilization Services: \nAdditional notes on this section, including data limitations","Federally Qualified Health Centers: \nNumber FQHCs that Offer Behavioral Health Services","Federally Qualified Health Centers: \nRatio of Medicaid Beneficiaries with SMI/SED to FQHCs that Offer Behavioral Health Services","Federally Qualified Health Centers: \nBrief description of data source(s) used to populate this section","Federally Qualified Health Centers: \nAdditional notes on this section, including data limitations"]
[{"$f":"TEXT(1,\"#.\")","v":"1."},"Adair","Rural","HRSA",647,118,3004,549,{"$f":"IFERROR((F10+H10)/(E10+G10),\"-\")","v":0.18268967406190084},5157,377,{"$f":"IFERROR(K10/J10,\"-\")","v":7.3104518130696142E-2},{"$f":"E10+G10+J10","v":8808},{"$f":"F10+H10+K10","v":1044},{"$f":"IFERROR(N10/M10,\"-\")","v":0.11852861035422343},"MMIS, Client Data Core","SED/SMI numbers represent beneficiaries who have had a diagnosis within the last year; Numbers for total beneficiaries represent total Title XIX enrollment, excluding out of state beneficiaries",0,2,null,{"$f":"IFERROR(N10/S10,\"-\")","v":522},{"$f":"IFERROR(R10/S10,\"-\")","v":0},{"$f":"IFERROR(S10/T10,\"-\")","v":"-"},"Includes psychiatrists and APRNs with prescribing authority","Licensure board data; Medicaid enrollment data","Total number of prescribers is based on licensure data, which may not accurately reflect where prescribers are practicing and may under-report their numbers; Data on providers accepting new patients is not tracked ",22,14,null,{"$f":"IFERROR(N10/AB10,\"-\")","v":74.571428571428569},{"$f":"IFERROR(AA10/AB10,\"-\")","v":1.5714285714285714},{"$f":"IFERROR(AB10/AC10,\"-\")","v":"-"},"Includes licensed psychologists, LCSW, and licensed professional counselors (LPC, LMFT, LBP)","Licensure board data; Medicaid enrollment data","Total number of practitioners is based on licensure data, which may not accurately reflect where practitioners are practicing and may under-report their numbers; Data on providers accepting new patients is not tracked",1,1,1,{"$f":"IFERROR(N10/AK10,\"-\")","v":1044},{"$f":"IFERROR(AJ10/AK10,\"-\")","v":1},{"$f":"IFERROR(AK10/AL10,\"-\")","v":1},"State certification data","13 CMHCs provide services statewide; CMHCs may have multiple locations in a county but are only counted once per county; CMHCs may not have a physical location in every county but provide coverage to all counties",null,null,null,{"$f":"IFERROR(N10/AS10,\"-\")","v":"-"},{"$f":"IFERROR(AR10/AS10,\"-\")","v":"-"},{"$f":"IFERROR(AS10/AT10,\"-\")","v":"-"},"Represents partial hospitilization providers","Medicaid provider enrollment data"," intensive outpatient is not a distinct service or certification category",0,"N/A","N/A",{"$f":"IFERROR((F10+H10)/BB10,\"-\")","v":"-"},{"$f":"IFERROR(BA10/BB10,\"-\")","v":"-"},{"$f":"IFERROR(BB10/BC10,\"-\")","v":"-"},0,"N/A","N/A",{"$f":"IFERROR((F10+H10)/BH10,\"-\")","v":"-"},{"$f":"IFERROR(BG10/BH10,\"-\")","v":"-"},{"$f":"IFERROR(BH10/BI10,\"-\")","v":"-"},"Included providers are residential care facilities for individuals with mental illness; these providers do not participate in the Medicaid program","Department of Health licensing data",null,0,0,0,{"$f":"IFERROR(K10/BQ10,\"-\")","v":"-"},{"$f":"IFERROR(BP10/BQ10,\"-\")","v":"-"},{"$f":"IFERROR(BQ10/BR10,\"-\")","v":"-"},0,0,0,{"$f":"IFERROR(K10/BX10,\"-\")","v":"-"},{"$f":"IFERROR(BV10/BW10,\"-\")","v":"-"},{"$f":"IFERROR(BW10/BX10,\"-\")","v":"-"},"Psychiatric Residential Treatment Facilities","Medicaid provider enrollment and survey data",null,0,0,{"$f":"IFERROR(N10/CF10,\"-\")","v":"-"},{"$f":"IFERROR(CE10/CF10,\"-\")","v":"-"},"Department of Health licensing data and Medicaid provider enrollment data",null,1,0,1,0,1,0,{"$f":"IFERROR(N10/CM10,\"-\")","v":1044},{"$f":"IFERROR(N10/CN10,\"-\")","v":"-"},{"$f":"IFERROR(CK10/CM10,\"-\")","v":1},{"$f":"IFERROR(CL10/CN10,\"-\")","v":"-"},{"$f":"IFERROR(CM10/CO10,\"-\")","v":1},{"$f":"IFERROR(CN10/CP10,\"-\")","v":"-"},"Department of Health licensing data; Medicaid provider enrollment data","Units with licensed beds reported by Department of Health that are not active/accepting patients are excluded",10,10,{"$f":"IFERROR(N10/CZ10,\"-\")","v":104.4},{"$f":"IFERROR(CY10/CZ10,\"-\")","v":1},"Departmen tof Health licensing data",null,0,"N/A","N/A",{"$f":"IFERROR((F10+H10)/DF10,\"-\")","v":"-"},{"$f":"IFERROR(DE10/DF10,\"-\")","v":"-"},{"$f":"IFERROR(DF10/DG10,\"-\")","v":"-"},"Included providers are residential care facilities for individuals with mental illness; these providers do not participate in the Medicaid program","Department of Health licensing data",null,0,0,0,{"$f":"IFERROR(N10/DO10,\"-\")","v":"-"},{"$f":"IFERROR(DN10/DO10,\"-\")","v":"-"},{"$f":"IFERROR(DO10/DP10,\"-\")","v":"-"},null,null,null,0,{"$f":"IFERROR(N10/DW10,\"-\")","v":"-"},"Department of Health licensing data","One facility is not considered an IMD due to split licensing/units but is still included here based on OSDH licensed bed count",1,1,0,0,1,{"$f":"IFERROR(N10/EA10,\"-\")","v":1044},{"$f":"IFERROR(N10/EB10,\"-\")","v":1044},{"$f":"IFERROR(N10/EC10,\"-\")","v":"-"},{"$f":"IFERROR(N10/ED10,\"-\")","v":"-"},{"$f":"IFERROR(N10/EE10,\"-\")","v":1044},"988 and CMHCs provide statewide crisis call center coverage and mobile crisis response teams","State contract and certification data",null,0,{"$f":"IFERROR(N10/EN10,\"-\")","v":"-"},"Oklahoma Primary Care Association ","Numbers respresent FQHCs, not individual clinics"]
[{"$f":"TEXT(A10+1,\"#.\")","v":"2."},"Alfalfa","Rural","HRSA",75,8,301,49,0.15159574468085107,644,30,{"$f":"IFERROR(K11/J11,\"-\")","v":4.6583850931677016E-2},{"$f":"E11+G11+J11","v":1020},87,8.5294117647058826E-2,null,null,0,0,null,{"$f":"IFERROR(N11/S11,\"-\")","v":"-"},{"$f":"IFERROR(R11/S11,\"-\")","v":"-"},"-",null,null,null,8,3,null,{"$f":"IFERROR(N11/AB11,\"-\")","v":29},{"$f":"IFERROR(AA11/AB11,\"-\")","v":2.6666666666666665},"-",null,null,null,1,1,1,{"$f":"IFERROR(N11/AK11,\"-\")","v":87},{"$f":"IFERROR(AJ11/AK11,\"-\")","v":1},1,null,null,null,null,null,{"$f":"IFERROR(N11/AS11,\"-\")","v":"-"},{"$f":"IFERROR(AR11/AS11,\"-\")","v":"-"},"-",null,null,null,0,null,null,{"$f":"IFERROR((F11+H11)/BB11,\"-\")","v":"-"},{"$f":"IFERROR(BA11/BB11,\"-\")","v":"-"},"-",0,null,null,"-",{"$f":"IFERROR(BG11/BH11,\"-\")","v":"-"},"-",null,null,null,0,0,0,"-",{"$f":"IFERROR(BP11/BQ11,\"-\")","v":"-"},"-",0,0,0,{"$f":"IFERROR(K11/BX11,\"-\")","v":"-"},{"$f":"IFERROR(BV11/BW11,\"-\")","v":"-"},"-",null,null,null,0,0,{"$f":"IFERROR(N11/CF11,\"-\")","v":"-"},"-",null,null,0,0,0,0,0,0,"-","-",{"$f":"IFERROR(CK11/CM11,\"-\")","v":"-"},"-","-","-",null,null,0,0,"-",{"$f":"IFERROR(CY11/CZ11,\"-\")","v":"-"},null,null,0,null,null,"-",{"$f":"IFERROR(DE11/DF11,\"-\")","v":"-"},"-",null,null,null,0,0,0,"-","-","-",null,null,null,0,"-",null,null,1,1,0,0,1,87,87,"-","-",87,null,null,null,1,87]
[{"$f":"TEXT(A11+1,\"#.\")","v":"3."},"Atoka","Rural","HRSA",276,50,1464,248,0.17126436781609194,2253,135,{"$f":"IFERROR(K12/J12,\"-\")","v":5.9920106524633823E-2},{"$f":"E12+G12+J12","v":3993},433,0.1084397695967944,null,null,0,0,null,"-","-","-",null,null,null,37,14,null,30.928571428571427,2.6428571428571428,"-",null,null,null,1,1,1,433,1,1,null,null,null,null,null,"-","-","-",null,null,null,0,null,null,"-","-","-",0,null,null,"-","-","-",null,null,null,0,0,0,"-","-","-",0,0,0,"-","-","-",null,null,null,0,0,"-","-",null,null,0,0,0,0,0,0,"-","-","-","-","-","-",null,null,0,0,"-","-",null,null,0,null,null,"-","-","-",null,null,null,0,0,0,"-","-","-",null,null,null,0,"-",null,null,1,1,0,0,1,433,433,"-","-",433,null,null,null,1,433]
["4.","Beaver","Rural","HRSA",94,6,278,28,9.1397849462365593E-2,724,23,3.1767955801104975E-2,1096,57,5.2007299270072992E-2,null,null,0,0,null,"-","-","-",null,null,null,7,0,null,"-","-","-",null,null,null,1,1,1,57,1,1,null,null,null,null,null,"-","-","-",null,null,null,0,null,null,"-","-","-",0,null,null,"-","-","-",null,null,null,0,0,0,"-","-","-",0,0,0,"-","-","-",null,null,null,0,0,"-","-",null,null,0,0,0,0,0,0,"-","-","-","-","-","-",null,null,0,0,"-","-",null,null,0,null,null,"-","-","-",null,null,null,0,0,0,"-","-","-",null,null,null,0,"-",null,null,1,1,0,0,1,57,57,"-","-",57,null,null,null,0,"-"]
["5.","Beckham","Rural","HRSA",410,95,2095,440,0.21357285429141717,3764,294,7.8108395324123267E-2,6269,829,0.13223799649066836,null,null,1,0,null,"-","-","-",null,null,null,35,11,null,75.36363636363636,3.1818181818181817,"-",null,null,null,1,1,1,829,1,1,null,null,null,null,null,"-","-","-",null,null,null,0,null,null,"-","-","-",0,null,null,"-","-","-",null,null,null,0,0,0,"-","-","-",0,0,0,"-","-","-",null,null,null,0,0,"-","-",null,null,1,0,1,0,1,0,829,"-",1,"-",1,"-",null,null,12,12,69.083333333333329,1,null,null,0,null,null,"-","-","-",null,null,null,0,0,0,"-","-","-",null,null,null,0,"-",null,null,1,1,1,0,1,829,829,829,"-",829,null,null,null,0,"-"]
["6.","Blaine","Rural","HRSA",220,51,788,189,0.23809523809523808,1692,166,9.8108747044917261E-2,2700,406,0.15037037037037038,null,null,0,0,null,"-","-","-",null,null,null,12,3,null,135.33333333333334,4,"-",null,null,null,1,1,1,406,1,1,null,null,null,null,null,"-","-","-",null,null,null,0,null,null,"-","-","-",0,null,null,"-","-","-",null,null,null,0,0,0,"-","-","-",0,0,0,"-","-","-",null,null,null,0,0,"-","-",null,null,0,0,0,0,0,0,"-","-","-","-","-","-",null,null,0,0,"-","-",null,null,0,null,null,"-","-","-",null,null,null,0,0,0,"-","-","-",null,null,null,0,"-",null,null,1,1,0,0,1,406,406,"-","-",406,null,null,null,1,406]
["7.","Bryan","Rural","HRSA",983,196,5084,1052,0.20570298335256304,8777,577,6.5740002278682916E-2,14844,1825,0.12294529776340608,null,null,2,1,null,1825,2,"-",null,null,null,158,75,null,24.333333333333332,2.1066666666666665,"-",null,null,null,1,1,1,1825,1,1,null,null,null,null,null,"-","-","-",null,null,null,0,null,null,"-","-","-",0,null,null,"-","-","-",null,null,null,0,0,0,"-","-","-",0,0,0,"-","-","-",null,null,null,0,0,"-","-",null,null,0,0,0,0,0,0,"-","-","-","-","-","-",null,null,0,0,"-","-",null,null,0,null,null,"-","-","-",null,null,null,0,0,0,"-","-","-",null,null,null,0,"-",null,null,1,1,1,0,1,1825,1825,1825,"-",1825,null,null,null,0,"-"]
["8.","Caddo","Rural","HRSA",746,75,3197,468,0.13771240172457519,5615,262,4.6660730186999108E-2,9558,805,8.4222640719815861E-2,null,null,0,0,null,"-","-","-",null,null,null,37,5,null,161,7.4,"-",null,null,null,1,1,1,805,1,1,null,null,null,null,null,"-","-","-",null,null,null,0,null,null,"-","-","-",0,null,null,"-","-","-",null,null,null,0,0,0,"-","-","-",0,0,0,"-","-","-",null,null,null,0,0,"-","-",null,null,0,0,0,0,0,0,"-","-","-","-","-","-",null,null,0,0,"-","-",null,null,0,null,null,"-","-","-",null,null,null,0,0,0,"-","-","-",null,null,null,0,"-",null,null,1,1,0,0,1,805,805,"-","-",805,null,null,null,1,805]
["9.","Canadian","Urban","HRSA",2099,375,7629,1310,0.17321134868421054,19587,1203,6.1418287639761066E-2,29315,2888,9.8516118028313157E-2,null,null,6,0,null,"-","-","-",null,null,null,454,51,null,56.627450980392155,8.9019607843137258,"-",null,null,null,1,1,1,2888,1,1,null,null,null,3,null,962.66666666666663,0,"-",null,null,null,0,null,null,"-","-","-",0,null,null,"-","-","-",null,null,null,0,0,0,"-","-","-",0,0,0,"-","-","-",null,null,null,0,0,"-","-",null,null,0,0,0,0,0,0,"-","-","-","-","-","-",null,null,0,0,"-","-",null,null,0,null,null,"-","-","-",null,null,null,0,0,0,"-","-","-",null,null,null,0,"-",null,null,1,1,1,0,1,2888,2888,2888,"-",2888,null,null,null,1,2888]
["10.","Carter","Rural","HRSA",1072,202,5300,1296,0.23509102322661646,9246,676,7.3112697382651956E-2,15618,2174,0.13919836086566781,null,null,7,6,null,362.33333333333331,1.1666666666666667,"-",null,null,null,159,101,null,21.524752475247524,1.5742574257425743,"-",null,null,null,1,1,1,2174,1,1,null,null,null,null,null,"-","-","-",null,null,null,0,null,null,"-","-","-",0,null,null,"-","-","-",null,null,null,0,0,0,"-","-","-",0,0,0,"-","-","-",null,null,null,0,0,"-","-",null,null,1,0,1,0,1,0,2174,"-",1,"-",1,"-",null,null,16,16,135.875,1,null,null,0,null,null,"-","-","-",null,null,null,0,0,0,"-","-","-",null,null,null,0,"-",null,null,1,1,1,1,1,2174,2174,2174,2174,2174,null,null,null,1,2174]
["11.","Cherokee","Rural","HRSA",1009,278,4620,1130,0.25013323858589448,7996,959,0.11993496748374187,13625,2367,0.17372477064220185,null,null,6,10,null,236.7,0.6,"-",null,null,null,178,77,null,30.740259740259742,2.3116883116883118,"-",null,null,null,1,1,1,2367,1,1,null,null,null,null,null,"-","-","-",null,null,null,1,null,null,"-","-","-",54,null,null,"-","-","-",null,null,null,0,0,0,"-","-","-",0,0,0,"-","-","-",null,null,null,0,0,"-","-",null,null,1,0,1,0,1,0,2367,"-",1,"-",1,"-",null,null,10,10,236.7,1,null,null,1,null,null,"-","-","-",null,null,null,0,0,0,"-","-","-",null,null,null,0,"-",null,null,1,1,1,1,1,2367,2367,2367,2367,2367,null,null,null,1,2367]
["12.","Choctaw","Rural","HRSA",346,45,2252,363,0.15704387990762125,3091,152,4.9175024263992236E-2,5689,560,9.8435577430128318E-2,null,null,0,0,null,"-","-","-",null,null,null,39,22,null,25.454545454545453,1.7727272727272727,"-",null,null,null,1,1,1,560,1,1,null,null,null,null,null,"-","-","-",null,null,null,0,null,null,"-","-","-",0,null,null,"-","-","-",null,null,null,0,0,0,"-","-","-",0,0,0,"-","-","-",null,null,null,0,0,"-","-",null,null,0,0,0,0,0,0,"-","-","-","-","-","-",null,null,0,0,"-","-",null,null,0,null,null,"-","-","-",null,null,null,0,0,0,"-","-","-",null,null,null,0,"-",null,null,1,1,0,0,1,560,560,"-","-",560,null,null,null,1,560]
["13.","Cimarron","Rural","HRSA",47,3,137,16,0.10326086956521739,400,14,3.5000000000000003E-2,584,33,5.650684931506849E-2,null,null,0,0,null,"-","-","-",null,null,null,1,0,null,"-","-","-",null,null,null,1,1,1,33,1,1,null,null,null,null,null,"-","-","-",null,null,null,0,null,null,"-","-","-",0,null,null,"-","-","-",null,null,null,0,0,0,"-","-","-",0,0,0,"-","-","-",null,null,null,0,0,"-","-",null,null,0,0,0,0,0,0,"-","-","-","-","-","-",null,null,0,0,"-","-",null,null,0,null,null,"-","-","-",null,null,null,0,0,0,"-","-","-",null,null,null,0,"-",null,null,1,1,0,0,1,33,33,"-","-",33,null,null,null,0,"-"]
["14.","Cleveland","Urban","HRSA",3844,801,15811,4069,0.24777410328160773,32213,1929,5.9882656070530532E-2,51868,6799,0.13108274851546234,null,null,59,55,null,123.61818181818182,1.0727272727272728,"-",null,null,null,1112,289,null,23.525951557093425,3.847750865051903,"-",null,null,null,1,1,1,6799,1,1,null,null,null,null,null,"-","-","-",null,null,null,0,null,null,"-","-","-",0,null,null,"-","-","-",null,null,null,2,2,2,964.5,1,1,107,107,107,18.028037383177569,1,1,null,null,null,1,1,6799,1,null,null,1,0,1,0,1,0,6799,"-",1,"-",1,"-",null,null,140,140,48.564285714285717,1,null,null,0,null,null,"-","-","-",null,null,null,0,0,0,"-","-","-",null,null,null,1,6799,null,null,1,1,1,1,1,6799,6799,6799,6799,6799,null,null,null,1,6799]
["15.","Coal","Rural","HRSA",141,21,670,104,0.15413070283600494,1100,64,5.8181818181818182E-2,1911,189,9.8901098901098897E-2,null,null,1,0,null,"-","-","-",null,null,null,22,10,null,18.899999999999999,2.2000000000000002,"-",null,null,null,1,1,1,189,1,1,null,null,null,null,null,"-","-","-",null,null,null,0,null,null,"-","-","-",0,null,null,"-","-","-",null,null,null,0,0,0,"-","-","-",0,0,0,"-","-","-",null,null,null,0,0,"-","-",null,null,0,0,0,0,0,0,"-","-","-","-","-","-",null,null,0,0,"-","-",null,null,0,null,null,"-","-","-",null,null,null,0,0,0,"-","-","-",null,null,null,0,"-",null,null,1,1,0,0,1,189,189,"-","-",189,null,null,null,1,189]
["16.","Comanche","Urban","HRSA",2069,329,10159,1898,0.18212299640170102,18651,1144,6.1337193716154627E-2,30879,3371,0.10916804300657405,null,null,6,11,null,306.45454545454544,0.54545454545454541,"-",null,null,null,387,90,null,37.455555555555556,4.3,"-",null,null,null,1,1,1,3371,1,1,null,null,null,null,null,"-","-","-",null,null,null,0,null,null,"-","-","-",0,null,null,"-","-","-",null,null,null,0,0,0,"-","-","-",0,0,0,"-","-","-",null,null,null,1,1,3371,1,null,null,2,0,2,0,2,0,1685.5,"-",1,"-",1,"-",null,null,141,141,23.907801418439718,1,null,null,0,null,null,"-","-","-",null,null,null,0,0,0,"-","-","-",null,null,null,1,3371,null,null,1,1,1,0,1,3371,3371,3371,"-",3371,null,null,null,1,3371]
["17.","Cotton","Urban","HRSA",119,14,569,92,0.15406976744186046,942,65,6.9002123142250529E-2,1630,171,0.1049079754601227,null,null,0,0,null,"-","-","-",null,null,null,14,0,null,"-","-","-",null,null,null,1,1,1,171,1,1,null,null,null,null,null,"-","-","-",null,null,null,0,null,null,"-","-","-",0,null,null,"-","-","-",null,null,null,0,0,0,"-","-","-",0,0,0,"-","-","-",null,null,null,0,0,"-","-",null,null,0,0,0,0,0,0,"-","-","-","-","-","-",null,null,0,0,"-","-",null,null,0,null,null,"-","-","-",null,null,null,0,0,0,"-","-","-",null,null,null,0,"-",null,null,1,1,0,0,1,171,171,"-","-",171,null,null,null,0,"-"]
["18.","Craig","Rural","HRSA",320,157,1901,731,0.39981990094552006,2576,616,0.2391304347826087,4797,1504,0.31352928913904526,null,null,2,2,null,752,{"$f":"IFERROR(R27/S27,\"-\")","v":1},"-",null,null,null,45,30,null,50.133333333333333,{"$f":"IFERROR(AA27/AB27,\"-\")","v":1.5},"-",null,null,null,1,1,1,1504,{"$f":"IFERROR(AJ27/AK27,\"-\")","v":1},1,null,null,null,null,null,"-",{"$f":"IFERROR(AR27/AS27,\"-\")","v":"-"},"-",null,null,null,4,null,null,"-","-","-",198,null,null,"-","-","-",null,null,null,0,0,0,"-","-","-",0,0,0,"-","-","-",null,null,null,0,0,"-","-",null,null,0,0,0,0,0,0,"-","-",{"$f":"IFERROR(CK27/CM27,\"-\")","v":"-"},"-","-","-",null,null,0,0,"-","-",null,null,4,null,null,"-",{"$f":"IFERROR(DE27/DF27,\"-\")","v":"-"},"-",null,null,null,0,0,0,"-","-","-",null,null,null,0,"-",null,null,1,1,1,0,1,1504,1504,1504,"-",1504,null,null,null,1,1504]
["19.","Creek","Urban","HRSA",1410,429,6586,1810,0.28001500750375186,12082,1877,0.15535507366330079,20078,4116,0.20500049805757545,null,null,1,2,null,2058,0.5,"-",null,null,null,136,51,null,80.705882352941174,2.6666666666666665,"-",null,null,null,1,1,1,4116,1,1,null,null,null,null,null,"-","-","-",null,null,null,0,null,null,"-","-","-",0,null,null,"-","-","-",null,null,null,0,0,0,"-","-","-",0,0,0,"-","-","-",null,null,null,0,0,"-","-",null,null,0,0,0,0,0,0,"-","-","-","-","-","-",null,null,0,0,"-","-",null,null,0,null,null,"-","-","-",null,null,null,0,0,0,"-","-","-",null,null,null,0,"-",null,null,1,1,1,1,1,4116,4116,4116,4116,4116,null,null,null,0,"-"]
["20.","Custer","Rural","HRSA",571,111,2161,490,0.21998535871156663,4760,386,8.1092436974789919E-2,7492,987,0.13174052322477309,null,null,1,1,null,987,1,"-",null,null,null,104,32,null,30.84375,3.25,"-",null,null,null,1,1,1,987,1,1,null,null,null,null,null,"-","-","-",null,null,null,0,null,null,"-","-","-",0,null,null,"-","-","-",null,null,null,0,0,0,"-","-","-",0,0,0,"-","-","-",null,null,null,0,0,"-","-",null,null,0,0,0,0,0,0,"-","-","-","-","-","-",null,null,0,0,"-","-",null,null,0,null,null,"-","-","-",null,null,null,0,0,0,"-","-","-",null,null,null,0,"-",null,null,1,1,1,1,1,987,987,987,987,987,null,null,null,0,"-"]
["21.","Delaware","Rural","HRSA",770,261,4073,1043,0.26925459425975634,6340,1090,0.1719242902208202,11183,2394,0.21407493516945364,null,null,1,1,null,2394,1,"-",null,null,null,67,31,null,77.225806451612897,2.161290322580645,"-",null,null,null,1,1,1,2394,1,1,null,null,null,null,null,"-","-","-",null,null,null,0,null,null,"-","-","-",0,null,null,"-","-","-",null,null,null,0,0,0,"-","-","-",0,0,0,"-","-","-",null,null,null,0,0,"-","-",null,null,0,0,0,0,0,0,"-","-","-","-","-","-",null,null,0,0,"-","-",null,null,0,null,null,"-","-","-",null,null,null,0,0,0,"-","-","-",null,null,null,0,"-",null,null,1,1,0,0,1,2394,2394,"-","-",2394,null,null,null,1,2394]
["22.","Dewey","Rural","HRSA",90,17,310,63,0.2,613,49,7.9934747145187598E-2,1013,129,0.12734452122408688,null,null,0,0,null,"-","-","-",null,null,null,5,0,null,"-","-","-",null,null,null,1,1,1,129,1,1,null,null,null,null,null,"-","-","-",null,null,null,0,null,null,"-","-","-",0,null,null,"-","-","-",null,null,null,0,0,0,"-","-","-",0,0,0,"-","-","-",null,null,null,0,0,"-","-",null,null,0,0,0,0,0,0,"-","-","-","-","-","-",null,null,0,0,"-","-",null,null,0,null,null,"-","-","-",null,null,null,0,0,0,"-","-","-",null,null,null,0,"-",null,null,1,1,0,0,1,129,129,"-","-",129,null,null,null,1,129]
["23.","Ellis","Rural","HRSA",55,12,241,48,0.20270270270270271,469,43,9.1684434968017064E-2,765,103,0.13464052287581699,null,null,0,1,null,103,0,"-",null,null,null,7,0,null,"-","-","-",null,null,null,1,1,1,103,1,1,null,null,null,null,null,"-","-","-",null,null,null,0,null,null,"-","-","-",0,null,null,"-","-","-",null,null,null,0,0,0,"-","-","-",0,0,0,"-","-","-",null,null,null,0,0,"-","-",null,null,0,0,0,0,0,0,"-","-","-","-","-","-",null,null,0,0,"-","-",null,null,0,null,null,"-","-","-",null,null,null,0,0,0,"-","-","-",null,null,null,0,"-",null,null,1,1,0,0,1,103,103,"-","-",103,null,null,null,0,"-"]
["24.","Garfield","Rural","HRSA",1235,168,5108,1064,0.19422985968784487,10727,387,3.6077188403094991E-2,17070,1619,9.4844756883421213E-2,null,null,4,2,null,809.5,2,"-",null,null,null,233,71,null,22.802816901408452,3.2816901408450705,"-",null,null,null,1,1,1,1619,1,1,null,null,null,null,null,"-","-","-",null,null,null,0,null,null,"-","-","-",0,null,null,"-","-","-",null,null,null,0,0,0,"-","-","-",0,0,0,"-","-","-",null,null,null,0,0,"-","-",null,null,1,0,1,0,1,0,1619,"-",1,"-",1,"-",null,null,62,62,26.112903225806452,1,null,null,0,null,null,"-","-","-",null,null,null,0,0,0,"-","-","-",null,null,null,0,"-",null,null,1,1,1,0,1,1619,1619,1619,"-",1619,null,null,null,1,1619]
["25.","Garvin","Rural","HRSA",596,116,2851,585,0.20336524514070206,5199,373,7.1744566262742837E-2,8646,1074,0.12421929215822346,null,null,0,0,null,"-","-","-",null,null,null,56,33,null,32.545454545454547,1.696969696969697,"-",null,null,null,1,1,1,1074,1,1,null,null,null,null,null,"-","-","-",null,null,null,0,null,null,"-","-","-",0,null,null,"-","-","-",null,null,null,0,0,0,"-","-","-",0,0,0,"-","-","-",null,null,null,0,0,"-","-",null,null,0,0,0,0,0,0,"-","-","-","-","-","-",null,null,0,0,"-","-",null,null,0,null,null,"-","-","-",null,null,null,0,0,0,"-","-","-",null,null,null,0,"-",null,null,1,1,0,0,1,1074,1074,"-","-",1074,null,null,null,1,1074]
["26.","Grady","Urban","HRSA",822,165,3914,935,{"$f":"IFERROR((F35+H35)/(E35+G35),\"-\")","v":0.23226351351351351},6636,425,{"$f":"IFERROR(K35/J35,\"-\")","v":6.4044605183845693E-2},{"$f":"E35+G35+J35","v":11372},1525,{"$f":"IFERROR(N35/M35,\"-\")","v":0.13410130144213858},null,null,2,0,null,{"$f":"IFERROR(N35/S35,\"-\")","v":"-"},{"$f":"IFERROR(R35/S35,\"-\")","v":"-"},"-",null,null,null,86,18,null,{"$f":"IFERROR(N35/AB35,\"-\")","v":84.722222222222229},{"$f":"IFERROR(AA35/AB35,\"-\")","v":4.7777777777777777},"-",null,null,null,1,1,1,{"$f":"IFERROR(N35/AK35,\"-\")","v":1525},{"$f":"IFERROR(AJ35/AK35,\"-\")","v":1},1,null,null,null,null,null,{"$f":"IFERROR(N35/AS35,\"-\")","v":"-"},{"$f":"IFERROR(AR35/AS35,\"-\")","v":"-"},"-",null,null,null,0,null,null,{"$f":"IFERROR((F35+H35)/BB35,\"-\")","v":"-"},{"$f":"IFERROR(BA35/BB35,\"-\")","v":"-"},"-",0,null,null,{"$f":"IFERROR((F35+H35)/BH35,\"-\")","v":"-"},{"$f":"IFERROR(BG35/BH35,\"-\")","v":"-"},"-",null,null,null,0,0,0,{"$f":"IFERROR(K35/BQ35,\"-\")","v":"-"},{"$f":"IFERROR(BP35/BQ35,\"-\")","v":"-"},"-",0,0,0,{"$f":"IFERROR(K35/BX35,\"-\")","v":"-"},{"$f":"IFERROR(BV35/BW35,\"-\")","v":"-"},"-",null,null,null,0,0,{"$f":"IFERROR(N35/CF35,\"-\")","v":"-"},{"$f":"IFERROR(CE35/CF35,\"-\")","v":"-"},null,null,0,0,0,0,0,0,{"$f":"IFERROR(N35/CM35,\"-\")","v":"-"},{"$f":"IFERROR(N35/CN35,\"-\")","v":"-"},{"$f":"IFERROR(CK35/CM35,\"-\")","v":"-"},"-","-","-",null,null,0,0,{"$f":"IFERROR(N35/CZ35,\"-\")","v":"-"},{"$f":"IFERROR(CY35/CZ35,\"-\")","v":"-"},null,null,0,null,null,{"$f":"IFERROR((F35+H35)/DF35,\"-\")","v":"-"},{"$f":"IFERROR(DE35/DF35,\"-\")","v":"-"},"-",null,null,null,0,0,0,"-","-","-",null,null,null,0,"-",null,null,1,1,0,0,1,1525,1525,"-","-",1525,null,null,null,1,1525]
["27.","Grant","Rural","HRSA",77,12,288,57,0.18904109589041096,500,20,0.04,865,89,0.10289017341040463,null,null,0,0,null,"-","-","-",null,null,null,6,0,null,"-","-","-",null,null,null,1,1,1,89,1,1,null,null,null,null,null,"-","-","-",null,null,null,0,null,null,"-","-","-",0,null,null,"-","-","-",null,null,null,0,0,0,"-","-","-",0,0,0,"-","-","-",null,null,null,0,0,"-","-",null,null,0,0,0,0,0,0,"-","-","-","-","-","-",null,null,0,0,"-","-",null,null,0,null,null,"-","-","-",null,null,null,0,0,0,"-","-","-",null,null,null,0,"-",null,null,1,1,0,0,1,89,89,"-","-",89,null,null,null,1,89]
["28.","Greer","Rural","HRSA",95,21,728,144,0.20048602673147023,939,117,0.12460063897763578,1762,282,0.16004540295119182,null,null,0,1,null,282,0,"-",null,null,null,4,0,null,"-","-","-",null,null,null,1,1,1,282,1,1,null,null,null,null,null,"-","-","-",null,null,null,0,null,null,"-","-","-",0,null,null,"-","-","-",null,null,null,0,0,0,"-","-","-",0,0,0,"-","-","-",null,null,null,0,0,"-","-",null,null,0,0,0,0,0,0,"-","-","-","-","-","-",null,null,0,0,"-","-",null,null,0,null,null,"-","-","-",null,null,null,0,0,0,"-","-","-",null,null,null,0,"-",null,null,1,1,0,0,1,282,282,"-","-",282,null,null,null,0,"-"]
["29.","Harmon","Rural","HRSA",68,11,367,38,0.11264367816091954,492,15,3.048780487804878E-2,927,64,6.9039913700107869E-2,null,null,0,0,null,"-","-","-",null,null,null,3,3,null,21.333333333333332,1,"-",null,null,null,1,1,1,64,1,1,null,null,null,null,null,"-","-","-",null,null,null,0,null,null,"-","-","-",0,null,null,"-","-","-",null,null,null,0,0,0,"-","-","-",0,0,0,"-","-","-",null,null,null,0,0,"-","-",null,null,0,0,0,0,0,0,"-","-","-","-","-","-",null,null,0,0,"-","-",null,null,0,null,null,"-","-","-",null,null,null,0,0,0,"-","-","-",null,null,null,0,"-",null,null,1,1,0,0,1,64,64,"-","-",64,null,null,null,1,64]
["30.","Harper","Rural","HRSA",49,6,171,31,0.16818181818181818,494,38,7.6923076923076927E-2,{"$f":"E39+G39+J39","v":714},{"$f":"F39+H39+K39","v":75},{"$f":"IFERROR(N39/M39,\"-\")","v":0.10504201680672269},null,null,0,0,null,{"$f":"IFERROR(N39/S39,\"-\")","v":"-"},{"$f":"IFERROR(R39/S39,\"-\")","v":"-"},{"$f":"IFERROR(S39/T39,\"-\")","v":"-"},null,null,null,6,0,null,{"$f":"IFERROR(N39/AB39,\"-\")","v":"-"},{"$f":"IFERROR(AA39/AB39,\"-\")","v":"-"},{"$f":"IFERROR(AB39/AC39,\"-\")","v":"-"},null,null,null,1,1,1,{"$f":"IFERROR(N39/AK39,\"-\")","v":75},{"$f":"IFERROR(AJ39/AK39,\"-\")","v":1},{"$f":"IFERROR(AK39/AL39,\"-\")","v":1},null,null,null,null,null,{"$f":"IFERROR(N39/AS39,\"-\")","v":"-"},{"$f":"IFERROR(AR39/AS39,\"-\")","v":"-"},{"$f":"IFERROR(AS39/AT39,\"-\")","v":"-"},null,null,null,0,null,null,{"$f":"IFERROR((F39+H39)/BB39,\"-\")","v":"-"},{"$f":"IFERROR(BA39/BB39,\"-\")","v":"-"},{"$f":"IFERROR(BB39/BC39,\"-\")","v":"-"},0,null,null,"-",{"$f":"IFERROR(BG39/BH39,\"-\")","v":"-"},{"$f":"IFERROR(BH39/BI39,\"-\")","v":"-"},null,null,null,0,0,0,"-",{"$f":"IFERROR(BP39/BQ39,\"-\")","v":"-"},{"$f":"IFERROR(BQ39/BR39,\"-\")","v":"-"},0,0,0,"-",{"$f":"IFERROR(BV39/BW39,\"-\")","v":"-"},{"$f":"IFERROR(BW39/BX39,\"-\")","v":"-"},null,null,null,0,0,{"$f":"IFERROR(N39/CF39,\"-\")","v":"-"},"-",null,null,0,0,0,0,0,0,"-","-",{"$f":"IFERROR(CK39/CM39,\"-\")","v":"-"},{"$f":"IFERROR(CL39/CN39,\"-\")","v":"-"},{"$f":"IFERROR(CM39/CO39,\"-\")","v":"-"},{"$f":"IFERROR(CN39/CP39,\"-\")","v":"-"},null,null,0,0,"-","-",null,null,0,null,null,"-",{"$f":"IFERROR(DE39/DF39,\"-\")","v":"-"},{"$f":"IFERROR(DF39/DG39,\"-\")","v":"-"},null,null,null,0,0,0,{"$f":"IFERROR(N39/DO39,\"-\")","v":"-"},{"$f":"IFERROR(DN39/DO39,\"-\")","v":"-"},{"$f":"IFERROR(DO39/DP39,\"-\")","v":"-"},null,null,null,0,{"$f":"IFERROR(N39/DW39,\"-\")","v":"-"},null,null,1,1,0,0,1,{"$f":"IFERROR(N39/EA39,\"-\")","v":75},{"$f":"IFERROR(N39/EB39,\"-\")","v":75},{"$f":"IFERROR(N39/EC39,\"-\")","v":"-"},{"$f":"IFERROR(N39/ED39,\"-\")","v":"-"},{"$f":"IFERROR(N39/EE39,\"-\")","v":75},null,null,null,0,{"$f":"IFERROR(N39/EN39,\"-\")","v":"-"}]
["31.","Haskell","Rural","HRSA",303,53,1633,272,0.16787190082644629,2442,167,6.8386568386568383E-2,{"$f":"E40+G40+J40","v":4378},{"$f":"F40+H40+K40","v":492},{"$f":"IFERROR(N40/M40,\"-\")","v":0.11238008222932847},null,null,2,2,null,{"$f":"IFERROR(N40/S40,\"-\")","v":246},{"$f":"IFERROR(R40/S40,\"-\")","v":1},{"$f":"IFERROR(S40/T40,\"-\")","v":"-"},null,null,null,25,13,null,{"$f":"IFERROR(N40/AB40,\"-\")","v":37.846153846153847},{"$f":"IFERROR(AA40/AB40,\"-\")","v":1.9230769230769231},{"$f":"IFERROR(AB40/AC40,\"-\")","v":"-"},null,null,null,1,1,1,{"$f":"IFERROR(N40/AK40,\"-\")","v":492},{"$f":"IFERROR(AJ40/AK40,\"-\")","v":1},{"$f":"IFERROR(AK40/AL40,\"-\")","v":1},null,null,null,null,null,{"$f":"IFERROR(N40/AS40,\"-\")","v":"-"},{"$f":"IFERROR(AR40/AS40,\"-\")","v":"-"},{"$f":"IFERROR(AS40/AT40,\"-\")","v":"-"},null,null,null,0,null,null,{"$f":"IFERROR((F40+H40)/BB40,\"-\")","v":"-"},{"$f":"IFERROR(BA40/BB40,\"-\")","v":"-"},{"$f":"IFERROR(BB40/BC40,\"-\")","v":"-"},0,null,null,"-",{"$f":"IFERROR(BG40/BH40,\"-\")","v":"-"},{"$f":"IFERROR(BH40/BI40,\"-\")","v":"-"},null,null,null,0,0,0,"-",{"$f":"IFERROR(BP40/BQ40,\"-\")","v":"-"},{"$f":"IFERROR(BQ40/BR40,\"-\")","v":"-"},0,0,0,"-",{"$f":"IFERROR(BV40/BW40,\"-\")","v":"-"},{"$f":"IFERROR(BW40/BX40,\"-\")","v":"-"},null,null,null,0,0,{"$f":"IFERROR(N40/CF40,\"-\")","v":"-"},"-",null,null,0,0,0,0,0,0,"-","-",{"$f":"IFERROR(CK40/CM40,\"-\")","v":"-"},{"$f":"IFERROR(CL40/CN40,\"-\")","v":"-"},{"$f":"IFERROR(CM40/CO40,\"-\")","v":"-"},{"$f":"IFERROR(CN40/CP40,\"-\")","v":"-"},null,null,0,0,"-","-",null,null,0,null,null,"-",{"$f":"IFERROR(DE40/DF40,\"-\")","v":"-"},{"$f":"IFERROR(DF40/DG40,\"-\")","v":"-"},null,null,null,0,0,0,{"$f":"IFERROR(N40/DO40,\"-\")","v":"-"},{"$f":"IFERROR(DN40/DO40,\"-\")","v":"-"},{"$f":"IFERROR(DO40/DP40,\"-\")","v":"-"},null,null,null,0,{"$f":"IFERROR(N40/DW40,\"-\")","v":"-"},null,null,1,1,0,0,1,{"$f":"IFERROR(N40/EA40,\"-\")","v":492},{"$f":"IFERROR(N40/EB40,\"-\")","v":492},{"$f":"IFERROR(N40/EC40,\"-\")","v":"-"},{"$f":"IFERROR(N40/ED40,\"-\")","v":"-"},{"$f":"IFERROR(N40/EE40,\"-\")","v":492},null,null,null,1,{"$f":"IFERROR(N40/EN40,\"-\")","v":492}]
["32.","Hughes","Rural","HRSA",323,41,1721,412,0.22162426614481409,2439,167,6.8470684706847071E-2,{"$f":"E41+G41+J41","v":4483},{"$f":"F41+H41+K41","v":620},{"$f":"IFERROR(N41/M41,\"-\")","v":0.13830024537140309},null,null,0,1,null,{"$f":"IFERROR(N41/S41,\"-\")","v":620},{"$f":"IFERROR(R41/S41,\"-\")","v":0},{"$f":"IFERROR(S41/T41,\"-\")","v":"-"},null,null,null,36,2,null,{"$f":"IFERROR(N41/AB41,\"-\")","v":310},{"$f":"IFERROR(AA41/AB41,\"-\")","v":18},{"$f":"IFERROR(AB41/AC41,\"-\")","v":"-"},null,null,null,1,1,1,{"$f":"IFERROR(N41/AK41,\"-\")","v":620},{"$f":"IFERROR(AJ41/AK41,\"-\")","v":1},{"$f":"IFERROR(AK41/AL41,\"-\")","v":1},null,null,null,null,null,{"$f":"IFERROR(N41/AS41,\"-\")","v":"-"},{"$f":"IFERROR(AR41/AS41,\"-\")","v":"-"},{"$f":"IFERROR(AS41/AT41,\"-\")","v":"-"},null,null,null,0,null,null,{"$f":"IFERROR((F41+H41)/BB41,\"-\")","v":"-"},{"$f":"IFERROR(BA41/BB41,\"-\")","v":"-"},{"$f":"IFERROR(BB41/BC41,\"-\")","v":"-"},0,null,null,"-",{"$f":"IFERROR(BG41/BH41,\"-\")","v":"-"},{"$f":"IFERROR(BH41/BI41,\"-\")","v":"-"},null,null,null,0,0,0,"-",{"$f":"IFERROR(BP41/BQ41,\"-\")","v":"-"},{"$f":"IFERROR(BQ41/BR41,\"-\")","v":"-"},0,0,0,"-",{"$f":"IFERROR(BV41/BW41,\"-\")","v":"-"},{"$f":"IFERROR(BW41/BX41,\"-\")","v":"-"},null,null,null,0,0,{"$f":"IFERROR(N41/CF41,\"-\")","v":"-"},"-",null,null,0,0,0,0,0,0,"-","-",{"$f":"IFERROR(CK41/CM41,\"-\")","v":"-"},{"$f":"IFERROR(CL41/CN41,\"-\")","v":"-"},{"$f":"IFERROR(CM41/CO41,\"-\")","v":"-"},{"$f":"IFERROR(CN41/CP41,\"-\")","v":"-"},null,null,0,0,"-","-",null,null,0,null,null,"-",{"$f":"IFERROR(DE41/DF41,\"-\")","v":"-"},{"$f":"IFERROR(DF41/DG41,\"-\")","v":"-"},null,null,null,0,0,0,{"$f":"IFERROR(N41/DO41,\"-\")","v":"-"},{"$f":"IFERROR(DN41/DO41,\"-\")","v":"-"},{"$f":"IFERROR(DO41/DP41,\"-\")","v":"-"},null,null,null,0,{"$f":"IFERROR(N41/DW41,\"-\")","v":"-"},null,null,1,1,0,0,1,{"$f":"IFERROR(N41/EA41,\"-\")","v":620},{"$f":"IFERROR(N41/EB41,\"-\")","v":620},{"$f":"IFERROR(N41/EC41,\"-\")","v":"-"},{"$f":"IFERROR(N41/ED41,\"-\")","v":"-"},{"$f":"IFERROR(N41/EE41,\"-\")","v":620},null,null,null,0,{"$f":"IFERROR(N41/EN41,\"-\")","v":"-"}]
["33.","Jackson","Rural","HRSA",404,80,2204,415,0.1898006134969325,4118,296,7.1879553181155895E-2,{"$f":"E42+G42+J42","v":6726},{"$f":"F42+H42+K42","v":791},{"$f":"IFERROR(N42/M42,\"-\")","v":0.11760333035979779},null,null,0,0,null,{"$f":"IFERROR(N42/S42,\"-\")","v":"-"},{"$f":"IFERROR(R42/S42,\"-\")","v":"-"},{"$f":"IFERROR(S42/T42,\"-\")","v":"-"},null,null,null,49,6,null,{"$f":"IFERROR(N42/AB42,\"-\")","v":131.83333333333334},{"$f":"IFERROR(AA42/AB42,\"-\")","v":8.1666666666666661},{"$f":"IFERROR(AB42/AC42,\"-\")","v":"-"},null,null,null,1,1,1,{"$f":"IFERROR(N42/AK42,\"-\")","v":791},{"$f":"IFERROR(AJ42/AK42,\"-\")","v":1},{"$f":"IFERROR(AK42/AL42,\"-\")","v":1},null,null,null,null,null,{"$f":"IFERROR(N42/AS42,\"-\")","v":"-"},{"$f":"IFERROR(AR42/AS42,\"-\")","v":"-"},{"$f":"IFERROR(AS42/AT42,\"-\")","v":"-"},null,null,null,0,null,null,{"$f":"IFERROR((F42+H42)/BB42,\"-\")","v":"-"},{"$f":"IFERROR(BA42/BB42,\"-\")","v":"-"},{"$f":"IFERROR(BB42/BC42,\"-\")","v":"-"},0,null,null,"-",{"$f":"IFERROR(BG42/BH42,\"-\")","v":"-"},{"$f":"IFERROR(BH42/BI42,\"-\")","v":"-"},null,null,null,0,0,0,"-",{"$f":"IFERROR(BP42/BQ42,\"-\")","v":"-"},{"$f":"IFERROR(BQ42/BR42,\"-\")","v":"-"},0,0,0,"-",{"$f":"IFERROR(BV42/BW42,\"-\")","v":"-"},{"$f":"IFERROR(BW42/BX42,\"-\")","v":"-"},null,null,null,0,0,{"$f":"IFERROR(N42/CF42,\"-\")","v":"-"},"-",null,null,0,0,0,0,0,0,"-","-",{"$f":"IFERROR(CK42/CM42,\"-\")","v":"-"},{"$f":"IFERROR(CL42/CN42,\"-\")","v":"-"},{"$f":"IFERROR(CM42/CO42,\"-\")","v":"-"},{"$f":"IFERROR(CN42/CP42,\"-\")","v":"-"},null,null,0,0,"-","-",null,null,0,null,null,"-",{"$f":"IFERROR(DE42/DF42,\"-\")","v":"-"},{"$f":"IFERROR(DF42/DG42,\"-\")","v":"-"},null,null,null,0,0,0,{"$f":"IFERROR(N42/DO42,\"-\")","v":"-"},{"$f":"IFERROR(DN42/DO42,\"-\")","v":"-"},{"$f":"IFERROR(DO42/DP42,\"-\")","v":"-"},null,null,null,0,{"$f":"IFERROR(N42/DW42,\"-\")","v":"-"},null,null,1,1,0,0,1,{"$f":"IFERROR(N42/EA42,\"-\")","v":791},{"$f":"IFERROR(N42/EB42,\"-\")","v":791},{"$f":"IFERROR(N42/EC42,\"-\")","v":"-"},{"$f":"IFERROR(N42/ED42,\"-\")","v":"-"},{"$f":"IFERROR(N42/EE42,\"-\")","v":791},null,null,null,1,{"$f":"IFERROR(N42/EN42,\"-\")","v":791}]
["34.","Jefferson","Rural","HRSA",155,17,733,105,0.1373873873873874,1199,87,7.2560467055879901E-2,{"$f":"E43+G43+J43","v":2087},{"$f":"F43+H43+K43","v":209},{"$f":"IFERROR(N43/M43,\"-\")","v":0.10014374700527072},null,null,0,0,null,{"$f":"IFERROR(N43/S43,\"-\")","v":"-"},{"$f":"IFERROR(R43/S43,\"-\")","v":"-"},{"$f":"IFERROR(S43/T43,\"-\")","v":"-"},null,null,null,4,0,null,{"$f":"IFERROR(N43/AB43,\"-\")","v":"-"},{"$f":"IFERROR(AA43/AB43,\"-\")","v":"-"},{"$f":"IFERROR(AB43/AC43,\"-\")","v":"-"},null,null,null,1,1,1,{"$f":"IFERROR(N43/AK43,\"-\")","v":209},{"$f":"IFERROR(AJ43/AK43,\"-\")","v":1},{"$f":"IFERROR(AK43/AL43,\"-\")","v":1},null,null,null,null,null,{"$f":"IFERROR(N43/AS43,\"-\")","v":"-"},{"$f":"IFERROR(AR43/AS43,\"-\")","v":"-"},{"$f":"IFERROR(AS43/AT43,\"-\")","v":"-"},null,null,null,0,null,null,{"$f":"IFERROR((F43+H43)/BB43,\"-\")","v":"-"},{"$f":"IFERROR(BA43/BB43,\"-\")","v":"-"},{"$f":"IFERROR(BB43/BC43,\"-\")","v":"-"},0,null,null,"-",{"$f":"IFERROR(BG43/BH43,\"-\")","v":"-"},{"$f":"IFERROR(BH43/BI43,\"-\")","v":"-"},null,null,null,0,0,0,"-",{"$f":"IFERROR(BP43/BQ43,\"-\")","v":"-"},{"$f":"IFERROR(BQ43/BR43,\"-\")","v":"-"},0,0,0,"-",{"$f":"IFERROR(BV43/BW43,\"-\")","v":"-"},{"$f":"IFERROR(BW43/BX43,\"-\")","v":"-"},null,null,null,0,0,{"$f":"IFERROR(N43/CF43,\"-\")","v":"-"},"-",null,null,0,0,0,0,0,0,"-","-",{"$f":"IFERROR(CK43/CM43,\"-\")","v":"-"},{"$f":"IFERROR(CL43/CN43,\"-\")","v":"-"},{"$f":"IFERROR(CM43/CO43,\"-\")","v":"-"},{"$f":"IFERROR(CN43/CP43,\"-\")","v":"-"},null,null,0,0,"-","-",null,null,0,null,null,"-",{"$f":"IFERROR(DE43/DF43,\"-\")","v":"-"},{"$f":"IFERROR(DF43/DG43,\"-\")","v":"-"},null,null,null,0,0,0,{"$f":"IFERROR(N43/DO43,\"-\")","v":"-"},{"$f":"IFERROR(DN43/DO43,\"-\")","v":"-"},{"$f":"IFERROR(DO43/DP43,\"-\")","v":"-"},null,null,null,0,{"$f":"IFERROR(N43/DW43,\"-\")","v":"-"},null,null,1,1,0,0,1,{"$f":"IFERROR(N43/EA43,\"-\")","v":209},{"$f":"IFERROR(N43/EB43,\"-\")","v":209},{"$f":"IFERROR(N43/EC43,\"-\")","v":"-"},{"$f":"IFERROR(N43/ED43,\"-\")","v":"-"},{"$f":"IFERROR(N43/EE43,\"-\")","v":209},null,null,null,0,{"$f":"IFERROR(N43/EN43,\"-\")","v":"-"}]
["35.","Johnston","Rural","HRSA",272,75,1397,297,0.22288795686039545,2060,152,7.3786407766990289E-2,{"$f":"E44+G44+J44","v":3729},{"$f":"F44+H44+K44","v":524},{"$f":"IFERROR(N44/M44,\"-\")","v":0.14052024671493699},null,null,0,0,null,{"$f":"IFERROR(N44/S44,\"-\")","v":"-"},{"$f":"IFERROR(R44/S44,\"-\")","v":"-"},{"$f":"IFERROR(S44/T44,\"-\")","v":"-"},null,null,null,7,19,null,{"$f":"IFERROR(N44/AB44,\"-\")","v":27.578947368421051},{"$f":"IFERROR(AA44/AB44,\"-\")","v":0.36842105263157893},{"$f":"IFERROR(AB44/AC44,\"-\")","v":"-"},null,null,null,1,1,1,{"$f":"IFERROR(N44/AK44,\"-\")","v":524},{"$f":"IFERROR(AJ44/AK44,\"-\")","v":1},{"$f":"IFERROR(AK44/AL44,\"-\")","v":1},null,null,null,null,null,{"$f":"IFERROR(N44/AS44,\"-\")","v":"-"},{"$f":"IFERROR(AR44/AS44,\"-\")","v":"-"},{"$f":"IFERROR(AS44/AT44,\"-\")","v":"-"},null,null,null,0,null,null,{"$f":"IFERROR((F44+H44)/BB44,\"-\")","v":"-"},{"$f":"IFERROR(BA44/BB44,\"-\")","v":"-"},{"$f":"IFERROR(BB44/BC44,\"-\")","v":"-"},0,null,null,"-",{"$f":"IFERROR(BG44/BH44,\"-\")","v":"-"},{"$f":"IFERROR(BH44/BI44,\"-\")","v":"-"},null,null,null,0,0,0,"-",{"$f":"IFERROR(BP44/BQ44,\"-\")","v":"-"},{"$f":"IFERROR(BQ44/BR44,\"-\")","v":"-"},0,0,0,"-",{"$f":"IFERROR(BV44/BW44,\"-\")","v":"-"},{"$f":"IFERROR(BW44/BX44,\"-\")","v":"-"},null,null,null,0,0,{"$f":"IFERROR(N44/CF44,\"-\")","v":"-"},"-",null,null,0,0,0,0,0,0,"-","-",{"$f":"IFERROR(CK44/CM44,\"-\")","v":"-"},{"$f":"IFERROR(CL44/CN44,\"-\")","v":"-"},{"$f":"IFERROR(CM44/CO44,\"-\")","v":"-"},{"$f":"IFERROR(CN44/CP44,\"-\")","v":"-"},null,null,0,0,"-","-",null,null,0,null,null,"-",{"$f":"IFERROR(DE44/DF44,\"-\")","v":"-"},{"$f":"IFERROR(DF44/DG44,\"-\")","v":"-"},null,null,null,0,0,0,{"$f":"IFERROR(N44/DO44,\"-\")","v":"-"},{"$f":"IFERROR(DN44/DO44,\"-\")","v":"-"},{"$f":"IFERROR(DO44/DP44,\"-\")","v":"-"},null,null,null,0,{"$f":"IFERROR(N44/DW44,\"-\")","v":"-"},null,null,1,1,0,0,1,{"$f":"IFERROR(N44/EA44,\"-\")","v":524},{"$f":"IFERROR(N44/EB44,\"-\")","v":524},{"$f":"IFERROR(N44/EC44,\"-\")","v":"-"},{"$f":"IFERROR(N44/ED44,\"-\")","v":"-"},{"$f":"IFERROR(N44/EE44,\"-\")","v":524},null,null,null,1,{"$f":"IFERROR(N44/EN44,\"-\")","v":524}]
["36.","Kay","Rural","HRSA",1037,297,4843,1272,0.26683673469387753,9041,1394,0.15418648379604027,{"$f":"E45+G45+J45","v":14921},{"$f":"F45+H45+K45","v":2963},{"$f":"IFERROR(N45/M45,\"-\")","v":0.19857918370082434},null,null,1,1,null,{"$f":"IFERROR(N45/S45,\"-\")","v":2963},{"$f":"IFERROR(R45/S45,\"-\")","v":1},{"$f":"IFERROR(S45/T45,\"-\")","v":"-"},null,null,null,124,41,null,{"$f":"IFERROR(N45/AB45,\"-\")","v":72.268292682926827},{"$f":"IFERROR(AA45/AB45,\"-\")","v":3.024390243902439},{"$f":"IFERROR(AB45/AC45,\"-\")","v":"-"},null,null,null,1,1,1,{"$f":"IFERROR(N45/AK45,\"-\")","v":2963},{"$f":"IFERROR(AJ45/AK45,\"-\")","v":1},{"$f":"IFERROR(AK45/AL45,\"-\")","v":1},null,null,null,null,null,{"$f":"IFERROR(N45/AS45,\"-\")","v":"-"},{"$f":"IFERROR(AR45/AS45,\"-\")","v":"-"},{"$f":"IFERROR(AS45/AT45,\"-\")","v":"-"},null,null,null,0,null,null,{"$f":"IFERROR((F45+H45)/BB45,\"-\")","v":"-"},{"$f":"IFERROR(BA45/BB45,\"-\")","v":"-"},{"$f":"IFERROR(BB45/BC45,\"-\")","v":"-"},0,null,null,"-",{"$f":"IFERROR(BG45/BH45,\"-\")","v":"-"},{"$f":"IFERROR(BH45/BI45,\"-\")","v":"-"},null,null,null,0,0,0,"-",{"$f":"IFERROR(BP45/BQ45,\"-\")","v":"-"},{"$f":"IFERROR(BQ45/BR45,\"-\")","v":"-"},0,0,0,"-",{"$f":"IFERROR(BV45/BW45,\"-\")","v":"-"},{"$f":"IFERROR(BW45/BX45,\"-\")","v":"-"},null,null,null,0,0,{"$f":"IFERROR(N45/CF45,\"-\")","v":"-"},"-",null,null,0,0,0,0,0,0,"-","-",{"$f":"IFERROR(CK45/CM45,\"-\")","v":"-"},{"$f":"IFERROR(CL45/CN45,\"-\")","v":"-"},{"$f":"IFERROR(CM45/CO45,\"-\")","v":"-"},{"$f":"IFERROR(CN45/CP45,\"-\")","v":"-"},null,null,0,0,"-","-",null,null,0,null,null,"-",{"$f":"IFERROR(DE45/DF45,\"-\")","v":"-"},{"$f":"IFERROR(DF45/DG45,\"-\")","v":"-"},null,null,null,0,0,0,{"$f":"IFERROR(N45/DO45,\"-\")","v":"-"},{"$f":"IFERROR(DN45/DO45,\"-\")","v":"-"},{"$f":"IFERROR(DO45/DP45,\"-\")","v":"-"},null,null,null,0,{"$f":"IFERROR(N45/DW45,\"-\")","v":"-"},null,null,1,1,0,0,1,{"$f":"IFERROR(N45/EA45,\"-\")","v":2963},{"$f":"IFERROR(N45/EB45,\"-\")","v":2963},{"$f":"IFERROR(N45/EC45,\"-\")","v":"-"},{"$f":"IFERROR(N45/ED45,\"-\")","v":"-"},{"$f":"IFERROR(N45/EE45,\"-\")","v":2963},null,null,null,1,{"$f":"IFERROR(N45/EN45,\"-\")","v":2963}]
["37.","Kingfisher","Rural","HRSA",265,42,1037,248,0.2227342549923195,2305,150,6.5075921908893705E-2,{"$f":"E46+G46+J46","v":3607},{"$f":"F46+H46+K46","v":440},{"$f":"IFERROR(N46/M46,\"-\")","v":0.12198502911006376},null,null,1,1,null,{"$f":"IFERROR(N46/S46,\"-\")","v":440},{"$f":"IFERROR(R46/S46,\"-\")","v":1},{"$f":"IFERROR(S46/T46,\"-\")","v":"-"},null,null,null,18,4,null,{"$f":"IFERROR(N46/AB46,\"-\")","v":110},{"$f":"IFERROR(AA46/AB46,\"-\")","v":4.5},{"$f":"IFERROR(AB46/AC46,\"-\")","v":"-"},null,null,null,1,1,1,{"$f":"IFERROR(N46/AK46,\"-\")","v":440},{"$f":"IFERROR(AJ46/AK46,\"-\")","v":1},{"$f":"IFERROR(AK46/AL46,\"-\")","v":1},null,null,null,null,null,{"$f":"IFERROR(N46/AS46,\"-\")","v":"-"},{"$f":"IFERROR(AR46/AS46,\"-\")","v":"-"},{"$f":"IFERROR(AS46/AT46,\"-\")","v":"-"},null,null,null,0,null,null,{"$f":"IFERROR((F46+H46)/BB46,\"-\")","v":"-"},{"$f":"IFERROR(BA46/BB46,\"-\")","v":"-"},{"$f":"IFERROR(BB46/BC46,\"-\")","v":"-"},0,null,null,"-",{"$f":"IFERROR(BG46/BH46,\"-\")","v":"-"},{"$f":"IFERROR(BH46/BI46,\"-\")","v":"-"},null,null,null,0,0,0,"-",{"$f":"IFERROR(BP46/BQ46,\"-\")","v":"-"},{"$f":"IFERROR(BQ46/BR46,\"-\")","v":"-"},0,0,0,"-",{"$f":"IFERROR(BV46/BW46,\"-\")","v":"-"},{"$f":"IFERROR(BW46/BX46,\"-\")","v":"-"},null,null,null,0,0,{"$f":"IFERROR(N46/CF46,\"-\")","v":"-"},"-",null,null,0,0,0,0,0,0,"-","-",{"$f":"IFERROR(CK46/CM46,\"-\")","v":"-"},{"$f":"IFERROR(CL46/CN46,\"-\")","v":"-"},{"$f":"IFERROR(CM46/CO46,\"-\")","v":"-"},{"$f":"IFERROR(CN46/CP46,\"-\")","v":"-"},null,null,0,0,"-","-",null,null,0,null,null,"-",{"$f":"IFERROR(DE46/DF46,\"-\")","v":"-"},{"$f":"IFERROR(DF46/DG46,\"-\")","v":"-"},null,null,null,0,0,0,{"$f":"IFERROR(N46/DO46,\"-\")","v":"-"},{"$f":"IFERROR(DN46/DO46,\"-\")","v":"-"},{"$f":"IFERROR(DO46/DP46,\"-\")","v":"-"},null,null,null,0,{"$f":"IFERROR(N46/DW46,\"-\")","v":"-"},null,null,1,1,0,0,1,{"$f":"IFERROR(N46/EA46,\"-\")","v":440},{"$f":"IFERROR(N46/EB46,\"-\")","v":440},{"$f":"IFERROR(N46/EC46,\"-\")","v":"-"},{"$f":"IFERROR(N46/ED46,\"-\")","v":"-"},{"$f":"IFERROR(N46/EE46,\"-\")","v":440},null,null,null,0,{"$f":"IFERROR(N46/EN46,\"-\")","v":"-"}]
["38.","Kiowa","Rural","HRSA",200,37,1191,288,0.23364485981308411,1544,119,7.7072538860103623E-2,{"$f":"E47+G47+J47","v":2935},{"$f":"F47+H47+K47","v":444},{"$f":"IFERROR(N47/M47,\"-\")","v":0.15127768313458262},null,null,0,0,null,{"$f":"IFERROR(N47/S47,\"-\")","v":"-"},{"$f":"IFERROR(R47/S47,\"-\")","v":"-"},{"$f":"IFERROR(S47/T47,\"-\")","v":"-"},null,null,null,14,5,null,{"$f":"IFERROR(N47/AB47,\"-\")","v":88.8},{"$f":"IFERROR(AA47/AB47,\"-\")","v":2.8},{"$f":"IFERROR(AB47/AC47,\"-\")","v":"-"},null,null,null,1,1,1,{"$f":"IFERROR(N47/AK47,\"-\")","v":444},{"$f":"IFERROR(AJ47/AK47,\"-\")","v":1},{"$f":"IFERROR(AK47/AL47,\"-\")","v":1},null,null,null,null,null,{"$f":"IFERROR(N47/AS47,\"-\")","v":"-"},{"$f":"IFERROR(AR47/AS47,\"-\")","v":"-"},{"$f":"IFERROR(AS47/AT47,\"-\")","v":"-"},null,null,null,0,null,null,{"$f":"IFERROR((F47+H47)/BB47,\"-\")","v":"-"},{"$f":"IFERROR(BA47/BB47,\"-\")","v":"-"},{"$f":"IFERROR(BB47/BC47,\"-\")","v":"-"},0,null,null,"-",{"$f":"IFERROR(BG47/BH47,\"-\")","v":"-"},{"$f":"IFERROR(BH47/BI47,\"-\")","v":"-"},null,null,null,0,0,0,"-",{"$f":"IFERROR(BP47/BQ47,\"-\")","v":"-"},{"$f":"IFERROR(BQ47/BR47,\"-\")","v":"-"},0,0,0,"-",{"$f":"IFERROR(BV47/BW47,\"-\")","v":"-"},{"$f":"IFERROR(BW47/BX47,\"-\")","v":"-"},null,null,null,0,0,{"$f":"IFERROR(N47/CF47,\"-\")","v":"-"},"-",null,null,0,0,0,0,0,0,"-","-",{"$f":"IFERROR(CK47/CM47,\"-\")","v":"-"},{"$f":"IFERROR(CL47/CN47,\"-\")","v":"-"},{"$f":"IFERROR(CM47/CO47,\"-\")","v":"-"},{"$f":"IFERROR(CN47/CP47,\"-\")","v":"-"},null,null,0,0,"-","-",null,null,0,null,null,"-",{"$f":"IFERROR(DE47/DF47,\"-\")","v":"-"},{"$f":"IFERROR(DF47/DG47,\"-\")","v":"-"},null,null,null,0,0,0,{"$f":"IFERROR(N47/DO47,\"-\")","v":"-"},{"$f":"IFERROR(DN47/DO47,\"-\")","v":"-"},{"$f":"IFERROR(DO47/DP47,\"-\")","v":"-"},null,null,null,0,{"$f":"IFERROR(N47/DW47,\"-\")","v":"-"},null,null,1,1,0,0,1,{"$f":"IFERROR(N47/EA47,\"-\")","v":444},{"$f":"IFERROR(N47/EB47,\"-\")","v":444},{"$f":"IFERROR(N47/EC47,\"-\")","v":"-"},{"$f":"IFERROR(N47/ED47,\"-\")","v":"-"},{"$f":"IFERROR(N47/EE47,\"-\")","v":444},null,null,null,0,{"$f":"IFERROR(N47/EN47,\"-\")","v":"-"}]
["39.","Latimer","Rural","HRSA",226,38,1411,262,0.18326206475259621,2177,123,5.6499770326136886E-2,{"$f":"E48+G48+J48","v":3814},{"$f":"F48+H48+K48","v":423},{"$f":"IFERROR(N48/M48,\"-\")","v":0.11090718405873098},null,null,1,0,null,{"$f":"IFERROR(N48/S48,\"-\")","v":"-"},{"$f":"IFERROR(R48/S48,\"-\")","v":"-"},{"$f":"IFERROR(S48/T48,\"-\")","v":"-"},null,null,null,17,0,null,{"$f":"IFERROR(N48/AB48,\"-\")","v":"-"},{"$f":"IFERROR(AA48/AB48,\"-\")","v":"-"},{"$f":"IFERROR(AB48/AC48,\"-\")","v":"-"},null,null,null,1,1,1,{"$f":"IFERROR(N48/AK48,\"-\")","v":423},{"$f":"IFERROR(AJ48/AK48,\"-\")","v":1},{"$f":"IFERROR(AK48/AL48,\"-\")","v":1},null,null,null,null,null,{"$f":"IFERROR(N48/AS48,\"-\")","v":"-"},{"$f":"IFERROR(AR48/AS48,\"-\")","v":"-"},{"$f":"IFERROR(AS48/AT48,\"-\")","v":"-"},null,null,null,0,null,null,{"$f":"IFERROR((F48+H48)/BB48,\"-\")","v":"-"},{"$f":"IFERROR(BA48/BB48,\"-\")","v":"-"},{"$f":"IFERROR(BB48/BC48,\"-\")","v":"-"},0,null,null,"-",{"$f":"IFERROR(BG48/BH48,\"-\")","v":"-"},{"$f":"IFERROR(BH48/BI48,\"-\")","v":"-"},null,null,null,0,0,0,"-",{"$f":"IFERROR(BP48/BQ48,\"-\")","v":"-"},{"$f":"IFERROR(BQ48/BR48,\"-\")","v":"-"},0,0,0,"-",{"$f":"IFERROR(BV48/BW48,\"-\")","v":"-"},{"$f":"IFERROR(BW48/BX48,\"-\")","v":"-"},null,null,null,0,0,{"$f":"IFERROR(N48/CF48,\"-\")","v":"-"},"-",null,null,0,0,0,0,0,0,"-","-",{"$f":"IFERROR(CK48/CM48,\"-\")","v":"-"},{"$f":"IFERROR(CL48/CN48,\"-\")","v":"-"},{"$f":"IFERROR(CM48/CO48,\"-\")","v":"-"},{"$f":"IFERROR(CN48/CP48,\"-\")","v":"-"},null,null,0,0,"-","-",null,null,0,null,null,"-",{"$f":"IFERROR(DE48/DF48,\"-\")","v":"-"},{"$f":"IFERROR(DF48/DG48,\"-\")","v":"-"},null,null,null,0,0,0,{"$f":"IFERROR(N48/DO48,\"-\")","v":"-"},{"$f":"IFERROR(DN48/DO48,\"-\")","v":"-"},{"$f":"IFERROR(DO48/DP48,\"-\")","v":"-"},null,null,null,0,{"$f":"IFERROR(N48/DW48,\"-\")","v":"-"},null,null,1,1,0,0,1,{"$f":"IFERROR(N48/EA48,\"-\")","v":423},{"$f":"IFERROR(N48/EB48,\"-\")","v":423},{"$f":"IFERROR(N48/EC48,\"-\")","v":"-"},{"$f":"IFERROR(N48/ED48,\"-\")","v":"-"},{"$f":"IFERROR(N48/EE48,\"-\")","v":423},null,null,null,0,{"$f":"IFERROR(N48/EN48,\"-\")","v":"-"}]
["40.","Le Flore","Urban","HRSA",1098,177,6095,963,0.15848741832336993,9472,663,6.9995777027027029E-2,{"$f":"E49+G49+J49","v":16665},{"$f":"F49+H49+K49","v":1803},{"$f":"IFERROR(N49/M49,\"-\")","v":0.1081908190819082},null,null,1,2,null,{"$f":"IFERROR(N49/S49,\"-\")","v":901.5},{"$f":"IFERROR(R50/S49,\"-\")","v":0.5},{"$f":"IFERROR(S49/T49,\"-\")","v":"-"},null,null,null,127,9,null,{"$f":"IFERROR(N49/AB49,\"-\")","v":200.33333333333334},{"$f":"IFERROR(AA49/AB49,\"-\")","v":14.111111111111111},{"$f":"IFERROR(AB49/AC49,\"-\")","v":"-"},null,null,null,1,1,1,{"$f":"IFERROR(N49/AK49,\"-\")","v":1803},{"$f":"IFERROR(AJ49/AK49,\"-\")","v":1},{"$f":"IFERROR(AK49/AL49,\"-\")","v":1},null,null,null,null,null,{"$f":"IFERROR(N49/AS49,\"-\")","v":"-"},{"$f":"IFERROR(AR49/AS49,\"-\")","v":"-"},{"$f":"IFERROR(AS49/AT49,\"-\")","v":"-"},null,null,null,0,null,null,{"$f":"IFERROR((F49+H49)/BB49,\"-\")","v":"-"},{"$f":"IFERROR(BA49/BB49,\"-\")","v":"-"},{"$f":"IFERROR(BB49/BC49,\"-\")","v":"-"},0,null,null,"-",{"$f":"IFERROR(BG49/BH49,\"-\")","v":"-"},{"$f":"IFERROR(BH49/BI49,\"-\")","v":"-"},null,null,null,0,0,0,"-",{"$f":"IFERROR(BP49/BQ49,\"-\")","v":"-"},{"$f":"IFERROR(BQ49/BR49,\"-\")","v":"-"},0,0,0,"-",{"$f":"IFERROR(BV49/BW49,\"-\")","v":"-"},{"$f":"IFERROR(BW49/BX49,\"-\")","v":"-"},null,null,null,0,0,{"$f":"IFERROR(N49/CF49,\"-\")","v":"-"},"-",null,null,0,1,0,1,0,1,"-",1803,{"$f":"IFERROR(CK49/CM49,\"-\")","v":"-"},{"$f":"IFERROR(CL49/CN49,\"-\")","v":1},{"$f":"IFERROR(CM49/CO49,\"-\")","v":"-"},{"$f":"IFERROR(CN49/CP49,\"-\")","v":1},null,null,10,10,180.3,1,null,null,0,null,null,"-",{"$f":"IFERROR(DE49/DF49,\"-\")","v":"-"},{"$f":"IFERROR(DF49/DG49,\"-\")","v":"-"},null,null,null,0,0,0,{"$f":"IFERROR(N49/DO49,\"-\")","v":"-"},{"$f":"IFERROR(DN49/DO49,\"-\")","v":"-"},{"$f":"IFERROR(DO49/DP49,\"-\")","v":"-"},null,null,null,0,{"$f":"IFERROR(N49/DW49,\"-\")","v":"-"},null,null,1,1,0,0,1,{"$f":"IFERROR(N49/EA49,\"-\")","v":1803},{"$f":"IFERROR(N49/EB49,\"-\")","v":1803},{"$f":"IFERROR(N49/EC49,\"-\")","v":"-"},{"$f":"IFERROR(N49/ED49,\"-\")","v":"-"},{"$f":"IFERROR(N49/EE49,\"-\")","v":1803},null,null,null,1,{"$f":"IFERROR(N49/EN49,\"-\")","v":1803}]
["41.","Lincoln","Urban","HRSA",682,153,3118,823,0.25684210526315787,5497,427,7.7678733854829901E-2,{"$f":"E50+G50+J50","v":9297},{"$f":"F50+H50+K50","v":1403},{"$f":"IFERROR(N50/M50,\"-\")","v":0.15090889534258362},null,null,1,1,null,{"$f":"IFERROR(N50/S50,\"-\")","v":1403},{"$f":"IFERROR(#REF!/S50,\"-\")","v":"-"},{"$f":"IFERROR(S50/T50,\"-\")","v":"-"},null,null,null,65,8,null,{"$f":"IFERROR(N50/AB50,\"-\")","v":175.375},{"$f":"IFERROR(AA50/AB50,\"-\")","v":8.125},{"$f":"IFERROR(AB50/AC50,\"-\")","v":"-"},null,null,null,1,1,1,{"$f":"IFERROR(N50/AK50,\"-\")","v":1403},{"$f":"IFERROR(AJ50/AK50,\"-\")","v":1},{"$f":"IFERROR(AK50/AL50,\"-\")","v":1},null,null,null,null,null,{"$f":"IFERROR(N50/AS50,\"-\")","v":"-"},{"$f":"IFERROR(AR50/AS50,\"-\")","v":"-"},{"$f":"IFERROR(AS50/AT50,\"-\")","v":"-"},null,null,null,1,null,null,{"$f":"IFERROR((F50+H50)/BB50,\"-\")","v":"-"},{"$f":"IFERROR(BA50/BB50,\"-\")","v":"-"},{"$f":"IFERROR(BB50/BC50,\"-\")","v":"-"},25,null,null,"-",{"$f":"IFERROR(BG50/BH50,\"-\")","v":"-"},{"$f":"IFERROR(BH50/BI50,\"-\")","v":"-"},null,null,null,0,0,0,"-",{"$f":"IFERROR(BP50/BQ50,\"-\")","v":"-"},{"$f":"IFERROR(BQ50/BR50,\"-\")","v":"-"},0,0,0,"-",{"$f":"IFERROR(BV50/BW50,\"-\")","v":"-"},{"$f":"IFERROR(BW50/BX50,\"-\")","v":"-"},null,null,null,0,0,{"$f":"IFERROR(N50/CF50,\"-\")","v":"-"},"-",null,null,0,0,0,0,0,0,"-","-",{"$f":"IFERROR(CK50/CM50,\"-\")","v":"-"},{"$f":"IFERROR(CL50/CN50,\"-\")","v":"-"},{"$f":"IFERROR(CM50/CO50,\"-\")","v":"-"},{"$f":"IFERROR(CN50/CP50,\"-\")","v":"-"},null,null,0,0,"-","-",null,null,1,null,null,"-",{"$f":"IFERROR(DE50/DF50,\"-\")","v":"-"},{"$f":"IFERROR(DF50/DG50,\"-\")","v":"-"},null,null,null,0,0,0,{"$f":"IFERROR(N50/DO50,\"-\")","v":"-"},{"$f":"IFERROR(DN50/DO50,\"-\")","v":"-"},{"$f":"IFERROR(DO50/DP50,\"-\")","v":"-"},null,null,null,0,{"$f":"IFERROR(N50/DW50,\"-\")","v":"-"},null,null,1,1,0,0,1,{"$f":"IFERROR(N50/EA50,\"-\")","v":1403},{"$f":"IFERROR(N50/EB50,\"-\")","v":1403},{"$f":"IFERROR(N50/EC50,\"-\")","v":"-"},{"$f":"IFERROR(N50/ED50,\"-\")","v":"-"},{"$f":"IFERROR(N50/EE50,\"-\")","v":1403},null,null,null,1,{"$f":"IFERROR(N50/EN50,\"-\")","v":1403}]
["42.","Logan","Urban","HRSA",622,112,2579,571,0.21337082161824431,4858,277,5.7019349526554138E-2,{"$f":"E51+G51+J51","v":8059},{"$f":"F51+H51+K51","v":960},{"$f":"IFERROR(N51/M51,\"-\")","v":0.11912147909169872},null,null,0,0,null,{"$f":"IFERROR(N51/S51,\"-\")","v":"-"},{"$f":"IFERROR(R51/S51,\"-\")","v":"-"},{"$f":"IFERROR(S51/T51,\"-\")","v":"-"},null,null,null,91,7,null,{"$f":"IFERROR(N51/AB51,\"-\")","v":137.14285714285714},{"$f":"IFERROR(AA51/AB51,\"-\")","v":13},{"$f":"IFERROR(AB51/AC51,\"-\")","v":"-"},null,null,null,1,1,1,{"$f":"IFERROR(N51/AK51,\"-\")","v":960},{"$f":"IFERROR(AJ51/AK51,\"-\")","v":1},{"$f":"IFERROR(AK51/AL51,\"-\")","v":1},null,null,null,null,null,{"$f":"IFERROR(N51/AS51,\"-\")","v":"-"},{"$f":"IFERROR(AR51/AS51,\"-\")","v":"-"},{"$f":"IFERROR(AS51/AT51,\"-\")","v":"-"},null,null,null,0,null,null,{"$f":"IFERROR((F51+H51)/BB51,\"-\")","v":"-"},{"$f":"IFERROR(BA51/BB51,\"-\")","v":"-"},{"$f":"IFERROR(BB51/BC51,\"-\")","v":"-"},0,null,null,"-",{"$f":"IFERROR(BG51/BH51,\"-\")","v":"-"},{"$f":"IFERROR(BH51/BI51,\"-\")","v":"-"},null,null,null,0,0,0,"-",{"$f":"IFERROR(BP51/BQ51,\"-\")","v":"-"},{"$f":"IFERROR(BQ51/BR51,\"-\")","v":"-"},0,0,0,"-",{"$f":"IFERROR(BV51/BW51,\"-\")","v":"-"},{"$f":"IFERROR(BW51/BX51,\"-\")","v":"-"},null,null,null,0,0,{"$f":"IFERROR(N51/CF51,\"-\")","v":"-"},"-",null,null,0,0,0,0,0,0,"-","-",{"$f":"IFERROR(CK51/CM51,\"-\")","v":"-"},{"$f":"IFERROR(CL51/CN51,\"-\")","v":"-"},{"$f":"IFERROR(CM51/CO51,\"-\")","v":"-"},{"$f":"IFERROR(CN51/CP51,\"-\")","v":"-"},null,null,0,0,"-","-",null,null,0,null,null,"-",{"$f":"IFERROR(DE51/DF51,\"-\")","v":"-"},{"$f":"IFERROR(DF51/DG51,\"-\")","v":"-"},null,null,null,0,0,0,{"$f":"IFERROR(N51/DO51,\"-\")","v":"-"},{"$f":"IFERROR(DN51/DO51,\"-\")","v":"-"},{"$f":"IFERROR(DO51/DP51,\"-\")","v":"-"},null,null,null,0,{"$f":"IFERROR(N51/DW51,\"-\")","v":"-"},null,null,1,1,0,0,1,{"$f":"IFERROR(N51/EA51,\"-\")","v":960},{"$f":"IFERROR(N51/EB51,\"-\")","v":960},{"$f":"IFERROR(N51/EC51,\"-\")","v":"-"},{"$f":"IFERROR(N51/ED51,\"-\")","v":"-"},{"$f":"IFERROR(N51/EE51,\"-\")","v":960},null,null,null,1,{"$f":"IFERROR(N51/EN51,\"-\")","v":960}]
["43.","Love","Rural","HRSA",194,30,950,156,0.16258741258741258,1777,119,6.6966797974113673E-2,{"$f":"E52+G52+J52","v":2921},{"$f":"F52+H52+K52","v":305},{"$f":"IFERROR(N52/M52,\"-\")","v":0.10441629578911332},null,null,0,0,null,{"$f":"IFERROR(N52/S52,\"-\")","v":"-"},{"$f":"IFERROR(R52/S52,\"-\")","v":"-"},{"$f":"IFERROR(S52/T52,\"-\")","v":"-"},null,null,null,9,0,null,{"$f":"IFERROR(N52/AB52,\"-\")","v":"-"},{"$f":"IFERROR(AA52/AB52,\"-\")","v":"-"},{"$f":"IFERROR(AB52/AC52,\"-\")","v":"-"},null,null,null,1,1,1,{"$f":"IFERROR(N52/AK52,\"-\")","v":305},{"$f":"IFERROR(AJ52/AK52,\"-\")","v":1},{"$f":"IFERROR(AK52/AL52,\"-\")","v":1},null,null,null,null,null,{"$f":"IFERROR(N52/AS52,\"-\")","v":"-"},{"$f":"IFERROR(AR52/AS52,\"-\")","v":"-"},{"$f":"IFERROR(AS52/AT52,\"-\")","v":"-"},null,null,null,0,null,null,{"$f":"IFERROR((F52+H52)/BB52,\"-\")","v":"-"},{"$f":"IFERROR(BA52/BB52,\"-\")","v":"-"},{"$f":"IFERROR(BB52/BC52,\"-\")","v":"-"},0,null,null,"-",{"$f":"IFERROR(BG52/BH52,\"-\")","v":"-"},{"$f":"IFERROR(BH52/BI52,\"-\")","v":"-"},null,null,null,0,0,0,"-",{"$f":"IFERROR(BP52/BQ52,\"-\")","v":"-"},{"$f":"IFERROR(BQ52/BR52,\"-\")","v":"-"},0,0,0,"-",{"$f":"IFERROR(BV52/BW52,\"-\")","v":"-"},{"$f":"IFERROR(BW52/BX52,\"-\")","v":"-"},null,null,null,0,0,{"$f":"IFERROR(N52/CF52,\"-\")","v":"-"},"-",null,null,0,0,0,0,0,0,"-","-",{"$f":"IFERROR(CK52/CM52,\"-\")","v":"-"},{"$f":"IFERROR(CL52/CN52,\"-\")","v":"-"},{"$f":"IFERROR(CM52/CO52,\"-\")","v":"-"},{"$f":"IFERROR(CN52/CP52,\"-\")","v":"-"},null,null,0,0,"-","-",null,null,0,null,null,"-",{"$f":"IFERROR(DE52/DF52,\"-\")","v":"-"},{"$f":"IFERROR(DF52/DG52,\"-\")","v":"-"},null,null,null,0,0,0,{"$f":"IFERROR(N52/DO52,\"-\")","v":"-"},{"$f":"IFERROR(DN52/DO52,\"-\")","v":"-"},{"$f":"IFERROR(DO52/DP52,\"-\")","v":"-"},null,null,null,0,{"$f":"IFERROR(N52/DW52,\"-\")","v":"-"},null,null,1,1,0,0,1,{"$f":"IFERROR(N52/EA52,\"-\")","v":305},{"$f":"IFERROR(N52/EB52,\"-\")","v":305},{"$f":"IFERROR(N52/EC52,\"-\")","v":"-"},{"$f":"IFERROR(N52/ED52,\"-\")","v":"-"},{"$f":"IFERROR(N52/EE52,\"-\")","v":305},null,null,null,0,{"$f":"IFERROR(N52/EN52,\"-\")","v":"-"}]
["44.","Major","Rural","HRSA",145,24,454,86,0.18363939899833054,1130,52,4.6017699115044247E-2,{"$f":"E53+G53+J53","v":1729},{"$f":"F53+H53+K53","v":162},{"$f":"IFERROR(N53/M53,\"-\")","v":9.369577790630422E-2},null,null,0,0,null,{"$f":"IFERROR(N53/S53,\"-\")","v":"-"},{"$f":"IFERROR(R53/S53,\"-\")","v":"-"},{"$f":"IFERROR(S53/T53,\"-\")","v":"-"},null,null,null,8,1,null,{"$f":"IFERROR(N53/AB53,\"-\")","v":162},{"$f":"IFERROR(AA53/AB53,\"-\")","v":8},{"$f":"IFERROR(AB53/AC53,\"-\")","v":"-"},null,null,null,1,1,1,{"$f":"IFERROR(N53/AK53,\"-\")","v":162},{"$f":"IFERROR(AJ53/AK53,\"-\")","v":1},{"$f":"IFERROR(AK53/AL53,\"-\")","v":1},null,null,null,null,null,{"$f":"IFERROR(N53/AS53,\"-\")","v":"-"},{"$f":"IFERROR(AR53/AS53,\"-\")","v":"-"},{"$f":"IFERROR(AS53/AT53,\"-\")","v":"-"},null,null,null,0,null,null,{"$f":"IFERROR((F53+H53)/BB53,\"-\")","v":"-"},{"$f":"IFERROR(BA53/BB53,\"-\")","v":"-"},{"$f":"IFERROR(BB53/BC53,\"-\")","v":"-"},0,null,null,"-",{"$f":"IFERROR(BG53/BH53,\"-\")","v":"-"},{"$f":"IFERROR(BH53/BI53,\"-\")","v":"-"},null,null,null,0,0,0,"-",{"$f":"IFERROR(BP53/BQ53,\"-\")","v":"-"},{"$f":"IFERROR(BQ53/BR53,\"-\")","v":"-"},0,0,0,"-",{"$f":"IFERROR(BV53/BW53,\"-\")","v":"-"},{"$f":"IFERROR(BW53/BX53,\"-\")","v":"-"},null,null,null,0,0,{"$f":"IFERROR(N53/CF53,\"-\")","v":"-"},"-",null,null,0,0,0,0,0,0,"-","-",{"$f":"IFERROR(CK53/CM53,\"-\")","v":"-"},{"$f":"IFERROR(CL53/CN53,\"-\")","v":"-"},{"$f":"IFERROR(CM53/CO53,\"-\")","v":"-"},{"$f":"IFERROR(CN53/CP53,\"-\")","v":"-"},null,null,0,0,"-","-",null,null,0,null,null,"-",{"$f":"IFERROR(DE53/DF53,\"-\")","v":"-"},{"$f":"IFERROR(DF53/DG53,\"-\")","v":"-"},null,null,null,0,0,0,{"$f":"IFERROR(N53/DO53,\"-\")","v":"-"},{"$f":"IFERROR(DN53/DO53,\"-\")","v":"-"},{"$f":"IFERROR(DO53/DP53,\"-\")","v":"-"},null,null,null,0,{"$f":"IFERROR(N53/DW53,\"-\")","v":"-"},null,null,1,1,0,0,1,{"$f":"IFERROR(N53/EA53,\"-\")","v":162},{"$f":"IFERROR(N53/EB53,\"-\")","v":162},{"$f":"IFERROR(N53/EC53,\"-\")","v":"-"},{"$f":"IFERROR(N53/ED53,\"-\")","v":"-"},{"$f":"IFERROR(N53/EE53,\"-\")","v":162},null,null,null,0,{"$f":"IFERROR(N53/EN53,\"-\")","v":"-"}]
["45.","Marshall","Rural","HRSA",387,59,1690,343,0.19354838709677419,3091,128,4.1410546748625043E-2,{"$f":"E54+G54+J54","v":5168},{"$f":"F54+H54+K54","v":530},{"$f":"IFERROR(N54/M54,\"-\")","v":0.10255417956656347},null,null,0,0,null,{"$f":"IFERROR(N54/S54,\"-\")","v":"-"},{"$f":"IFERROR(R54/S54,\"-\")","v":"-"},{"$f":"IFERROR(S54/T54,\"-\")","v":"-"},null,null,null,43,18,null,{"$f":"IFERROR(N54/AB54,\"-\")","v":29.444444444444443},{"$f":"IFERROR(AA54/AB54,\"-\")","v":2.3888888888888888},{"$f":"IFERROR(AB54/AC54,\"-\")","v":"-"},null,null,null,1,1,1,{"$f":"IFERROR(N54/AK54,\"-\")","v":530},{"$f":"IFERROR(AJ54/AK54,\"-\")","v":1},{"$f":"IFERROR(AK54/AL54,\"-\")","v":1},null,null,null,null,null,{"$f":"IFERROR(N54/AS54,\"-\")","v":"-"},{"$f":"IFERROR(AR54/AS54,\"-\")","v":"-"},{"$f":"IFERROR(AS54/AT54,\"-\")","v":"-"},null,null,null,0,null,null,{"$f":"IFERROR((F54+H54)/BB54,\"-\")","v":"-"},{"$f":"IFERROR(BA54/BB54,\"-\")","v":"-"},{"$f":"IFERROR(BB54/BC54,\"-\")","v":"-"},0,null,null,"-",{"$f":"IFERROR(BG54/BH54,\"-\")","v":"-"},{"$f":"IFERROR(BH54/BI54,\"-\")","v":"-"},null,null,null,0,0,0,"-",{"$f":"IFERROR(BP54/BQ54,\"-\")","v":"-"},{"$f":"IFERROR(BQ54/BR54,\"-\")","v":"-"},0,0,0,"-",{"$f":"IFERROR(BV54/BW54,\"-\")","v":"-"},{"$f":"IFERROR(BW54/BX54,\"-\")","v":"-"},null,null,null,0,0,{"$f":"IFERROR(N54/CF54,\"-\")","v":"-"},"-",null,null,0,0,0,0,0,0,"-","-",{"$f":"IFERROR(CK54/CM54,\"-\")","v":"-"},{"$f":"IFERROR(CL54/CN54,\"-\")","v":"-"},{"$f":"IFERROR(CM54/CO54,\"-\")","v":"-"},{"$f":"IFERROR(CN54/CP54,\"-\")","v":"-"},null,null,0,0,"-","-",null,null,0,null,null,"-",{"$f":"IFERROR(DE54/DF54,\"-\")","v":"-"},{"$f":"IFERROR(DF54/DG54,\"-\")","v":"-"},null,null,null,0,0,0,{"$f":"IFERROR(N54/DO54,\"-\")","v":"-"},{"$f":"IFERROR(DN54/DO54,\"-\")","v":"-"},{"$f":"IFERROR(DO54/DP54,\"-\")","v":"-"},null,null,null,0,{"$f":"IFERROR(N54/DW54,\"-\")","v":"-"},null,null,1,1,0,0,1,{"$f":"IFERROR(N54/EA54,\"-\")","v":530},{"$f":"IFERROR(N54/EB54,\"-\")","v":530},{"$f":"IFERROR(N54/EC54,\"-\")","v":"-"},{"$f":"IFERROR(N54/ED54,\"-\")","v":"-"},{"$f":"IFERROR(N54/EE54,\"-\")","v":530},null,null,null,1,{"$f":"IFERROR(N54/EN54,\"-\")","v":530}]
["46.","Mayes","Rural","HRSA",834,303,4286,1235,0.30039062500000002,7192,1399,0.19452169076751946,{"$f":"E55+G55+J55","v":12312},{"$f":"F55+H55+K55","v":2937},{"$f":"IFERROR(N55/M55,\"-\")","v":0.2385477582846004},null,null,0,0,null,{"$f":"IFERROR(N55/S55,\"-\")","v":"-"},{"$f":"IFERROR(R55/S55,\"-\")","v":"-"},{"$f":"IFERROR(S55/T55,\"-\")","v":"-"},null,null,null,69,33,null,{"$f":"IFERROR(N55/AB55,\"-\")","v":89},{"$f":"IFERROR(AA55/AB55,\"-\")","v":2.0909090909090908},{"$f":"IFERROR(AB55/AC55,\"-\")","v":"-"},null,null,null,1,1,1,{"$f":"IFERROR(N55/AK55,\"-\")","v":2937},{"$f":"IFERROR(AJ55/AK55,\"-\")","v":1},{"$f":"IFERROR(AK55/AL55,\"-\")","v":1},null,null,null,null,null,{"$f":"IFERROR(N55/AS55,\"-\")","v":"-"},{"$f":"IFERROR(AR55/AS55,\"-\")","v":"-"},{"$f":"IFERROR(AS55/AT55,\"-\")","v":"-"},null,null,null,0,null,null,{"$f":"IFERROR((F55+H55)/BB55,\"-\")","v":"-"},{"$f":"IFERROR(BA55/BB55,\"-\")","v":"-"},{"$f":"IFERROR(BB55/BC55,\"-\")","v":"-"},0,null,null,"-",{"$f":"IFERROR(BG55/BH55,\"-\")","v":"-"},{"$f":"IFERROR(BH55/BI55,\"-\")","v":"-"},null,null,null,0,0,0,"-",{"$f":"IFERROR(BP55/BQ55,\"-\")","v":"-"},{"$f":"IFERROR(BQ55/BR55,\"-\")","v":"-"},0,0,0,"-",{"$f":"IFERROR(BV55/BW55,\"-\")","v":"-"},{"$f":"IFERROR(BW55/BX55,\"-\")","v":"-"},null,null,null,0,0,{"$f":"IFERROR(N55/CF55,\"-\")","v":"-"},"-",null,null,0,0,0,0,0,0,"-","-",{"$f":"IFERROR(CK55/CM55,\"-\")","v":"-"},{"$f":"IFERROR(CL55/CN55,\"-\")","v":"-"},{"$f":"IFERROR(CM55/CO55,\"-\")","v":"-"},{"$f":"IFERROR(CN55/CP55,\"-\")","v":"-"},null,null,0,0,"-","-",null,null,0,null,null,"-",{"$f":"IFERROR(DE55/DF55,\"-\")","v":"-"},{"$f":"IFERROR(DF55/DG55,\"-\")","v":"-"},null,null,null,0,0,0,{"$f":"IFERROR(N55/DO55,\"-\")","v":"-"},{"$f":"IFERROR(DN55/DO55,\"-\")","v":"-"},{"$f":"IFERROR(DO55/DP55,\"-\")","v":"-"},null,null,null,0,{"$f":"IFERROR(N55/DW55,\"-\")","v":"-"},null,null,1,1,2,2,1,{"$f":"IFERROR(N55/EA55,\"-\")","v":2937},{"$f":"IFERROR(N55/EB55,\"-\")","v":2937},{"$f":"IFERROR(N55/EC55,\"-\")","v":1468.5},{"$f":"IFERROR(N55/ED55,\"-\")","v":1468.5},{"$f":"IFERROR(N55/EE55,\"-\")","v":2937},null,null,null,0,{"$f":"IFERROR(N55/EN55,\"-\")","v":"-"}]
["47.","McClain","Urban","HRSA",727,121,2933,555,0.18469945355191256,6486,310,4.7795251310514958E-2,{"$f":"E56+G56+J56","v":10146},{"$f":"F56+H56+K56","v":986},{"$f":"IFERROR(N56/M56,\"-\")","v":9.7181155135028577E-2},null,null,2,0,null,{"$f":"IFERROR(N56/S56,\"-\")","v":"-"},{"$f":"IFERROR(R56/S56,\"-\")","v":"-"},{"$f":"IFERROR(S56/T56,\"-\")","v":"-"},null,null,null,102,13,null,{"$f":"IFERROR(N56/AB56,\"-\")","v":75.84615384615384},{"$f":"IFERROR(AA56/AB56,\"-\")","v":7.8461538461538458},{"$f":"IFERROR(AB56/AC56,\"-\")","v":"-"},null,null,null,1,1,1,{"$f":"IFERROR(N56/AK56,\"-\")","v":986},{"$f":"IFERROR(AJ56/AK56,\"-\")","v":1},{"$f":"IFERROR(AK56/AL56,\"-\")","v":1},null,null,null,null,null,{"$f":"IFERROR(N56/AS56,\"-\")","v":"-"},{"$f":"IFERROR(AR56/AS56,\"-\")","v":"-"},{"$f":"IFERROR(AS56/AT56,\"-\")","v":"-"},null,null,null,0,null,null,{"$f":"IFERROR((F56+H56)/BB56,\"-\")","v":"-"},{"$f":"IFERROR(BA56/BB56,\"-\")","v":"-"},{"$f":"IFERROR(BB56/BC56,\"-\")","v":"-"},0,null,null,"-",{"$f":"IFERROR(BG56/BH56,\"-\")","v":"-"},{"$f":"IFERROR(BH56/BI56,\"-\")","v":"-"},null,null,null,0,0,0,"-",{"$f":"IFERROR(BP56/BQ56,\"-\")","v":"-"},{"$f":"IFERROR(BQ56/BR56,\"-\")","v":"-"},0,0,0,"-",{"$f":"IFERROR(BV56/BW56,\"-\")","v":"-"},{"$f":"IFERROR(BW56/BX56,\"-\")","v":"-"},null,null,null,0,0,{"$f":"IFERROR(N56/CF56,\"-\")","v":"-"},"-",null,null,0,0,0,0,0,0,"-","-",{"$f":"IFERROR(CK56/CM56,\"-\")","v":"-"},{"$f":"IFERROR(CL56/CN56,\"-\")","v":"-"},{"$f":"IFERROR(CM56/CO56,\"-\")","v":"-"},{"$f":"IFERROR(CN56/CP56,\"-\")","v":"-"},null,null,0,0,"-","-",null,null,0,null,null,"-",{"$f":"IFERROR(DE56/DF56,\"-\")","v":"-"},{"$f":"IFERROR(DF56/DG56,\"-\")","v":"-"},null,null,null,0,0,0,{"$f":"IFERROR(N56/DO56,\"-\")","v":"-"},{"$f":"IFERROR(DN56/DO56,\"-\")","v":"-"},{"$f":"IFERROR(DO56/DP56,\"-\")","v":"-"},null,null,null,0,{"$f":"IFERROR(N56/DW56,\"-\")","v":"-"},null,null,1,1,0,0,1,{"$f":"IFERROR(N56/EA56,\"-\")","v":986},{"$f":"IFERROR(N56/EB56,\"-\")","v":986},{"$f":"IFERROR(N56/EC56,\"-\")","v":"-"},{"$f":"IFERROR(N56/ED56,\"-\")","v":"-"},{"$f":"IFERROR(N56/EE56,\"-\")","v":986},null,null,null,0,{"$f":"IFERROR(N56/EN56,\"-\")","v":"-"}]
["48.","McCurtain","Rural","HRSA",790,113,4406,750,0.16608929946112394,7343,408,5.5563121340051751E-2,{"$f":"E57+G57+J57","v":12539},{"$f":"F57+H57+K57","v":1271},{"$f":"IFERROR(N57/M57,\"-\")","v":0.10136374511524045},null,null,1,0,null,{"$f":"IFERROR(N57/S57,\"-\")","v":"-"},{"$f":"IFERROR(R57/S57,\"-\")","v":"-"},{"$f":"IFERROR(S57/T57,\"-\")","v":"-"},null,null,null,72,20,null,{"$f":"IFERROR(N57/AB57,\"-\")","v":63.55},{"$f":"IFERROR(AA57/AB57,\"-\")","v":3.6},{"$f":"IFERROR(AB57/AC57,\"-\")","v":"-"},null,null,null,1,1,1,{"$f":"IFERROR(N57/AK57,\"-\")","v":1271},{"$f":"IFERROR(AJ57/AK57,\"-\")","v":1},{"$f":"IFERROR(AK57/AL57,\"-\")","v":1},null,null,null,null,null,{"$f":"IFERROR(N57/AS57,\"-\")","v":"-"},{"$f":"IFERROR(AR57/AS57,\"-\")","v":"-"},{"$f":"IFERROR(AS57/AT57,\"-\")","v":"-"},null,null,null,0,null,null,{"$f":"IFERROR((F57+H57)/BB57,\"-\")","v":"-"},{"$f":"IFERROR(BA57/BB57,\"-\")","v":"-"},{"$f":"IFERROR(BB57/BC57,\"-\")","v":"-"},0,null,null,"-",{"$f":"IFERROR(BG57/BH57,\"-\")","v":"-"},{"$f":"IFERROR(BH57/BI57,\"-\")","v":"-"},null,null,null,0,0,0,"-",{"$f":"IFERROR(BP57/BQ57,\"-\")","v":"-"},{"$f":"IFERROR(BQ57/BR57,\"-\")","v":"-"},0,0,0,"-",{"$f":"IFERROR(BV57/BW57,\"-\")","v":"-"},{"$f":"IFERROR(BW57/BX57,\"-\")","v":"-"},null,null,null,0,0,{"$f":"IFERROR(N57/CF57,\"-\")","v":"-"},"-",null,null,0,0,0,0,0,0,"-","-",{"$f":"IFERROR(CK57/CM57,\"-\")","v":"-"},{"$f":"IFERROR(CL57/CN57,\"-\")","v":"-"},{"$f":"IFERROR(CM57/CO57,\"-\")","v":"-"},{"$f":"IFERROR(CN57/CP57,\"-\")","v":"-"},null,null,0,0,"-","-",null,null,0,null,null,"-",{"$f":"IFERROR(DE57/DF57,\"-\")","v":"-"},{"$f":"IFERROR(DF57/DG57,\"-\")","v":"-"},null,null,null,0,0,0,{"$f":"IFERROR(N57/DO57,\"-\")","v":"-"},{"$f":"IFERROR(DN57/DO57,\"-\")","v":"-"},{"$f":"IFERROR(DO57/DP57,\"-\")","v":"-"},null,null,null,0,{"$f":"IFERROR(N57/DW57,\"-\")","v":"-"},null,null,1,1,0,0,1,{"$f":"IFERROR(N57/EA57,\"-\")","v":1271},{"$f":"IFERROR(N57/EB57,\"-\")","v":1271},{"$f":"IFERROR(N57/EC57,\"-\")","v":"-"},{"$f":"IFERROR(N57/ED57,\"-\")","v":"-"},{"$f":"IFERROR(N57/EE57,\"-\")","v":1271},null,null,null,1,{"$f":"IFERROR(N57/EN57,\"-\")","v":1271}]
["49.","McIntosh","Rural","HRSA",427,124,2510,503,0.21348314606741572,3244,467,0.1439580764488286,{"$f":"E58+G58+J58","v":6181},{"$f":"F58+H58+K58","v":1094},{"$f":"IFERROR(N58/M58,\"-\")","v":0.17699401391360622},null,null,0,1,null,{"$f":"IFERROR(N58/S58,\"-\")","v":1094},{"$f":"IFERROR(R58/S58,\"-\")","v":0},{"$f":"IFERROR(S58/T58,\"-\")","v":"-"},null,null,null,38,7,null,{"$f":"IFERROR(N58/AB58,\"-\")","v":156.28571428571428},{"$f":"IFERROR(AA58/AB58,\"-\")","v":5.4285714285714288},{"$f":"IFERROR(AB58/AC58,\"-\")","v":"-"},null,null,null,1,1,1,{"$f":"IFERROR(N58/AK58,\"-\")","v":1094},{"$f":"IFERROR(AJ58/AK58,\"-\")","v":1},{"$f":"IFERROR(AK58/AL58,\"-\")","v":1},null,null,null,null,null,{"$f":"IFERROR(N58/AS58,\"-\")","v":"-"},{"$f":"IFERROR(AR58/AS58,\"-\")","v":"-"},{"$f":"IFERROR(AS58/AT58,\"-\")","v":"-"},null,null,null,1,null,null,{"$f":"IFERROR((F58+H58)/BB58,\"-\")","v":"-"},{"$f":"IFERROR(BA58/BB58,\"-\")","v":"-"},{"$f":"IFERROR(BB58/BC58,\"-\")","v":"-"},55,null,null,"-",{"$f":"IFERROR(BG58/BH58,\"-\")","v":"-"},{"$f":"IFERROR(BH58/BI58,\"-\")","v":"-"},null,null,null,0,0,0,"-",{"$f":"IFERROR(BP58/BQ58,\"-\")","v":"-"},{"$f":"IFERROR(BQ58/BR58,\"-\")","v":"-"},0,0,0,"-",{"$f":"IFERROR(BV58/BW58,\"-\")","v":"-"},{"$f":"IFERROR(BW58/BX58,\"-\")","v":"-"},null,null,null,0,0,{"$f":"IFERROR(N58/CF58,\"-\")","v":"-"},"-",null,null,0,0,0,0,0,0,"-","-",{"$f":"IFERROR(CK58/CM58,\"-\")","v":"-"},{"$f":"IFERROR(CL58/CN58,\"-\")","v":"-"},{"$f":"IFERROR(CM58/CO58,\"-\")","v":"-"},{"$f":"IFERROR(CN58/CP58,\"-\")","v":"-"},null,null,0,0,"-","-",null,null,1,null,null,"-",{"$f":"IFERROR(DE58/DF58,\"-\")","v":"-"},{"$f":"IFERROR(DF58/DG58,\"-\")","v":"-"},null,null,null,0,0,0,{"$f":"IFERROR(N58/DO58,\"-\")","v":"-"},{"$f":"IFERROR(DN58/DO58,\"-\")","v":"-"},{"$f":"IFERROR(DO58/DP58,\"-\")","v":"-"},null,null,null,0,{"$f":"IFERROR(N58/DW58,\"-\")","v":"-"},null,null,1,1,0,0,1,{"$f":"IFERROR(N58/EA58,\"-\")","v":1094},{"$f":"IFERROR(N58/EB58,\"-\")","v":1094},{"$f":"IFERROR(N58/EC58,\"-\")","v":"-"},{"$f":"IFERROR(N58/ED58,\"-\")","v":"-"},{"$f":"IFERROR(N58/EE58,\"-\")","v":1094},null,null,null,1,{"$f":"IFERROR(N58/EN58,\"-\")","v":1094}]
["50.","Murray","Rural","HRSA",228,49,1243,307,0.24201223657375934,2119,173,8.1642284096271833E-2,{"$f":"E59+G59+J59","v":3590},{"$f":"F59+H59+K59","v":529},{"$f":"IFERROR(N59/M59,\"-\")","v":0.14735376044568246},null,null,0,0,null,{"$f":"IFERROR(N59/S59,\"-\")","v":"-"},{"$f":"IFERROR(R59/S59,\"-\")","v":"-"},{"$f":"IFERROR(S59/T59,\"-\")","v":"-"},null,null,null,38,1,null,{"$f":"IFERROR(N59/AB59,\"-\")","v":529},{"$f":"IFERROR(AA59/AB59,\"-\")","v":38},{"$f":"IFERROR(AB59/AC59,\"-\")","v":"-"},null,null,null,1,1,1,{"$f":"IFERROR(N59/AK59,\"-\")","v":529},{"$f":"IFERROR(AJ59/AK59,\"-\")","v":1},{"$f":"IFERROR(AK59/AL59,\"-\")","v":1},null,null,null,null,null,{"$f":"IFERROR(N59/AS59,\"-\")","v":"-"},{"$f":"IFERROR(AR59/AS59,\"-\")","v":"-"},{"$f":"IFERROR(AS59/AT59,\"-\")","v":"-"},null,null,null,0,null,null,{"$f":"IFERROR((F59+H59)/BB59,\"-\")","v":"-"},{"$f":"IFERROR(BA59/BB59,\"-\")","v":"-"},{"$f":"IFERROR(BB59/BC59,\"-\")","v":"-"},0,null,null,"-",{"$f":"IFERROR(BG59/BH59,\"-\")","v":"-"},{"$f":"IFERROR(BH59/BI59,\"-\")","v":"-"},null,null,null,0,0,0,"-",{"$f":"IFERROR(BP59/BQ59,\"-\")","v":"-"},{"$f":"IFERROR(BQ59/BR59,\"-\")","v":"-"},0,0,0,"-",{"$f":"IFERROR(BV59/BW59,\"-\")","v":"-"},{"$f":"IFERROR(BW59/BX59,\"-\")","v":"-"},null,null,null,0,0,{"$f":"IFERROR(N59/CF59,\"-\")","v":"-"},"-",null,null,0,0,0,0,0,0,"-","-",{"$f":"IFERROR(CK59/CM59,\"-\")","v":"-"},{"$f":"IFERROR(CL59/CN59,\"-\")","v":"-"},{"$f":"IFERROR(CM59/CO59,\"-\")","v":"-"},{"$f":"IFERROR(CN59/CP59,\"-\")","v":"-"},null,null,0,0,"-","-",null,null,0,null,null,"-",{"$f":"IFERROR(DE59/DF59,\"-\")","v":"-"},{"$f":"IFERROR(DF59/DG59,\"-\")","v":"-"},null,null,null,0,0,0,{"$f":"IFERROR(N59/DO59,\"-\")","v":"-"},{"$f":"IFERROR(DN59/DO59,\"-\")","v":"-"},{"$f":"IFERROR(DO59/DP59,\"-\")","v":"-"},null,null,null,0,{"$f":"IFERROR(N59/DW59,\"-\")","v":"-"},null,null,1,1,0,0,1,{"$f":"IFERROR(N59/EA59,\"-\")","v":529},{"$f":"IFERROR(N59/EB59,\"-\")","v":529},{"$f":"IFERROR(N59/EC59,\"-\")","v":"-"},{"$f":"IFERROR(N59/ED59,\"-\")","v":"-"},{"$f":"IFERROR(N59/EE59,\"-\")","v":529},null,null,null,0,{"$f":"IFERROR(N59/EN59,\"-\")","v":"-"}]
["51.","Muskogee","Rural","HRSA",1616,588,8621,2546,0.30614437823581125,13443,2200,0.16365394629175034,{"$f":"E60+G60+J60","v":23680},{"$f":"F60+H60+K60","v":5334},{"$f":"IFERROR(N60/M60,\"-\")","v":0.22525337837837839},null,null,7,0,null,{"$f":"IFERROR(N60/S60,\"-\")","v":"-"},{"$f":"IFERROR(R60/S60,\"-\")","v":"-"},{"$f":"IFERROR(S60/T60,\"-\")","v":"-"},null,null,null,201,80,null,{"$f":"IFERROR(N60/AB60,\"-\")","v":66.674999999999997},{"$f":"IFERROR(AA60/AB60,\"-\")","v":2.5125000000000002},{"$f":"IFERROR(AB60/AC60,\"-\")","v":"-"},null,null,null,1,1,1,{"$f":"IFERROR(N60/AK60,\"-\")","v":5334},{"$f":"IFERROR(AJ60/AK60,\"-\")","v":1},{"$f":"IFERROR(AK60/AL60,\"-\")","v":1},null,null,null,null,null,{"$f":"IFERROR(N60/AS60,\"-\")","v":"-"},{"$f":"IFERROR(AR60/AS60,\"-\")","v":"-"},{"$f":"IFERROR(AS60/AT60,\"-\")","v":"-"},null,null,null,0,null,null,{"$f":"IFERROR((F60+H60)/BB60,\"-\")","v":"-"},{"$f":"IFERROR(BA60/BB60,\"-\")","v":"-"},{"$f":"IFERROR(BB60/BC60,\"-\")","v":"-"},0,null,null,"-",{"$f":"IFERROR(BG60/BH60,\"-\")","v":"-"},{"$f":"IFERROR(BH60/BI60,\"-\")","v":"-"},null,null,null,0,0,0,"-",{"$f":"IFERROR(BP60/BQ60,\"-\")","v":"-"},{"$f":"IFERROR(BQ60/BR60,\"-\")","v":"-"},0,0,0,"-",{"$f":"IFERROR(BV60/BW60,\"-\")","v":"-"},{"$f":"IFERROR(BW60/BX60,\"-\")","v":"-"},null,null,null,0,0,{"$f":"IFERROR(N60/CF60,\"-\")","v":"-"},"-",null,null,1,0,1,0,1,0,5334,"-",{"$f":"IFERROR(CK60/CM60,\"-\")","v":1},{"$f":"IFERROR(CL60/CN60,\"-\")","v":"-"},{"$f":"IFERROR(CM60/CO60,\"-\")","v":1},{"$f":"IFERROR(CN60/CP60,\"-\")","v":"-"},null,null,26,26,205.15384615384616,1,null,null,0,null,null,"-",{"$f":"IFERROR(DE60/DF60,\"-\")","v":"-"},{"$f":"IFERROR(DF60/DG60,\"-\")","v":"-"},null,null,null,0,0,0,{"$f":"IFERROR(N60/DO60,\"-\")","v":"-"},{"$f":"IFERROR(DN60/DO60,\"-\")","v":"-"},{"$f":"IFERROR(DO60/DP60,\"-\")","v":"-"},null,null,null,0,{"$f":"IFERROR(N60/DW60,\"-\")","v":"-"},null,null,1,1,1,1,1,{"$f":"IFERROR(N60/EA60,\"-\")","v":5334},{"$f":"IFERROR(N60/EB60,\"-\")","v":5334},{"$f":"IFERROR(N60/EC60,\"-\")","v":5334},{"$f":"IFERROR(N60/ED60,\"-\")","v":5334},{"$f":"IFERROR(N60/EE60,\"-\")","v":5334},null,null,null,1,{"$f":"IFERROR(N60/EN60,\"-\")","v":5334}]
["52.","Noble","Rural","HRSA",172,50,922,301,0.32084095063985374,1395,187,0.13405017921146953,{"$f":"E61+G61+J61","v":2489},{"$f":"F61+H61+K61","v":538},{"$f":"IFERROR(N61/M61,\"-\")","v":0.21615106468461229},null,null,0,0,null,{"$f":"IFERROR(N61/S61,\"-\")","v":"-"},{"$f":"IFERROR(R61/S61,\"-\")","v":"-"},{"$f":"IFERROR(S61/T61,\"-\")","v":"-"},null,null,null,12,3,null,{"$f":"IFERROR(N61/AB61,\"-\")","v":179.33333333333334},{"$f":"IFERROR(AA61/AB61,\"-\")","v":4},{"$f":"IFERROR(AB61/AC61,\"-\")","v":"-"},null,null,null,1,1,1,{"$f":"IFERROR(N61/AK61,\"-\")","v":538},{"$f":"IFERROR(AJ61/AK61,\"-\")","v":1},{"$f":"IFERROR(AK61/AL61,\"-\")","v":1},null,null,null,null,null,{"$f":"IFERROR(N61/AS61,\"-\")","v":"-"},{"$f":"IFERROR(AR61/AS61,\"-\")","v":"-"},{"$f":"IFERROR(AS61/AT61,\"-\")","v":"-"},null,null,null,0,null,null,{"$f":"IFERROR((F61+H61)/BB61,\"-\")","v":"-"},{"$f":"IFERROR(BA61/BB61,\"-\")","v":"-"},{"$f":"IFERROR(BB61/BC61,\"-\")","v":"-"},0,null,null,"-",{"$f":"IFERROR(BG61/BH61,\"-\")","v":"-"},{"$f":"IFERROR(BH61/BI61,\"-\")","v":"-"},null,null,null,0,0,0,"-",{"$f":"IFERROR(BP61/BQ61,\"-\")","v":"-"},{"$f":"IFERROR(BQ61/BR61,\"-\")","v":"-"},0,0,0,"-",{"$f":"IFERROR(BV61/BW61,\"-\")","v":"-"},{"$f":"IFERROR(BW61/BX61,\"-\")","v":"-"},null,null,null,0,0,{"$f":"IFERROR(N61/CF61,\"-\")","v":"-"},"-",null,null,0,0,0,0,0,0,"-","-",{"$f":"IFERROR(CK61/CM61,\"-\")","v":"-"},{"$f":"IFERROR(CL61/CN61,\"-\")","v":"-"},{"$f":"IFERROR(CM61/CO61,\"-\")","v":"-"},{"$f":"IFERROR(CN61/CP61,\"-\")","v":"-"},null,null,0,0,"-","-",null,null,0,null,null,"-",{"$f":"IFERROR(DE61/DF61,\"-\")","v":"-"},{"$f":"IFERROR(DF61/DG61,\"-\")","v":"-"},null,null,null,0,0,0,{"$f":"IFERROR(N61/DO61,\"-\")","v":"-"},{"$f":"IFERROR(DN61/DO61,\"-\")","v":"-"},{"$f":"IFERROR(DO61/DP61,\"-\")","v":"-"},null,null,null,0,{"$f":"IFERROR(N61/DW61,\"-\")","v":"-"},null,null,1,1,0,0,1,{"$f":"IFERROR(N61/EA61,\"-\")","v":538},{"$f":"IFERROR(N61/EB61,\"-\")","v":538},{"$f":"IFERROR(N61/EC61,\"-\")","v":"-"},{"$f":"IFERROR(N61/ED61,\"-\")","v":"-"},{"$f":"IFERROR(N61/EE61,\"-\")","v":538},null,null,null,0,{"$f":"IFERROR(N61/EN61,\"-\")","v":"-"}]
["53.","Nowata","Rural","HRSA",163,61,1073,349,0.33171521035598706,1660,403,0.2427710843373494,{"$f":"E62+G62+J62","v":2896},{"$f":"F62+H62+K62","v":813},{"$f":"IFERROR(N62/M62,\"-\")","v":0.28073204419889503},null,null,0,0,null,{"$f":"IFERROR(N62/S62,\"-\")","v":"-"},{"$f":"IFERROR(R62/S62,\"-\")","v":"-"},{"$f":"IFERROR(S62/T62,\"-\")","v":"-"},null,null,null,8,10,null,{"$f":"IFERROR(N62/AB62,\"-\")","v":81.3},{"$f":"IFERROR(AA62/AB62,\"-\")","v":0.8},{"$f":"IFERROR(AB62/AC62,\"-\")","v":"-"},null,null,null,1,1,1,{"$f":"IFERROR(N62/AK62,\"-\")","v":813},{"$f":"IFERROR(AJ62/AK62,\"-\")","v":1},{"$f":"IFERROR(AK62/AL62,\"-\")","v":1},null,null,null,null,null,{"$f":"IFERROR(N62/AS62,\"-\")","v":"-"},{"$f":"IFERROR(AR62/AS62,\"-\")","v":"-"},{"$f":"IFERROR(AS62/AT62,\"-\")","v":"-"},null,null,null,0,null,null,{"$f":"IFERROR((F62+H62)/BB62,\"-\")","v":"-"},{"$f":"IFERROR(BA62/BB62,\"-\")","v":"-"},{"$f":"IFERROR(BB62/BC62,\"-\")","v":"-"},0,null,null,"-",{"$f":"IFERROR(BG62/BH62,\"-\")","v":"-"},{"$f":"IFERROR(BH62/BI62,\"-\")","v":"-"},null,null,null,0,0,0,"-",{"$f":"IFERROR(BP62/BQ62,\"-\")","v":"-"},{"$f":"IFERROR(BQ62/BR62,\"-\")","v":"-"},0,0,0,"-",{"$f":"IFERROR(BV62/BW62,\"-\")","v":"-"},{"$f":"IFERROR(BW62/BX62,\"-\")","v":"-"},null,null,null,0,0,{"$f":"IFERROR(N62/CF62,\"-\")","v":"-"},"-",null,null,0,0,0,0,0,0,"-","-",{"$f":"IFERROR(CK62/CM62,\"-\")","v":"-"},{"$f":"IFERROR(CL62/CN62,\"-\")","v":"-"},{"$f":"IFERROR(CM62/CO62,\"-\")","v":"-"},{"$f":"IFERROR(CN62/CP62,\"-\")","v":"-"},null,null,0,0,"-","-",null,null,0,null,null,"-",{"$f":"IFERROR(DE62/DF62,\"-\")","v":"-"},{"$f":"IFERROR(DF62/DG62,\"-\")","v":"-"},null,null,null,0,0,0,{"$f":"IFERROR(N62/DO62,\"-\")","v":"-"},{"$f":"IFERROR(DN62/DO62,\"-\")","v":"-"},{"$f":"IFERROR(DO62/DP62,\"-\")","v":"-"},null,null,null,0,{"$f":"IFERROR(N62/DW62,\"-\")","v":"-"},null,null,1,1,0,0,1,{"$f":"IFERROR(N62/EA62,\"-\")","v":813},{"$f":"IFERROR(N62/EB62,\"-\")","v":813},{"$f":"IFERROR(N62/EC62,\"-\")","v":"-"},{"$f":"IFERROR(N62/ED62,\"-\")","v":"-"},{"$f":"IFERROR(N62/EE62,\"-\")","v":813},null,null,null,0,{"$f":"IFERROR(N62/EN62,\"-\")","v":"-"}]
["54.","Okfuskee","Rural","HRSA",253,53,1589,532,0.31758957654723124,2059,143,6.9451189898008747E-2,{"$f":"E63+G63+J63","v":3901},{"$f":"F63+H63+K63","v":728},{"$f":"IFERROR(N63/M63,\"-\")","v":0.18661881568828506},null,null,0,1,null,{"$f":"IFERROR(N63/S63,\"-\")","v":728},{"$f":"IFERROR(R63/S63,\"-\")","v":0},{"$f":"IFERROR(S63/T63,\"-\")","v":"-"},null,null,null,22,14,null,{"$f":"IFERROR(N63/AB63,\"-\")","v":52},{"$f":"IFERROR(AA63/AB63,\"-\")","v":1.5714285714285714},{"$f":"IFERROR(AB63/AC63,\"-\")","v":"-"},null,null,null,1,1,1,{"$f":"IFERROR(N63/AK63,\"-\")","v":728},{"$f":"IFERROR(AJ63/AK63,\"-\")","v":1},{"$f":"IFERROR(AK63/AL63,\"-\")","v":1},null,null,null,null,null,{"$f":"IFERROR(N63/AS63,\"-\")","v":"-"},{"$f":"IFERROR(AR63/AS63,\"-\")","v":"-"},{"$f":"IFERROR(AS63/AT63,\"-\")","v":"-"},null,null,null,3,null,null,{"$f":"IFERROR((F63+H63)/BB63,\"-\")","v":"-"},{"$f":"IFERROR(BA63/BB63,\"-\")","v":"-"},{"$f":"IFERROR(BB63/BC63,\"-\")","v":"-"},106,null,null,"-",{"$f":"IFERROR(BG63/BH63,\"-\")","v":"-"},{"$f":"IFERROR(BH63/BI63,\"-\")","v":"-"},null,null,null,0,0,0,"-",{"$f":"IFERROR(BP63/BQ63,\"-\")","v":"-"},{"$f":"IFERROR(BQ63/BR63,\"-\")","v":"-"},0,0,0,"-",{"$f":"IFERROR(BV63/BW63,\"-\")","v":"-"},{"$f":"IFERROR(BW63/BX63,\"-\")","v":"-"},null,null,null,0,0,{"$f":"IFERROR(N63/CF63,\"-\")","v":"-"},"-",null,null,0,0,0,0,0,0,"-","-",{"$f":"IFERROR(CK63/CM63,\"-\")","v":"-"},{"$f":"IFERROR(CL63/CN63,\"-\")","v":"-"},{"$f":"IFERROR(CM63/CO63,\"-\")","v":"-"},{"$f":"IFERROR(CN63/CP63,\"-\")","v":"-"},null,null,0,0,"-","-",null,null,3,null,null,"-",{"$f":"IFERROR(DE63/DF63,\"-\")","v":"-"},{"$f":"IFERROR(DF63/DG63,\"-\")","v":"-"},null,null,null,0,0,0,{"$f":"IFERROR(N63/DO63,\"-\")","v":"-"},{"$f":"IFERROR(DN63/DO63,\"-\")","v":"-"},{"$f":"IFERROR(DO63/DP63,\"-\")","v":"-"},null,null,null,0,{"$f":"IFERROR(N63/DW63,\"-\")","v":"-"},null,null,1,1,0,0,1,{"$f":"IFERROR(N63/EA63,\"-\")","v":728},{"$f":"IFERROR(N63/EB63,\"-\")","v":728},{"$f":"IFERROR(N63/EC63,\"-\")","v":"-"},{"$f":"IFERROR(N63/ED63,\"-\")","v":"-"},{"$f":"IFERROR(N63/EE63,\"-\")","v":728},null,null,null,0,{"$f":"IFERROR(N63/EN63,\"-\")","v":"-"}]
["55.","Oklahoma","Urban","HRSA",15972,2810,67535,16109,0.22655585759277666,141530,8732,6.169716667844273E-2,{"$f":"E64+G64+J64","v":225037},{"$f":"F64+H64+K64","v":27651},{"$f":"IFERROR(N64/M64,\"-\")","v":0.12287312753013949},null,null,186,151,null,{"$f":"IFERROR(N64/S64,\"-\")","v":183.11920529801324},{"$f":"IFERROR(R64/S64,\"-\")","v":1.2317880794701987},{"$f":"IFERROR(S64/T64,\"-\")","v":"-"},null,null,null,3827,873,null,{"$f":"IFERROR(N64/AB64,\"-\")","v":31.673539518900345},{"$f":"IFERROR(AA64/AB64,\"-\")","v":4.3837342497136316},{"$f":"IFERROR(AB64/AC64,\"-\")","v":"-"},null,null,null,1,1,1,{"$f":"IFERROR(N64/AK64,\"-\")","v":27651},{"$f":"IFERROR(AJ64/AK64,\"-\")","v":1},{"$f":"IFERROR(AK64/AL64,\"-\")","v":1},null,null,null,4,null,{"$f":"IFERROR(N64/AS64,\"-\")","v":6912.75},{"$f":"IFERROR(AR64/AS64,\"-\")","v":0},{"$f":"IFERROR(AS64/AT64,\"-\")","v":"-"},null,null,null,1,null,null,{"$f":"IFERROR((F64+H64)/BB64,\"-\")","v":"-"},{"$f":"IFERROR(BA64/BB64,\"-\")","v":"-"},{"$f":"IFERROR(BB64/BC64,\"-\")","v":"-"},77,null,null,"-",{"$f":"IFERROR(BG64/BH64,\"-\")","v":"-"},{"$f":"IFERROR(BH64/BI64,\"-\")","v":"-"},null,null,null,1,1,1,8732,{"$f":"IFERROR(BP64/BQ64,\"-\")","v":1},{"$f":"IFERROR(BQ64/BR64,\"-\")","v":1},56,56,56,155.92857142857142,{"$f":"IFERROR(BV64/BW64,\"-\")","v":1},{"$f":"IFERROR(BW64/BX64,\"-\")","v":1},null,null,null,3,3,{"$f":"IFERROR(N64/CF64,\"-\")","v":9217},1,null,null,4,0,4,0,4,0,6912.75,"-",{"$f":"IFERROR(CK64/CM64,\"-\")","v":1},{"$f":"IFERROR(CL64/CN64,\"-\")","v":"-"},{"$f":"IFERROR(CM64/CO64,\"-\")","v":1},{"$f":"IFERROR(CN64/CP64,\"-\")","v":"-"},null,null,556,556,49.732014388489212,1,null,null,1,null,null,"-",{"$f":"IFERROR(DE64/DF64,\"-\")","v":"-"},{"$f":"IFERROR(DF64/DG64,\"-\")","v":"-"},null,null,null,0,0,0,{"$f":"IFERROR(N64/DO64,\"-\")","v":"-"},{"$f":"IFERROR(DN64/DO64,\"-\")","v":"-"},{"$f":"IFERROR(DO64/DP64,\"-\")","v":"-"},null,null,null,3,{"$f":"IFERROR(N64/DW64,\"-\")","v":9217},null,null,1,1,2,3,1,{"$f":"IFERROR(N64/EA64,\"-\")","v":27651},{"$f":"IFERROR(N64/EB64,\"-\")","v":27651},{"$f":"IFERROR(N64/EC64,\"-\")","v":13825.5},{"$f":"IFERROR(N64/ED64,\"-\")","v":9217},{"$f":"IFERROR(N64/EE64,\"-\")","v":27651},null,null,null,1,{"$f":"IFERROR(N64/EN64,\"-\")","v":27651}]
["56.","Okmulgee","Urban","HRSA",850,206,4594,1347,0.28526818515797209,6735,705,0.10467706013363029,{"$f":"E65+G65+J65","v":12179},{"$f":"F65+H65+K65","v":2258},{"$f":"IFERROR(N65/M65,\"-\")","v":0.18540110025453649},null,null,1,2,null,{"$f":"IFERROR(N65/S65,\"-\")","v":1129},{"$f":"IFERROR(R65/S65,\"-\")","v":0.5},{"$f":"IFERROR(S65/T65,\"-\")","v":"-"},null,null,null,61,26,null,{"$f":"IFERROR(N65/AB65,\"-\")","v":86.84615384615384},{"$f":"IFERROR(AA65/AB65,\"-\")","v":2.3461538461538463},{"$f":"IFERROR(AB65/AC65,\"-\")","v":"-"},null,null,null,1,1,1,{"$f":"IFERROR(N65/AK65,\"-\")","v":2258},{"$f":"IFERROR(AJ65/AK65,\"-\")","v":1},{"$f":"IFERROR(AK65/AL65,\"-\")","v":1},null,null,null,null,null,{"$f":"IFERROR(N65/AS65,\"-\")","v":"-"},{"$f":"IFERROR(AR65/AS65,\"-\")","v":"-"},{"$f":"IFERROR(AS65/AT65,\"-\")","v":"-"},null,null,null,0,null,null,{"$f":"IFERROR((F65+H65)/BB65,\"-\")","v":"-"},{"$f":"IFERROR(BA65/BB65,\"-\")","v":"-"},{"$f":"IFERROR(BB65/BC65,\"-\")","v":"-"},0,null,null,"-",{"$f":"IFERROR(BG65/BH65,\"-\")","v":"-"},{"$f":"IFERROR(BH65/BI65,\"-\")","v":"-"},null,null,null,0,0,0,"-",{"$f":"IFERROR(BP65/BQ65,\"-\")","v":"-"},{"$f":"IFERROR(BQ65/BR65,\"-\")","v":"-"},0,0,0,"-",{"$f":"IFERROR(BV65/BW65,\"-\")","v":"-"},{"$f":"IFERROR(BW65/BX65,\"-\")","v":"-"},null,null,null,0,0,{"$f":"IFERROR(N65/CF65,\"-\")","v":"-"},"-",null,null,0,0,0,0,0,0,"-","-",{"$f":"IFERROR(CK65/CM65,\"-\")","v":"-"},{"$f":"IFERROR(CL65/CN65,\"-\")","v":"-"},{"$f":"IFERROR(CM65/CO65,\"-\")","v":"-"},{"$f":"IFERROR(CN65/CP65,\"-\")","v":"-"},null,null,0,0,"-","-",null,null,0,null,null,"-",{"$f":"IFERROR(DE65/DF65,\"-\")","v":"-"},{"$f":"IFERROR(DF65/DG65,\"-\")","v":"-"},null,null,null,0,0,0,{"$f":"IFERROR(N65/DO65,\"-\")","v":"-"},{"$f":"IFERROR(DN65/DO65,\"-\")","v":"-"},{"$f":"IFERROR(DO65/DP65,\"-\")","v":"-"},null,null,null,0,{"$f":"IFERROR(N65/DW65,\"-\")","v":"-"},null,null,1,1,0,0,1,{"$f":"IFERROR(N65/EA65,\"-\")","v":2258},{"$f":"IFERROR(N65/EB65,\"-\")","v":2258},{"$f":"IFERROR(N65/EC65,\"-\")","v":"-"},{"$f":"IFERROR(N65/ED65,\"-\")","v":"-"},{"$f":"IFERROR(N65/EE65,\"-\")","v":2258},null,null,null,1,{"$f":"IFERROR(N65/EN65,\"-\")","v":2258}]
["57.","Osage","Urban","HRSA",349,126,1749,436,0.26787416587225932,2833,631,0.22273208612777973,{"$f":"E66+G66+J66","v":4931},{"$f":"F66+H66+K66","v":1193},{"$f":"IFERROR(N66/M66,\"-\")","v":0.24193875481646726},null,null,2,1,null,{"$f":"IFERROR(N66/S66,\"-\")","v":1193},{"$f":"IFERROR(R66/S66,\"-\")","v":2},{"$f":"IFERROR(S66/T66,\"-\")","v":"-"},null,null,null,64,14,null,{"$f":"IFERROR(N66/AB66,\"-\")","v":85.214285714285708},{"$f":"IFERROR(AA66/AB66,\"-\")","v":4.5714285714285712},{"$f":"IFERROR(AB66/AC66,\"-\")","v":"-"},null,null,null,1,1,1,{"$f":"IFERROR(N66/AK66,\"-\")","v":1193},{"$f":"IFERROR(AJ66/AK66,\"-\")","v":1},{"$f":"IFERROR(AK66/AL66,\"-\")","v":1},null,null,null,null,null,{"$f":"IFERROR(N66/AS66,\"-\")","v":"-"},{"$f":"IFERROR(AR66/AS66,\"-\")","v":"-"},{"$f":"IFERROR(AS66/AT66,\"-\")","v":"-"},null,null,null,0,null,null,{"$f":"IFERROR((F66+H66)/BB66,\"-\")","v":"-"},{"$f":"IFERROR(BA66/BB66,\"-\")","v":"-"},{"$f":"IFERROR(BB66/BC66,\"-\")","v":"-"},0,null,null,"-",{"$f":"IFERROR(BG66/BH66,\"-\")","v":"-"},{"$f":"IFERROR(BH66/BI66,\"-\")","v":"-"},null,null,null,0,0,0,"-",{"$f":"IFERROR(BP66/BQ66,\"-\")","v":"-"},{"$f":"IFERROR(BQ66/BR66,\"-\")","v":"-"},0,0,0,"-",{"$f":"IFERROR(BV66/BW66,\"-\")","v":"-"},{"$f":"IFERROR(BW66/BX66,\"-\")","v":"-"},null,null,null,0,0,{"$f":"IFERROR(N66/CF66,\"-\")","v":"-"},"-",null,null,0,0,0,0,0,0,"-","-",{"$f":"IFERROR(CK66/CM66,\"-\")","v":"-"},{"$f":"IFERROR(CL66/CN66,\"-\")","v":"-"},{"$f":"IFERROR(CM66/CO66,\"-\")","v":"-"},{"$f":"IFERROR(CN66/CP66,\"-\")","v":"-"},null,null,0,0,"-","-",null,null,0,null,null,"-",{"$f":"IFERROR(DE66/DF66,\"-\")","v":"-"},{"$f":"IFERROR(DF66/DG66,\"-\")","v":"-"},null,null,null,0,0,0,{"$f":"IFERROR(N66/DO66,\"-\")","v":"-"},{"$f":"IFERROR(DN66/DO66,\"-\")","v":"-"},{"$f":"IFERROR(DO66/DP66,\"-\")","v":"-"},null,null,null,0,{"$f":"IFERROR(N66/DW66,\"-\")","v":"-"},null,null,1,1,0,0,1,{"$f":"IFERROR(N66/EA66,\"-\")","v":1193},{"$f":"IFERROR(N66/EB66,\"-\")","v":1193},{"$f":"IFERROR(N66/EC66,\"-\")","v":"-"},{"$f":"IFERROR(N66/ED66,\"-\")","v":"-"},{"$f":"IFERROR(N66/EE66,\"-\")","v":1193},null,null,null,1,{"$f":"IFERROR(N66/EN66,\"-\")","v":1193}]
["58.","Ottawa","Rural","HRSA",818,290,4264,1297,{"$f":"IFERROR((F67+H67)/(E67+G67),\"-\")","v":0.31227863046044863},6932,1262,{"$f":"IFERROR(K67/J67,\"-\")","v":0.18205424120023081},{"$f":"E67+G67+J67","v":12014},{"$f":"F67+H67+K67","v":2849},{"$f":"IFERROR(N67/M67,\"-\")","v":0.23714000332944898},null,null,2,1,null,{"$f":"IFERROR(N67/S67,\"-\")","v":2849},{"$f":"IFERROR(R67/S67,\"-\")","v":2},{"$f":"IFERROR(S67/T67,\"-\")","v":"-"},null,null,null,71,44,null,{"$f":"IFERROR(N67/AB67,\"-\")","v":64.75},{"$f":"IFERROR(AA67/AB67,\"-\")","v":1.6136363636363635},{"$f":"IFERROR(AB67/AC67,\"-\")","v":"-"},null,null,null,1,1,1,{"$f":"IFERROR(N67/AK67,\"-\")","v":2849},{"$f":"IFERROR(AJ67/AK67,\"-\")","v":1},{"$f":"IFERROR(AK67/AL67,\"-\")","v":1},null,null,null,null,null,{"$f":"IFERROR(N67/AS67,\"-\")","v":"-"},{"$f":"IFERROR(AR67/AS67,\"-\")","v":"-"},{"$f":"IFERROR(AS67/AT67,\"-\")","v":"-"},null,null,null,0,null,null,{"$f":"IFERROR((F67+H67)/BB67,\"-\")","v":"-"},{"$f":"IFERROR(BA67/BB67,\"-\")","v":"-"},{"$f":"IFERROR(BB67/BC67,\"-\")","v":"-"},0,null,null,{"$f":"IFERROR((F67+H67)/BH67,\"-\")","v":"-"},{"$f":"IFERROR(BG67/BH67,\"-\")","v":"-"},{"$f":"IFERROR(BH67/BI67,\"-\")","v":"-"},null,null,null,1,1,1,{"$f":"IFERROR(K67/BQ67,\"-\")","v":1262},{"$f":"IFERROR(BP67/BQ67,\"-\")","v":1},{"$f":"IFERROR(BQ67/BR67,\"-\")","v":1},28,28,28,{"$f":"IFERROR(K67/BX67,\"-\")","v":45.071428571428569},{"$f":"IFERROR(BV67/BW67,\"-\")","v":1},{"$f":"IFERROR(BW67/BX67,\"-\")","v":1},null,null,null,1,1,{"$f":"IFERROR(N67/CF67,\"-\")","v":2849},{"$f":"IFERROR(CE67/CF67,\"-\")","v":1},null,null,0,0,0,0,0,0,{"$f":"IFERROR(N67/CM67,\"-\")","v":"-"},{"$f":"IFERROR(N67/CN67,\"-\")","v":"-"},{"$f":"IFERROR(CK67/CM67,\"-\")","v":"-"},{"$f":"IFERROR(CL67/CN67,\"-\")","v":"-"},{"$f":"IFERROR(CM67/CO67,\"-\")","v":"-"},{"$f":"IFERROR(CN67/CP67,\"-\")","v":"-"},null,null,50,50,{"$f":"IFERROR(N67/CZ67,\"-\")","v":56.98},{"$f":"IFERROR(CY67/CZ67,\"-\")","v":1},null,null,0,null,null,{"$f":"IFERROR((F67+H67)/DF67,\"-\")","v":"-"},{"$f":"IFERROR(DE67/DF67,\"-\")","v":"-"},{"$f":"IFERROR(DF67/DG67,\"-\")","v":"-"},null,null,null,0,0,0,{"$f":"IFERROR(N67/DO67,\"-\")","v":"-"},{"$f":"IFERROR(DN67/DO67,\"-\")","v":"-"},{"$f":"IFERROR(DO67/DP67,\"-\")","v":"-"},null,null,null,1,{"$f":"IFERROR(N67/DW67,\"-\")","v":2849},null,null,1,1,0,0,1,{"$f":"IFERROR(N67/EA67,\"-\")","v":2849},{"$f":"IFERROR(N67/EB67,\"-\")","v":2849},{"$f":"IFERROR(N67/EC67,\"-\")","v":"-"},{"$f":"IFERROR(N67/ED67,\"-\")","v":"-"},{"$f":"IFERROR(N67/EE67,\"-\")","v":2849},null,null,null,0,{"$f":"IFERROR(N67/EN67,\"-\")","v":"-"}]
["59.","Pawnee","Urban","HRSA",362,111,1641,446,0.27808287568647028,2970,583,0.1962962962962963,{"$f":"E68+G68+J68","v":4973},{"$f":"F68+H68+K68","v":1140},{"$f":"IFERROR(N68/M68,\"-\")","v":0.22923788457671426},null,null,0,1,null,{"$f":"IFERROR(N68/S68,\"-\")","v":1140},{"$f":"IFERROR(R68/S68,\"-\")","v":0},{"$f":"IFERROR(S68/T68,\"-\")","v":"-"},null,null,null,21,19,null,{"$f":"IFERROR(N68/AB68,\"-\")","v":60},{"$f":"IFERROR(AA68/AB68,\"-\")","v":1.1052631578947369},{"$f":"IFERROR(AB68/AC68,\"-\")","v":"-"},null,null,null,1,1,1,{"$f":"IFERROR(N68/AK68,\"-\")","v":1140},{"$f":"IFERROR(AJ68/AK68,\"-\")","v":1},{"$f":"IFERROR(AK68/AL68,\"-\")","v":1},null,null,null,null,null,{"$f":"IFERROR(N68/AS68,\"-\")","v":"-"},{"$f":"IFERROR(AR68/AS68,\"-\")","v":"-"},{"$f":"IFERROR(AS68/AT68,\"-\")","v":"-"},null,null,null,0,null,null,{"$f":"IFERROR((F68+H68)/BB68,\"-\")","v":"-"},{"$f":"IFERROR(BA68/BB68,\"-\")","v":"-"},{"$f":"IFERROR(BB68/BC68,\"-\")","v":"-"},0,null,null,"-",{"$f":"IFERROR(BG68/BH68,\"-\")","v":"-"},{"$f":"IFERROR(BH68/BI68,\"-\")","v":"-"},null,null,null,0,0,0,"-",{"$f":"IFERROR(BP68/BQ68,\"-\")","v":"-"},{"$f":"IFERROR(BQ68/BR68,\"-\")","v":"-"},0,0,0,"-",{"$f":"IFERROR(BV68/BW68,\"-\")","v":"-"},{"$f":"IFERROR(BW68/BX68,\"-\")","v":"-"},null,null,null,0,0,{"$f":"IFERROR(N68/CF68,\"-\")","v":"-"},"-",null,null,0,0,0,0,0,0,"-","-",{"$f":"IFERROR(CK68/CM68,\"-\")","v":"-"},{"$f":"IFERROR(CL68/CN68,\"-\")","v":"-"},{"$f":"IFERROR(CM68/CO68,\"-\")","v":"-"},{"$f":"IFERROR(CN68/CP68,\"-\")","v":"-"},null,null,0,0,"-","-",null,null,0,null,null,"-",{"$f":"IFERROR(DE68/DF68,\"-\")","v":"-"},{"$f":"IFERROR(DF68/DG68,\"-\")","v":"-"},null,null,null,0,0,0,{"$f":"IFERROR(N68/DO68,\"-\")","v":"-"},{"$f":"IFERROR(DN68/DO68,\"-\")","v":"-"},{"$f":"IFERROR(DO68/DP68,\"-\")","v":"-"},null,null,null,0,{"$f":"IFERROR(N68/DW68,\"-\")","v":"-"},null,null,1,1,0,0,1,{"$f":"IFERROR(N68/EA68,\"-\")","v":1140},{"$f":"IFERROR(N68/EB68,\"-\")","v":1140},{"$f":"IFERROR(N68/EC68,\"-\")","v":"-"},{"$f":"IFERROR(N68/ED68,\"-\")","v":"-"},{"$f":"IFERROR(N68/EE68,\"-\")","v":1140},null,null,null,0,{"$f":"IFERROR(N68/EN68,\"-\")","v":"-"}]
["60.","Payne","Rural","HRSA",1132,317,5084,1519,0.29536679536679539,9069,1207,0.13309074870437754,{"$f":"E69+G69+J69","v":15285},{"$f":"F69+H69+K69","v":3043},{"$f":"IFERROR(N69/M69,\"-\")","v":0.199084069349035},null,null,5,1,null,{"$f":"IFERROR(N69/S69,\"-\")","v":3043},{"$f":"IFERROR(R69/S69,\"-\")","v":5},{"$f":"IFERROR(S69/T69,\"-\")","v":"-"},null,null,null,303,73,null,{"$f":"IFERROR(N69/AB69,\"-\")","v":41.684931506849317},{"$f":"IFERROR(AA69/AB69,\"-\")","v":4.1506849315068495},{"$f":"IFERROR(AB69/AC69,\"-\")","v":"-"},null,null,null,1,1,1,{"$f":"IFERROR(N69/AK69,\"-\")","v":3043},{"$f":"IFERROR(AJ69/AK69,\"-\")","v":1},{"$f":"IFERROR(AK69/AL69,\"-\")","v":1},null,null,null,null,null,{"$f":"IFERROR(N69/AS69,\"-\")","v":"-"},{"$f":"IFERROR(AR69/AS69,\"-\")","v":"-"},{"$f":"IFERROR(AS69/AT69,\"-\")","v":"-"},null,null,null,0,null,null,{"$f":"IFERROR((F69+H69)/BB69,\"-\")","v":"-"},{"$f":"IFERROR(BA69/BB69,\"-\")","v":"-"},{"$f":"IFERROR(BB69/BC69,\"-\")","v":"-"},0,null,null,"-",{"$f":"IFERROR(BG69/BH69,\"-\")","v":"-"},{"$f":"IFERROR(BH69/BI69,\"-\")","v":"-"},null,null,null,0,0,0,"-",{"$f":"IFERROR(BP69/BQ69,\"-\")","v":"-"},{"$f":"IFERROR(BQ69/BR69,\"-\")","v":"-"},0,0,0,"-",{"$f":"IFERROR(BV69/BW69,\"-\")","v":"-"},{"$f":"IFERROR(BW69/BX69,\"-\")","v":"-"},null,null,null,0,0,{"$f":"IFERROR(N69/CF69,\"-\")","v":"-"},"-",null,null,0,0,0,0,0,0,"-","-",{"$f":"IFERROR(CK69/CM69,\"-\")","v":"-"},{"$f":"IFERROR(CL69/CN69,\"-\")","v":"-"},{"$f":"IFERROR(CM69/CO69,\"-\")","v":"-"},{"$f":"IFERROR(CN69/CP69,\"-\")","v":"-"},null,null,0,0,"-","-",null,null,0,null,null,"-",{"$f":"IFERROR(DE69/DF69,\"-\")","v":"-"},{"$f":"IFERROR(DF69/DG69,\"-\")","v":"-"},null,null,null,0,0,0,{"$f":"IFERROR(N69/DO69,\"-\")","v":"-"},{"$f":"IFERROR(DN69/DO69,\"-\")","v":"-"},{"$f":"IFERROR(DO69/DP69,\"-\")","v":"-"},null,null,null,0,{"$f":"IFERROR(N69/DW69,\"-\")","v":"-"},null,null,1,1,0,0,1,{"$f":"IFERROR(N69/EA69,\"-\")","v":3043},{"$f":"IFERROR(N69/EB69,\"-\")","v":3043},{"$f":"IFERROR(N69/EC69,\"-\")","v":"-"},{"$f":"IFERROR(N69/ED69,\"-\")","v":"-"},{"$f":"IFERROR(N69/EE69,\"-\")","v":3043},null,null,null,0,{"$f":"IFERROR(N69/EN69,\"-\")","v":"-"}]
["61.","Pittsburg","Rural","HRSA",927,213,4743,1202,0.24955908289241621,7490,867,0.1157543391188251,{"$f":"E70+G70+J70","v":13160},{"$f":"F70+H70+K70","v":2282},{"$f":"IFERROR(N70/M70,\"-\")","v":0.17340425531914894},null,null,7,7,null,{"$f":"IFERROR(N70/S70,\"-\")","v":326},{"$f":"IFERROR(R70/S70,\"-\")","v":1},{"$f":"IFERROR(S70/T70,\"-\")","v":"-"},null,null,null,194,83,null,{"$f":"IFERROR(N70/AB70,\"-\")","v":27.493975903614459},{"$f":"IFERROR(AA70/AB70,\"-\")","v":2.3373493975903616},{"$f":"IFERROR(AB70/AC70,\"-\")","v":"-"},null,null,null,1,1,1,{"$f":"IFERROR(N70/AK70,\"-\")","v":2282},{"$f":"IFERROR(AJ70/AK70,\"-\")","v":1},{"$f":"IFERROR(AK70/AL70,\"-\")","v":1},null,null,null,null,null,{"$f":"IFERROR(N70/AS70,\"-\")","v":"-"},{"$f":"IFERROR(AR70/AS70,\"-\")","v":"-"},{"$f":"IFERROR(AS70/AT70,\"-\")","v":"-"},null,null,null,0,null,null,{"$f":"IFERROR((F70+H70)/BB70,\"-\")","v":"-"},{"$f":"IFERROR(BA70/BB70,\"-\")","v":"-"},{"$f":"IFERROR(BB70/BC70,\"-\")","v":"-"},0,null,null,"-",{"$f":"IFERROR(BG70/BH70,\"-\")","v":"-"},{"$f":"IFERROR(BH70/BI70,\"-\")","v":"-"},null,null,null,0,0,0,"-",{"$f":"IFERROR(BP70/BQ70,\"-\")","v":"-"},{"$f":"IFERROR(BQ70/BR70,\"-\")","v":"-"},0,0,0,"-",{"$f":"IFERROR(BV70/BW70,\"-\")","v":"-"},{"$f":"IFERROR(BW70/BX70,\"-\")","v":"-"},null,null,null,1,1,{"$f":"IFERROR(N70/CF70,\"-\")","v":2282},1,null,null,0,0,0,0,0,0,"-","-",{"$f":"IFERROR(CK70/CM70,\"-\")","v":"-"},{"$f":"IFERROR(CL70/CN70,\"-\")","v":"-"},{"$f":"IFERROR(CM70/CO70,\"-\")","v":"-"},{"$f":"IFERROR(CN70/CP70,\"-\")","v":"-"},null,null,15,15,152.13333333333333,1,null,null,0,null,null,"-",{"$f":"IFERROR(DE70/DF70,\"-\")","v":"-"},{"$f":"IFERROR(DF70/DG70,\"-\")","v":"-"},null,null,null,0,0,0,{"$f":"IFERROR(N70/DO70,\"-\")","v":"-"},{"$f":"IFERROR(DN70/DO70,\"-\")","v":"-"},{"$f":"IFERROR(DO70/DP70,\"-\")","v":"-"},null,null,null,0,{"$f":"IFERROR(N70/DW70,\"-\")","v":"-"},null,null,1,1,1,0,1,{"$f":"IFERROR(N70/EA70,\"-\")","v":2282},{"$f":"IFERROR(N70/EB70,\"-\")","v":2282},{"$f":"IFERROR(N70/EC70,\"-\")","v":2282},{"$f":"IFERROR(N70/ED70,\"-\")","v":"-"},{"$f":"IFERROR(N70/EE70,\"-\")","v":2282},null,null,null,1,{"$f":"IFERROR(N70/EN70,\"-\")","v":2282}]
["62.","Pontotoc","Urban","HRSA",782,131,3889,1039,0.25048169556840078,6762,432,6.3886424134871334E-2,{"$f":"E71+G71+J71","v":11433},{"$f":"F71+H71+K71","v":1602},{"$f":"IFERROR(N71/M71,\"-\")","v":0.14012070322749934},null,null,9,10,null,{"$f":"IFERROR(N71/S71,\"-\")","v":160.19999999999999},{"$f":"IFERROR(R71/S71,\"-\")","v":0.9},{"$f":"IFERROR(S71/T71,\"-\")","v":"-"},null,null,null,245,63,null,{"$f":"IFERROR(N71/AB71,\"-\")","v":25.428571428571427},{"$f":"IFERROR(AA71/AB71,\"-\")","v":3.8888888888888888},{"$f":"IFERROR(AB71/AC71,\"-\")","v":"-"},null,null,null,1,1,1,{"$f":"IFERROR(N71/AK71,\"-\")","v":1602},{"$f":"IFERROR(AJ71/AK71,\"-\")","v":1},{"$f":"IFERROR(AK71/AL71,\"-\")","v":1},null,null,null,1,null,{"$f":"IFERROR(N71/AS71,\"-\")","v":1602},{"$f":"IFERROR(AR71/AS71,\"-\")","v":0},{"$f":"IFERROR(AS71/AT71,\"-\")","v":"-"},null,null,null,0,null,null,{"$f":"IFERROR((F71+H71)/BB71,\"-\")","v":"-"},{"$f":"IFERROR(BA71/BB71,\"-\")","v":"-"},{"$f":"IFERROR(BB71/BC71,\"-\")","v":"-"},0,null,null,"-",{"$f":"IFERROR(BG71/BH71,\"-\")","v":"-"},{"$f":"IFERROR(BH71/BI71,\"-\")","v":"-"},null,null,null,0,0,0,"-",{"$f":"IFERROR(BP71/BQ71,\"-\")","v":"-"},{"$f":"IFERROR(BQ71/BR71,\"-\")","v":"-"},0,0,0,"-",{"$f":"IFERROR(BV71/BW71,\"-\")","v":"-"},{"$f":"IFERROR(BW71/BX71,\"-\")","v":"-"},null,null,null,1,1,{"$f":"IFERROR(N71/CF71,\"-\")","v":1602},1,null,null,0,0,0,0,0,0,"-","-",{"$f":"IFERROR(CK71/CM71,\"-\")","v":"-"},{"$f":"IFERROR(CL71/CN71,\"-\")","v":"-"},{"$f":"IFERROR(CM71/CO71,\"-\")","v":"-"},{"$f":"IFERROR(CN71/CP71,\"-\")","v":"-"},null,null,60,60,26.7,1,null,null,0,null,null,"-",{"$f":"IFERROR(DE71/DF71,\"-\")","v":"-"},{"$f":"IFERROR(DF71/DG71,\"-\")","v":"-"},null,null,null,0,0,0,{"$f":"IFERROR(N71/DO71,\"-\")","v":"-"},{"$f":"IFERROR(DN71/DO71,\"-\")","v":"-"},{"$f":"IFERROR(DO71/DP71,\"-\")","v":"-"},null,null,null,1,{"$f":"IFERROR(N71/DW71,\"-\")","v":1602},null,null,1,1,1,0,1,{"$f":"IFERROR(N71/EA71,\"-\")","v":1602},{"$f":"IFERROR(N71/EB71,\"-\")","v":1602},{"$f":"IFERROR(N71/EC71,\"-\")","v":1602},{"$f":"IFERROR(N71/ED71,\"-\")","v":"-"},{"$f":"IFERROR(N71/EE71,\"-\")","v":1602},null,null,null,1,{"$f":"IFERROR(N71/EN71,\"-\")","v":1602}]
["63.","Pottawatomie","Rural","HRSA",1465,334,7711,1897,0.24313426329555363,12900,1309,0.10147286821705426,{"$f":"E72+G72+J72","v":22076},{"$f":"F72+H72+K72","v":3540},{"$f":"IFERROR(N72/M72,\"-\")","v":0.16035513680014496},null,null,5,1,null,{"$f":"IFERROR(N72/S72,\"-\")","v":3540},{"$f":"IFERROR(R72/S72,\"-\")","v":5},{"$f":"IFERROR(S72/T72,\"-\")","v":"-"},null,null,null,216,77,null,{"$f":"IFERROR(N72/AB72,\"-\")","v":45.974025974025977},{"$f":"IFERROR(AA72/AB72,\"-\")","v":2.8051948051948052},{"$f":"IFERROR(AB72/AC72,\"-\")","v":"-"},null,null,null,1,1,1,{"$f":"IFERROR(N72/AK72,\"-\")","v":3540},{"$f":"IFERROR(AJ72/AK72,\"-\")","v":1},{"$f":"IFERROR(AK72/AL72,\"-\")","v":1},null,null,null,null,null,{"$f":"IFERROR(N72/AS72,\"-\")","v":"-"},{"$f":"IFERROR(AR72/AS72,\"-\")","v":"-"},{"$f":"IFERROR(AS72/AT72,\"-\")","v":"-"},null,null,null,0,null,null,{"$f":"IFERROR((F72+H72)/BB72,\"-\")","v":"-"},{"$f":"IFERROR(BA72/BB72,\"-\")","v":"-"},{"$f":"IFERROR(BB72/BC72,\"-\")","v":"-"},0,null,null,"-",{"$f":"IFERROR(BG72/BH72,\"-\")","v":"-"},{"$f":"IFERROR(BH72/BI72,\"-\")","v":"-"},null,null,null,0,0,0,"-",{"$f":"IFERROR(BP72/BQ72,\"-\")","v":"-"},{"$f":"IFERROR(BQ72/BR72,\"-\")","v":"-"},0,0,0,"-",{"$f":"IFERROR(BV72/BW72,\"-\")","v":"-"},{"$f":"IFERROR(BW72/BX72,\"-\")","v":"-"},null,null,null,0,0,{"$f":"IFERROR(N72/CF72,\"-\")","v":"-"},"-",null,null,0,0,0,0,0,0,"-","-",{"$f":"IFERROR(CK72/CM72,\"-\")","v":"-"},{"$f":"IFERROR(CL72/CN72,\"-\")","v":"-"},{"$f":"IFERROR(CM72/CO72,\"-\")","v":"-"},{"$f":"IFERROR(CN72/CP72,\"-\")","v":"-"},null,null,0,0,"-","-",null,null,0,null,null,"-",{"$f":"IFERROR(DE72/DF72,\"-\")","v":"-"},{"$f":"IFERROR(DF72/DG72,\"-\")","v":"-"},null,null,null,0,0,0,{"$f":"IFERROR(N72/DO72,\"-\")","v":"-"},{"$f":"IFERROR(DN72/DO72,\"-\")","v":"-"},{"$f":"IFERROR(DO72/DP72,\"-\")","v":"-"},null,null,null,0,{"$f":"IFERROR(N72/DW72,\"-\")","v":"-"},null,null,1,1,1,1,1,{"$f":"IFERROR(N72/EA72,\"-\")","v":3540},{"$f":"IFERROR(N72/EB72,\"-\")","v":3540},{"$f":"IFERROR(N72/EC72,\"-\")","v":3540},{"$f":"IFERROR(N72/ED72,\"-\")","v":3540},{"$f":"IFERROR(N72/EE72,\"-\")","v":3540},null,null,null,1,{"$f":"IFERROR(N72/EN72,\"-\")","v":3540}]
["64.","Pushmataha","Rural","HRSA",257,43,1502,228,0.15406480955088117,2016,102,5.0595238095238096E-2,{"$f":"E73+G73+J73","v":3775},{"$f":"F73+H73+K73","v":373},{"$f":"IFERROR(N73/M73,\"-\")","v":9.8807947019867545E-2},null,null,0,0,null,{"$f":"IFERROR(N73/S73,\"-\")","v":"-"},{"$f":"IFERROR(R73/S73,\"-\")","v":"-"},{"$f":"IFERROR(S73/T73,\"-\")","v":"-"},null,null,null,45,63,null,{"$f":"IFERROR(N73/AB73,\"-\")","v":5.9206349206349209},{"$f":"IFERROR(AA73/AB73,\"-\")","v":0.7142857142857143},{"$f":"IFERROR(AB73/AC73,\"-\")","v":"-"},null,null,null,1,1,1,{"$f":"IFERROR(N73/AK73,\"-\")","v":373},{"$f":"IFERROR(AJ73/AK73,\"-\")","v":1},{"$f":"IFERROR(AK73/AL73,\"-\")","v":1},null,null,null,null,null,{"$f":"IFERROR(N73/AS73,\"-\")","v":"-"},{"$f":"IFERROR(AR73/AS73,\"-\")","v":"-"},{"$f":"IFERROR(AS73/AT73,\"-\")","v":"-"},null,null,null,0,null,null,{"$f":"IFERROR((F73+H73)/BB73,\"-\")","v":"-"},{"$f":"IFERROR(BA73/BB73,\"-\")","v":"-"},{"$f":"IFERROR(BB73/BC73,\"-\")","v":"-"},0,null,null,"-",{"$f":"IFERROR(BG73/BH73,\"-\")","v":"-"},{"$f":"IFERROR(BH73/BI73,\"-\")","v":"-"},null,null,null,0,0,0,"-",{"$f":"IFERROR(BP73/BQ73,\"-\")","v":"-"},{"$f":"IFERROR(BQ73/BR73,\"-\")","v":"-"},0,0,0,"-",{"$f":"IFERROR(BV73/BW73,\"-\")","v":"-"},{"$f":"IFERROR(BW73/BX73,\"-\")","v":"-"},null,null,null,0,0,{"$f":"IFERROR(N73/CF73,\"-\")","v":"-"},"-",null,null,0,0,0,0,0,0,"-","-",{"$f":"IFERROR(CK73/CM73,\"-\")","v":"-"},{"$f":"IFERROR(CL73/CN73,\"-\")","v":"-"},{"$f":"IFERROR(CM73/CO73,\"-\")","v":"-"},{"$f":"IFERROR(CN73/CP73,\"-\")","v":"-"},null,null,0,0,"-","-",null,null,0,null,null,"-",{"$f":"IFERROR(DE73/DF73,\"-\")","v":"-"},{"$f":"IFERROR(DF73/DG73,\"-\")","v":"-"},null,null,null,0,0,0,{"$f":"IFERROR(N73/DO73,\"-\")","v":"-"},{"$f":"IFERROR(DN73/DO73,\"-\")","v":"-"},{"$f":"IFERROR(DO73/DP73,\"-\")","v":"-"},null,null,null,0,{"$f":"IFERROR(N73/DW73,\"-\")","v":"-"},null,null,1,1,0,0,1,{"$f":"IFERROR(N73/EA73,\"-\")","v":373},{"$f":"IFERROR(N73/EB73,\"-\")","v":373},{"$f":"IFERROR(N73/EC73,\"-\")","v":"-"},{"$f":"IFERROR(N73/ED73,\"-\")","v":"-"},{"$f":"IFERROR(N73/EE73,\"-\")","v":373},null,null,null,0,{"$f":"IFERROR(N73/EN73,\"-\")","v":"-"}]
["65.","Roger Mills","Rural","HRSA",60,12,234,43,0.1870748299319728,520,27,5.1923076923076926E-2,{"$f":"E74+G74+J74","v":814},{"$f":"F74+H74+K74","v":82},{"$f":"IFERROR(N74/M74,\"-\")","v":0.10073710073710074},null,null,0,0,null,{"$f":"IFERROR(N74/S74,\"-\")","v":"-"},{"$f":"IFERROR(R74/S74,\"-\")","v":"-"},{"$f":"IFERROR(S74/T74,\"-\")","v":"-"},null,null,null,4,0,null,{"$f":"IFERROR(N74/AB74,\"-\")","v":"-"},{"$f":"IFERROR(AA74/AB74,\"-\")","v":"-"},{"$f":"IFERROR(AB74/AC74,\"-\")","v":"-"},null,null,null,1,1,1,{"$f":"IFERROR(N74/AK74,\"-\")","v":82},{"$f":"IFERROR(AJ74/AK74,\"-\")","v":1},{"$f":"IFERROR(AK74/AL74,\"-\")","v":1},null,null,null,null,null,{"$f":"IFERROR(N74/AS74,\"-\")","v":"-"},{"$f":"IFERROR(AR74/AS74,\"-\")","v":"-"},{"$f":"IFERROR(AS74/AT74,\"-\")","v":"-"},null,null,null,0,null,null,{"$f":"IFERROR((F74+H74)/BB74,\"-\")","v":"-"},{"$f":"IFERROR(BA74/BB74,\"-\")","v":"-"},{"$f":"IFERROR(BB74/BC74,\"-\")","v":"-"},0,null,null,"-",{"$f":"IFERROR(BG74/BH74,\"-\")","v":"-"},{"$f":"IFERROR(BH74/BI74,\"-\")","v":"-"},null,null,null,0,0,0,"-",{"$f":"IFERROR(BP74/BQ74,\"-\")","v":"-"},{"$f":"IFERROR(BQ74/BR74,\"-\")","v":"-"},0,0,0,"-",{"$f":"IFERROR(BV74/BW74,\"-\")","v":"-"},{"$f":"IFERROR(BW74/BX74,\"-\")","v":"-"},null,null,null,0,0,{"$f":"IFERROR(N74/CF74,\"-\")","v":"-"},"-",null,null,0,0,0,0,0,0,"-","-",{"$f":"IFERROR(CK74/CM74,\"-\")","v":"-"},{"$f":"IFERROR(CL74/CN74,\"-\")","v":"-"},{"$f":"IFERROR(CM74/CO74,\"-\")","v":"-"},{"$f":"IFERROR(CN74/CP74,\"-\")","v":"-"},null,null,0,0,"-","-",null,null,0,null,null,"-",{"$f":"IFERROR(DE74/DF74,\"-\")","v":"-"},{"$f":"IFERROR(DF74/DG74,\"-\")","v":"-"},null,null,null,0,0,0,{"$f":"IFERROR(N74/DO74,\"-\")","v":"-"},{"$f":"IFERROR(DN74/DO74,\"-\")","v":"-"},{"$f":"IFERROR(DO74/DP74,\"-\")","v":"-"},null,null,null,0,{"$f":"IFERROR(N74/DW74,\"-\")","v":"-"},null,null,1,1,0,0,1,{"$f":"IFERROR(N74/EA74,\"-\")","v":82},{"$f":"IFERROR(N74/EB74,\"-\")","v":82},{"$f":"IFERROR(N74/EC74,\"-\")","v":"-"},{"$f":"IFERROR(N74/ED74,\"-\")","v":"-"},{"$f":"IFERROR(N74/EE74,\"-\")","v":82},null,null,null,0,{"$f":"IFERROR(N74/EN74,\"-\")","v":"-"}]
["66.","Rogers","Urban","HRSA",1272,467,5571,1695,0.31594329972234403,11274,2180,0.19336526521199218,{"$f":"E75+G75+J75","v":18117},{"$f":"F75+H75+K75","v":4342},{"$f":"IFERROR(N75/M75,\"-\")","v":0.23966440359882982},null,null,1,1,null,{"$f":"IFERROR(N75/S75,\"-\")","v":4342},{"$f":"IFERROR(R75/S75,\"-\")","v":1},{"$f":"IFERROR(S75/T75,\"-\")","v":"-"},null,null,null,216,122,null,{"$f":"IFERROR(N75/AB75,\"-\")","v":35.590163934426229},{"$f":"IFERROR(AA75/AB75,\"-\")","v":1.7704918032786885},{"$f":"IFERROR(AB75/AC75,\"-\")","v":"-"},null,null,null,1,1,1,{"$f":"IFERROR(N75/AK75,\"-\")","v":4342},{"$f":"IFERROR(AJ75/AK75,\"-\")","v":1},{"$f":"IFERROR(AK75/AL75,\"-\")","v":1},null,null,null,null,null,{"$f":"IFERROR(N75/AS75,\"-\")","v":"-"},{"$f":"IFERROR(AR75/AS75,\"-\")","v":"-"},{"$f":"IFERROR(AS75/AT75,\"-\")","v":"-"},null,null,null,1,null,null,{"$f":"IFERROR((F75+H75)/BB75,\"-\")","v":"-"},{"$f":"IFERROR(BA75/BB75,\"-\")","v":"-"},{"$f":"IFERROR(BB75/BC75,\"-\")","v":"-"},55,null,null,"-",{"$f":"IFERROR(BG75/BH75,\"-\")","v":"-"},{"$f":"IFERROR(BH75/BI75,\"-\")","v":"-"},null,null,null,0,0,0,"-",{"$f":"IFERROR(BP75/BQ75,\"-\")","v":"-"},{"$f":"IFERROR(BQ75/BR75,\"-\")","v":"-"},0,0,0,"-",{"$f":"IFERROR(BV75/BW75,\"-\")","v":"-"},{"$f":"IFERROR(BW75/BX75,\"-\")","v":"-"},null,null,null,0,0,{"$f":"IFERROR(N75/CF75,\"-\")","v":"-"},"-",null,null,0,0,0,0,0,0,"-","-",{"$f":"IFERROR(CK75/CM75,\"-\")","v":"-"},{"$f":"IFERROR(CL75/CN75,\"-\")","v":"-"},{"$f":"IFERROR(CM75/CO75,\"-\")","v":"-"},{"$f":"IFERROR(CN75/CP75,\"-\")","v":"-"},null,null,0,0,"-","-",null,null,1,null,null,"-",{"$f":"IFERROR(DE75/DF75,\"-\")","v":"-"},{"$f":"IFERROR(DF75/DG75,\"-\")","v":"-"},null,null,null,0,0,0,{"$f":"IFERROR(N75/DO75,\"-\")","v":"-"},{"$f":"IFERROR(DN75/DO75,\"-\")","v":"-"},{"$f":"IFERROR(DO75/DP75,\"-\")","v":"-"},null,null,null,0,{"$f":"IFERROR(N75/DW75,\"-\")","v":"-"},null,null,1,1,1,1,1,{"$f":"IFERROR(N75/EA75,\"-\")","v":4342},{"$f":"IFERROR(N75/EB75,\"-\")","v":4342},{"$f":"IFERROR(N75/EC75,\"-\")","v":4342},{"$f":"IFERROR(N75/ED75,\"-\")","v":4342},{"$f":"IFERROR(N75/EE75,\"-\")","v":4342},null,null,null,0,{"$f":"IFERROR(N75/EN75,\"-\")","v":"-"}]
["67.","Seminole","Rural","HRSA",590,85,3445,921,0.2493184634448575,4707,345,7.3295092415551308E-2,{"$f":"E76+G76+J76","v":8742},{"$f":"F76+H76+K76","v":1351},{"$f":"IFERROR(N76/M76,\"-\")","v":0.15454129489819263},null,null,1,0,null,{"$f":"IFERROR(N76/S76,\"-\")","v":"-"},{"$f":"IFERROR(R76/S76,\"-\")","v":"-"},{"$f":"IFERROR(S76/T76,\"-\")","v":"-"},null,null,null,61,16,null,{"$f":"IFERROR(N76/AB76,\"-\")","v":84.4375},{"$f":"IFERROR(AA76/AB76,\"-\")","v":3.8125},{"$f":"IFERROR(AB76/AC76,\"-\")","v":"-"},null,null,null,1,1,1,{"$f":"IFERROR(N76/AK76,\"-\")","v":1351},{"$f":"IFERROR(AJ76/AK76,\"-\")","v":1},{"$f":"IFERROR(AK76/AL76,\"-\")","v":1},null,null,null,null,null,{"$f":"IFERROR(N76/AS76,\"-\")","v":"-"},{"$f":"IFERROR(AR76/AS76,\"-\")","v":"-"},{"$f":"IFERROR(AS76/AT76,\"-\")","v":"-"},null,null,null,1,null,null,{"$f":"IFERROR((F76+H76)/BB76,\"-\")","v":"-"},{"$f":"IFERROR(BA76/BB76,\"-\")","v":"-"},{"$f":"IFERROR(BB76/BC76,\"-\")","v":"-"},51,null,null,"-",{"$f":"IFERROR(BG76/BH76,\"-\")","v":"-"},{"$f":"IFERROR(BH76/BI76,\"-\")","v":"-"},null,null,null,0,0,0,"-",{"$f":"IFERROR(BP76/BQ76,\"-\")","v":"-"},{"$f":"IFERROR(BQ76/BR76,\"-\")","v":"-"},0,0,0,"-",{"$f":"IFERROR(BV76/BW76,\"-\")","v":"-"},{"$f":"IFERROR(BW76/BX76,\"-\")","v":"-"},null,null,null,0,0,{"$f":"IFERROR(N76/CF76,\"-\")","v":"-"},"-",null,null,0,0,0,0,0,0,"-","-",{"$f":"IFERROR(CK76/CM76,\"-\")","v":"-"},{"$f":"IFERROR(CL76/CN76,\"-\")","v":"-"},{"$f":"IFERROR(CM76/CO76,\"-\")","v":"-"},{"$f":"IFERROR(CN76/CP76,\"-\")","v":"-"},null,null,0,0,"-","-",null,null,1,null,null,"-",{"$f":"IFERROR(DE76/DF76,\"-\")","v":"-"},{"$f":"IFERROR(DF76/DG76,\"-\")","v":"-"},null,null,null,0,0,0,{"$f":"IFERROR(N76/DO76,\"-\")","v":"-"},{"$f":"IFERROR(DN76/DO76,\"-\")","v":"-"},{"$f":"IFERROR(DO76/DP76,\"-\")","v":"-"},null,null,null,0,{"$f":"IFERROR(N76/DW76,\"-\")","v":"-"},null,null,1,1,0,0,1,{"$f":"IFERROR(N76/EA76,\"-\")","v":1351},{"$f":"IFERROR(N76/EB76,\"-\")","v":1351},{"$f":"IFERROR(N76/EC76,\"-\")","v":"-"},{"$f":"IFERROR(N76/ED76,\"-\")","v":"-"},{"$f":"IFERROR(N76/EE76,\"-\")","v":1351},null,null,null,1,{"$f":"IFERROR(N76/EN76,\"-\")","v":1351}]
["68.","Sequoyah","Urban","HRSA",1005,154,5703,901,0.15727489564698868,8348,749,8.9722089123143264E-2,{"$f":"E77+G77+J77","v":15056},{"$f":"F77+H77+K77","v":1804},{"$f":"IFERROR(N77/M77,\"-\")","v":0.11981934112646121},null,null,0,0,null,{"$f":"IFERROR(N77/S77,\"-\")","v":"-"},{"$f":"IFERROR(R77/S77,\"-\")","v":"-"},{"$f":"IFERROR(S77/T77,\"-\")","v":"-"},null,null,null,65,28,null,{"$f":"IFERROR(N77/AB77,\"-\")","v":64.428571428571431},{"$f":"IFERROR(AA77/AB77,\"-\")","v":2.3214285714285716},{"$f":"IFERROR(AB77/AC77,\"-\")","v":"-"},null,null,null,1,1,1,{"$f":"IFERROR(N77/AK77,\"-\")","v":1804},{"$f":"IFERROR(AJ77/AK77,\"-\")","v":1},{"$f":"IFERROR(AK77/AL77,\"-\")","v":1},null,null,null,null,null,{"$f":"IFERROR(N77/AS77,\"-\")","v":"-"},{"$f":"IFERROR(AR77/AS77,\"-\")","v":"-"},{"$f":"IFERROR(AS77/AT77,\"-\")","v":"-"},null,null,null,0,null,null,{"$f":"IFERROR((F77+H77)/BB77,\"-\")","v":"-"},{"$f":"IFERROR(BA77/BB77,\"-\")","v":"-"},{"$f":"IFERROR(BB77/BC77,\"-\")","v":"-"},0,null,null,"-",{"$f":"IFERROR(BG77/BH77,\"-\")","v":"-"},{"$f":"IFERROR(BH77/BI77,\"-\")","v":"-"},null,null,null,0,0,0,"-",{"$f":"IFERROR(BP77/BQ77,\"-\")","v":"-"},{"$f":"IFERROR(BQ77/BR77,\"-\")","v":"-"},0,0,0,"-",{"$f":"IFERROR(BV77/BW77,\"-\")","v":"-"},{"$f":"IFERROR(BW77/BX77,\"-\")","v":"-"},null,null,null,0,0,{"$f":"IFERROR(N77/CF77,\"-\")","v":"-"},"-",null,null,0,0,0,0,0,0,"-","-",{"$f":"IFERROR(CK77/CM77,\"-\")","v":"-"},{"$f":"IFERROR(CL77/CN77,\"-\")","v":"-"},{"$f":"IFERROR(CM77/CO77,\"-\")","v":"-"},{"$f":"IFERROR(CN77/CP77,\"-\")","v":"-"},null,null,0,0,"-","-",null,null,0,null,null,"-",{"$f":"IFERROR(DE77/DF77,\"-\")","v":"-"},{"$f":"IFERROR(DF77/DG77,\"-\")","v":"-"},null,null,null,0,0,0,{"$f":"IFERROR(N77/DO77,\"-\")","v":"-"},{"$f":"IFERROR(DN77/DO77,\"-\")","v":"-"},{"$f":"IFERROR(DO77/DP77,\"-\")","v":"-"},null,null,null,0,{"$f":"IFERROR(N77/DW77,\"-\")","v":"-"},null,null,1,1,0,0,1,{"$f":"IFERROR(N77/EA77,\"-\")","v":1804},{"$f":"IFERROR(N77/EB77,\"-\")","v":1804},{"$f":"IFERROR(N77/EC77,\"-\")","v":"-"},{"$f":"IFERROR(N77/ED77,\"-\")","v":"-"},{"$f":"IFERROR(N77/EE77,\"-\")","v":1804},null,null,null,1,{"$f":"IFERROR(N77/EN77,\"-\")","v":1804}]
["69.","Stephens","Rural","HRSA",920,208,4526,795,0.18417186926184356,7285,649,8.9087165408373373E-2,{"$f":"E78+G78+J78","v":12731},{"$f":"F78+H78+K78","v":1652},{"$f":"IFERROR(N78/M78,\"-\")","v":0.12976199827193466},null,null,2,0,null,{"$f":"IFERROR(N78/S78,\"-\")","v":"-"},{"$f":"IFERROR(R78/S78,\"-\")","v":"-"},{"$f":"IFERROR(S78/T78,\"-\")","v":"-"},null,null,null,69,8,null,{"$f":"IFERROR(N78/AB78,\"-\")","v":206.5},{"$f":"IFERROR(AA78/AB78,\"-\")","v":8.625},{"$f":"IFERROR(AB78/AC78,\"-\")","v":"-"},null,null,null,1,1,1,{"$f":"IFERROR(N78/AK78,\"-\")","v":1652},{"$f":"IFERROR(AJ78/AK78,\"-\")","v":1},{"$f":"IFERROR(AK78/AL78,\"-\")","v":1},null,null,null,null,null,{"$f":"IFERROR(N78/AS78,\"-\")","v":"-"},{"$f":"IFERROR(AR78/AS78,\"-\")","v":"-"},{"$f":"IFERROR(AS78/AT78,\"-\")","v":"-"},null,null,null,1,null,null,{"$f":"IFERROR((F78+H78)/BB78,\"-\")","v":"-"},{"$f":"IFERROR(BA78/BB78,\"-\")","v":"-"},{"$f":"IFERROR(BB78/BC78,\"-\")","v":"-"},25,null,null,"-",{"$f":"IFERROR(BG78/BH78,\"-\")","v":"-"},{"$f":"IFERROR(BH78/BI78,\"-\")","v":"-"},null,null,null,0,0,0,"-",{"$f":"IFERROR(BP78/BQ78,\"-\")","v":"-"},{"$f":"IFERROR(BQ78/BR78,\"-\")","v":"-"},0,0,0,"-",{"$f":"IFERROR(BV78/BW78,\"-\")","v":"-"},{"$f":"IFERROR(BW78/BX78,\"-\")","v":"-"},null,null,null,0,0,{"$f":"IFERROR(N78/CF78,\"-\")","v":"-"},"-",null,null,0,0,0,0,0,0,"-","-",{"$f":"IFERROR(CK78/CM78,\"-\")","v":"-"},{"$f":"IFERROR(CL78/CN78,\"-\")","v":"-"},{"$f":"IFERROR(CM78/CO78,\"-\")","v":"-"},{"$f":"IFERROR(CN78/CP78,\"-\")","v":"-"},null,null,0,0,"-","-",null,null,1,null,null,"-",{"$f":"IFERROR(DE78/DF78,\"-\")","v":"-"},{"$f":"IFERROR(DF78/DG78,\"-\")","v":"-"},null,null,null,0,0,0,{"$f":"IFERROR(N78/DO78,\"-\")","v":"-"},{"$f":"IFERROR(DN78/DO78,\"-\")","v":"-"},{"$f":"IFERROR(DO78/DP78,\"-\")","v":"-"},null,null,null,0,{"$f":"IFERROR(N78/DW78,\"-\")","v":"-"},null,null,1,1,0,0,1,{"$f":"IFERROR(N78/EA78,\"-\")","v":1652},{"$f":"IFERROR(N78/EB78,\"-\")","v":1652},{"$f":"IFERROR(N78/EC78,\"-\")","v":"-"},{"$f":"IFERROR(N78/ED78,\"-\")","v":"-"},{"$f":"IFERROR(N78/EE78,\"-\")","v":1652},null,null,null,0,{"$f":"IFERROR(N78/EN78,\"-\")","v":"-"}]
["70.","Texas","Rural","HRSA",440,33,1102,132,0.10700389105058365,4215,124,2.9418742586002373E-2,{"$f":"E79+G79+J79","v":5757},{"$f":"F79+H79+K79","v":289},{"$f":"IFERROR(N79/M79,\"-\")","v":5.0199756817787045E-2},null,null,0,0,null,{"$f":"IFERROR(N79/S79,\"-\")","v":"-"},{"$f":"IFERROR(R79/S79,\"-\")","v":"-"},{"$f":"IFERROR(S79/T79,\"-\")","v":"-"},null,null,null,10,3,null,{"$f":"IFERROR(N79/AB79,\"-\")","v":96.333333333333329},{"$f":"IFERROR(AA79/AB79,\"-\")","v":3.3333333333333335},{"$f":"IFERROR(AB79/AC79,\"-\")","v":"-"},null,null,null,1,1,1,{"$f":"IFERROR(N79/AK79,\"-\")","v":289},{"$f":"IFERROR(AJ79/AK79,\"-\")","v":1},{"$f":"IFERROR(AK79/AL79,\"-\")","v":1},null,null,null,null,null,{"$f":"IFERROR(N79/AS79,\"-\")","v":"-"},{"$f":"IFERROR(AR79/AS79,\"-\")","v":"-"},{"$f":"IFERROR(AS79/AT79,\"-\")","v":"-"},null,null,null,0,null,null,{"$f":"IFERROR((F79+H79)/BB79,\"-\")","v":"-"},{"$f":"IFERROR(BA79/BB79,\"-\")","v":"-"},{"$f":"IFERROR(BB79/BC79,\"-\")","v":"-"},0,null,null,"-",{"$f":"IFERROR(BG79/BH79,\"-\")","v":"-"},{"$f":"IFERROR(BH79/BI79,\"-\")","v":"-"},null,null,null,0,0,0,"-",{"$f":"IFERROR(BP79/BQ79,\"-\")","v":"-"},{"$f":"IFERROR(BQ79/BR79,\"-\")","v":"-"},0,0,0,"-",{"$f":"IFERROR(BV79/BW79,\"-\")","v":"-"},{"$f":"IFERROR(BW79/BX79,\"-\")","v":"-"},null,null,null,0,0,{"$f":"IFERROR(N79/CF79,\"-\")","v":"-"},"-",null,null,0,0,0,0,0,0,"-","-",{"$f":"IFERROR(CK79/CM79,\"-\")","v":"-"},{"$f":"IFERROR(CL79/CN79,\"-\")","v":"-"},{"$f":"IFERROR(CM79/CO79,\"-\")","v":"-"},{"$f":"IFERROR(CN79/CP79,\"-\")","v":"-"},null,null,0,0,"-","-",null,null,0,null,null,"-",{"$f":"IFERROR(DE79/DF79,\"-\")","v":"-"},{"$f":"IFERROR(DF79/DG79,\"-\")","v":"-"},null,null,null,0,0,0,{"$f":"IFERROR(N79/DO79,\"-\")","v":"-"},{"$f":"IFERROR(DN79/DO79,\"-\")","v":"-"},{"$f":"IFERROR(DO79/DP79,\"-\")","v":"-"},null,null,null,0,{"$f":"IFERROR(N79/DW79,\"-\")","v":"-"},null,null,1,1,0,0,1,{"$f":"IFERROR(N79/EA79,\"-\")","v":289},{"$f":"IFERROR(N79/EB79,\"-\")","v":289},{"$f":"IFERROR(N79/EC79,\"-\")","v":"-"},{"$f":"IFERROR(N79/ED79,\"-\")","v":"-"},{"$f":"IFERROR(N79/EE79,\"-\")","v":289},null,null,null,1,{"$f":"IFERROR(N79/EN79,\"-\")","v":289}]
["71.","Tillman","Rural","HRSA",171,25,806,120,0.14841351074718526,1275,79,6.1960784313725488E-2,{"$f":"E80+G80+J80","v":2252},{"$f":"F80+H80+K80","v":224},{"$f":"IFERROR(N80/M80,\"-\")","v":9.9467140319715805E-2},null,null,0,0,null,{"$f":"IFERROR(N80/S80,\"-\")","v":"-"},{"$f":"IFERROR(R80/S80,\"-\")","v":"-"},{"$f":"IFERROR(S80/T80,\"-\")","v":"-"},null,null,null,15,0,null,{"$f":"IFERROR(N80/AB80,\"-\")","v":"-"},{"$f":"IFERROR(AA80/AB80,\"-\")","v":"-"},{"$f":"IFERROR(AB80/AC80,\"-\")","v":"-"},null,null,null,1,1,1,{"$f":"IFERROR(N80/AK80,\"-\")","v":224},{"$f":"IFERROR(AJ80/AK80,\"-\")","v":1},{"$f":"IFERROR(AK80/AL80,\"-\")","v":1},null,null,null,null,null,{"$f":"IFERROR(N80/AS80,\"-\")","v":"-"},{"$f":"IFERROR(AR80/AS80,\"-\")","v":"-"},{"$f":"IFERROR(AS80/AT80,\"-\")","v":"-"},null,null,null,0,null,null,{"$f":"IFERROR((F80+H80)/BB80,\"-\")","v":"-"},{"$f":"IFERROR(BA80/BB80,\"-\")","v":"-"},{"$f":"IFERROR(BB80/BC80,\"-\")","v":"-"},0,null,null,"-",{"$f":"IFERROR(BG80/BH80,\"-\")","v":"-"},{"$f":"IFERROR(BH80/BI80,\"-\")","v":"-"},null,null,null,0,0,0,"-",{"$f":"IFERROR(BP80/BQ80,\"-\")","v":"-"},{"$f":"IFERROR(BQ80/BR80,\"-\")","v":"-"},0,0,0,"-",{"$f":"IFERROR(BV80/BW80,\"-\")","v":"-"},{"$f":"IFERROR(BW80/BX80,\"-\")","v":"-"},null,null,null,0,0,{"$f":"IFERROR(N80/CF80,\"-\")","v":"-"},"-",null,null,0,0,0,0,0,0,"-","-",{"$f":"IFERROR(CK80/CM80,\"-\")","v":"-"},{"$f":"IFERROR(CL80/CN80,\"-\")","v":"-"},{"$f":"IFERROR(CM80/CO80,\"-\")","v":"-"},{"$f":"IFERROR(CN80/CP80,\"-\")","v":"-"},null,null,0,0,"-","-",null,null,0,null,null,"-",{"$f":"IFERROR(DE80/DF80,\"-\")","v":"-"},{"$f":"IFERROR(DF80/DG80,\"-\")","v":"-"},null,null,null,0,0,0,{"$f":"IFERROR(N80/DO80,\"-\")","v":"-"},{"$f":"IFERROR(DN80/DO80,\"-\")","v":"-"},{"$f":"IFERROR(DO80/DP80,\"-\")","v":"-"},null,null,null,0,{"$f":"IFERROR(N80/DW80,\"-\")","v":"-"},null,null,1,1,0,0,1,{"$f":"IFERROR(N80/EA80,\"-\")","v":224},{"$f":"IFERROR(N80/EB80,\"-\")","v":224},{"$f":"IFERROR(N80/EC80,\"-\")","v":"-"},{"$f":"IFERROR(N80/ED80,\"-\")","v":"-"},{"$f":"IFERROR(N80/EE80,\"-\")","v":224},null,null,null,0,{"$f":"IFERROR(N80/EN80,\"-\")","v":"-"}]
["72.","Tulsa","Urban","HRSA",12179,3988,52537,16610,0.31828295939180418,112205,16850,0.15017156098213091,{"$f":"E81+G81+J81","v":176921},{"$f":"F81+H81+K81","v":37448},{"$f":"IFERROR(N81/M81,\"-\")","v":0.21166509345979279},null,null,139,182,null,{"$f":"IFERROR(N81/S81,\"-\")","v":205.75824175824175},{"$f":"IFERROR(R81/S81,\"-\")","v":0.76373626373626369},{"$f":"IFERROR(S81/T81,\"-\")","v":"-"},null,null,null,3423,919,null,{"$f":"IFERROR(N81/AB81,\"-\")","v":40.748639825897712},{"$f":"IFERROR(AA81/AB81,\"-\")","v":3.7247007616974974},{"$f":"IFERROR(AB81/AC81,\"-\")","v":"-"},null,null,null,1,1,1,{"$f":"IFERROR(N81/AK81,\"-\")","v":37448},{"$f":"IFERROR(AJ81/AK81,\"-\")","v":1},{"$f":"IFERROR(AK81/AL81,\"-\")","v":1},null,null,null,2,null,{"$f":"IFERROR(N81/AS81,\"-\")","v":18724},{"$f":"IFERROR(AR81/AS81,\"-\")","v":0},{"$f":"IFERROR(AS81/AT81,\"-\")","v":"-"},null,null,null,0,null,null,{"$f":"IFERROR((F81+H81)/BB81,\"-\")","v":"-"},{"$f":"IFERROR(BA81/BB81,\"-\")","v":"-"},{"$f":"IFERROR(BB81/BC81,\"-\")","v":"-"},0,null,null,"-",{"$f":"IFERROR(BG81/BH81,\"-\")","v":"-"},{"$f":"IFERROR(BH81/BI81,\"-\")","v":"-"},null,null,null,0,0,0,"-",{"$f":"IFERROR(BP81/BQ81,\"-\")","v":"-"},{"$f":"IFERROR(BQ81/BR81,\"-\")","v":"-"},0,0,0,"-",{"$f":"IFERROR(BV81/BW81,\"-\")","v":"-"},{"$f":"IFERROR(BW81/BX81,\"-\")","v":"-"},null,null,null,5,4,{"$f":"IFERROR(N81/CF81,\"-\")","v":9362},1.25,null,null,0,0,0,0,0,0,"-","-",{"$f":"IFERROR(CK81/CM81,\"-\")","v":"-"},{"$f":"IFERROR(CL81/CN81,\"-\")","v":"-"},{"$f":"IFERROR(CM81/CO81,\"-\")","v":"-"},{"$f":"IFERROR(CN81/CP81,\"-\")","v":"-"},null,null,329,329,113.82370820668693,1,null,null,0,null,null,"-",{"$f":"IFERROR(DE81/DF81,\"-\")","v":"-"},{"$f":"IFERROR(DF81/DG81,\"-\")","v":"-"},null,null,null,0,0,0,{"$f":"IFERROR(N81/DO81,\"-\")","v":"-"},{"$f":"IFERROR(DN81/DO81,\"-\")","v":"-"},{"$f":"IFERROR(DO81/DP81,\"-\")","v":"-"},null,null,null,4,{"$f":"IFERROR(N81/DW81,\"-\")","v":9362},null,null,1,1,5,4,1,{"$f":"IFERROR(N81/EA81,\"-\")","v":37448},{"$f":"IFERROR(N81/EB81,\"-\")","v":37448},{"$f":"IFERROR(N81/EC81,\"-\")","v":7489.6},{"$f":"IFERROR(N81/ED81,\"-\")","v":9362},{"$f":"IFERROR(N81/EE81,\"-\")","v":37448},null,null,null,1,{"$f":"IFERROR(N81/EN81,\"-\")","v":37448}]
["73.","Wagoner","Urban","HRSA",1227,394,4836,1212,0.26488537027873987,10868,1593,0.14657710710342289,{"$f":"E82+G82+J82","v":16931},{"$f":"F82+H82+K82","v":3199},{"$f":"IFERROR(N82/M82,\"-\")","v":0.18894335833677869},null,null,1,1,null,{"$f":"IFERROR(N82/S82,\"-\")","v":3199},{"$f":"IFERROR(R82/S82,\"-\")","v":1},{"$f":"IFERROR(S82/T82,\"-\")","v":"-"},null,null,null,89,35,null,{"$f":"IFERROR(N82/AB82,\"-\")","v":91.4},{"$f":"IFERROR(AA82/AB82,\"-\")","v":2.5428571428571427},{"$f":"IFERROR(AB82/AC82,\"-\")","v":"-"},null,null,null,1,1,1,{"$f":"IFERROR(N82/AK82,\"-\")","v":3199},{"$f":"IFERROR(AJ82/AK82,\"-\")","v":1},{"$f":"IFERROR(AK82/AL82,\"-\")","v":1},null,null,null,null,null,{"$f":"IFERROR(N82/AS82,\"-\")","v":"-"},{"$f":"IFERROR(AR82/AS82,\"-\")","v":"-"},{"$f":"IFERROR(AS82/AT82,\"-\")","v":"-"},null,null,null,0,null,null,{"$f":"IFERROR((F82+H82)/BB82,\"-\")","v":"-"},{"$f":"IFERROR(BA82/BB82,\"-\")","v":"-"},{"$f":"IFERROR(BB82/BC82,\"-\")","v":"-"},0,null,null,"-",{"$f":"IFERROR(BG82/BH82,\"-\")","v":"-"},{"$f":"IFERROR(BH82/BI82,\"-\")","v":"-"},null,null,null,0,0,0,"-",{"$f":"IFERROR(BP82/BQ82,\"-\")","v":"-"},{"$f":"IFERROR(BQ82/BR82,\"-\")","v":"-"},0,0,0,"-",{"$f":"IFERROR(BV82/BW82,\"-\")","v":"-"},{"$f":"IFERROR(BW82/BX82,\"-\")","v":"-"},null,null,null,0,0,{"$f":"IFERROR(N82/CF82,\"-\")","v":"-"},"-",null,null,0,0,0,0,0,0,"-","-",{"$f":"IFERROR(CK82/CM82,\"-\")","v":"-"},{"$f":"IFERROR(CL82/CN82,\"-\")","v":"-"},{"$f":"IFERROR(CM82/CO82,\"-\")","v":"-"},{"$f":"IFERROR(CN82/CP82,\"-\")","v":"-"},null,null,0,0,"-","-",null,null,0,null,null,"-",{"$f":"IFERROR(DE82/DF82,\"-\")","v":"-"},{"$f":"IFERROR(DF82/DG82,\"-\")","v":"-"},null,null,null,0,0,0,{"$f":"IFERROR(N82/DO82,\"-\")","v":"-"},{"$f":"IFERROR(DN82/DO82,\"-\")","v":"-"},{"$f":"IFERROR(DO82/DP82,\"-\")","v":"-"},null,null,null,0,{"$f":"IFERROR(N82/DW82,\"-\")","v":"-"},null,null,1,1,0,0,1,{"$f":"IFERROR(N82/EA82,\"-\")","v":3199},{"$f":"IFERROR(N82/EB82,\"-\")","v":3199},{"$f":"IFERROR(N82/EC82,\"-\")","v":"-"},{"$f":"IFERROR(N82/ED82,\"-\")","v":"-"},{"$f":"IFERROR(N82/EE82,\"-\")","v":3199},null,null,null,0,{"$f":"IFERROR(N82/EN82,\"-\")","v":"-"}]
["74.","Washington","Rural","HRSA",897,349,4423,1610,0.36823308270676691,7952,1723,0.21667505030181086,{"$f":"E83+G83+J83","v":13272},{"$f":"F83+H83+K83","v":3682},{"$f":"IFERROR(N83/M83,\"-\")","v":0.27742616033755274},null,null,1,1,null,{"$f":"IFERROR(N83/S83,\"-\")","v":3682},{"$f":"IFERROR(R83/S83,\"-\")","v":1},{"$f":"IFERROR(S83/T83,\"-\")","v":"-"},null,null,null,148,65,null,{"$f":"IFERROR(N83/AB83,\"-\")","v":56.646153846153844},{"$f":"IFERROR(AA83/AB83,\"-\")","v":2.2769230769230768},{"$f":"IFERROR(AB83/AC83,\"-\")","v":"-"},null,null,null,1,1,1,{"$f":"IFERROR(N83/AK83,\"-\")","v":3682},{"$f":"IFERROR(AJ83/AK83,\"-\")","v":1},{"$f":"IFERROR(AK83/AL83,\"-\")","v":1},null,null,null,null,null,{"$f":"IFERROR(N83/AS83,\"-\")","v":"-"},{"$f":"IFERROR(AR83/AS83,\"-\")","v":"-"},{"$f":"IFERROR(AS83/AT83,\"-\")","v":"-"},null,null,null,0,null,null,{"$f":"IFERROR((F83+H83)/BB83,\"-\")","v":"-"},{"$f":"IFERROR(BA83/BB83,\"-\")","v":"-"},{"$f":"IFERROR(BB83/BC83,\"-\")","v":"-"},0,null,null,"-",{"$f":"IFERROR(BG83/BH83,\"-\")","v":"-"},{"$f":"IFERROR(BH83/BI83,\"-\")","v":"-"},null,null,null,0,0,0,"-",{"$f":"IFERROR(BP83/BQ83,\"-\")","v":"-"},{"$f":"IFERROR(BQ83/BR83,\"-\")","v":"-"},0,0,0,"-",{"$f":"IFERROR(BV83/BW83,\"-\")","v":"-"},{"$f":"IFERROR(BW83/BX83,\"-\")","v":"-"},null,null,null,0,0,{"$f":"IFERROR(N83/CF83,\"-\")","v":"-"},"-",null,null,1,0,1,0,1,0,3682,"-",{"$f":"IFERROR(CK83/CM83,\"-\")","v":1},{"$f":"IFERROR(CL83/CN83,\"-\")","v":"-"},{"$f":"IFERROR(CM83/CO83,\"-\")","v":1},{"$f":"IFERROR(CN83/CP83,\"-\")","v":"-"},null,null,9,9,409.11111111111109,1,null,null,0,null,null,"-",{"$f":"IFERROR(DE83/DF83,\"-\")","v":"-"},{"$f":"IFERROR(DF83/DG83,\"-\")","v":"-"},null,null,null,0,0,0,{"$f":"IFERROR(N83/DO83,\"-\")","v":"-"},{"$f":"IFERROR(DN83/DO83,\"-\")","v":"-"},{"$f":"IFERROR(DO83/DP83,\"-\")","v":"-"},null,null,null,0,{"$f":"IFERROR(N83/DW83,\"-\")","v":"-"},null,null,1,1,0,0,1,{"$f":"IFERROR(N83/EA83,\"-\")","v":3682},{"$f":"IFERROR(N83/EB83,\"-\")","v":3682},{"$f":"IFERROR(N83/EC83,\"-\")","v":"-"},{"$f":"IFERROR(N83/ED83,\"-\")","v":"-"},{"$f":"IFERROR(N83/EE83,\"-\")","v":3682},null,null,null,0,{"$f":"IFERROR(N83/EN83,\"-\")","v":"-"}]
["75.","Washita","Rural","HRSA",248,62,1002,216,0.22239999999999999,1868,173,9.2612419700214138E-2,{"$f":"E84+G84+J84","v":3118},{"$f":"F84+H84+K84","v":451},{"$f":"IFERROR(N84/M84,\"-\")","v":0.14464400256574728},null,null,1,1,null,{"$f":"IFERROR(N84/S84,\"-\")","v":451},{"$f":"IFERROR(R84/S84,\"-\")","v":1},{"$f":"IFERROR(S84/T84,\"-\")","v":"-"},null,null,null,19,0,null,{"$f":"IFERROR(N84/AB84,\"-\")","v":"-"},{"$f":"IFERROR(AA84/AB84,\"-\")","v":"-"},{"$f":"IFERROR(AB84/AC84,\"-\")","v":"-"},null,null,null,1,1,1,{"$f":"IFERROR(N84/AK84,\"-\")","v":451},{"$f":"IFERROR(AJ84/AK84,\"-\")","v":1},{"$f":"IFERROR(AK84/AL84,\"-\")","v":1},null,null,null,null,null,{"$f":"IFERROR(N84/AS84,\"-\")","v":"-"},{"$f":"IFERROR(AR84/AS84,\"-\")","v":"-"},{"$f":"IFERROR(AS84/AT84,\"-\")","v":"-"},null,null,null,0,null,null,{"$f":"IFERROR((F84+H84)/BB84,\"-\")","v":"-"},{"$f":"IFERROR(BA84/BB84,\"-\")","v":"-"},{"$f":"IFERROR(BB84/BC84,\"-\")","v":"-"},0,null,null,"-",{"$f":"IFERROR(BG84/BH84,\"-\")","v":"-"},{"$f":"IFERROR(BH84/BI84,\"-\")","v":"-"},null,null,null,0,0,0,"-",{"$f":"IFERROR(BP84/BQ84,\"-\")","v":"-"},{"$f":"IFERROR(BQ84/BR84,\"-\")","v":"-"},0,0,0,"-",{"$f":"IFERROR(BV84/BW84,\"-\")","v":"-"},{"$f":"IFERROR(BW84/BX84,\"-\")","v":"-"},null,null,null,0,0,{"$f":"IFERROR(N84/CF84,\"-\")","v":"-"},"-",null,null,0,0,0,0,0,0,"-","-",{"$f":"IFERROR(CK84/CM84,\"-\")","v":"-"},{"$f":"IFERROR(CL84/CN84,\"-\")","v":"-"},{"$f":"IFERROR(CM84/CO84,\"-\")","v":"-"},{"$f":"IFERROR(CN84/CP84,\"-\")","v":"-"},null,null,0,0,"-","-",null,null,0,null,null,"-",{"$f":"IFERROR(DE84/DF84,\"-\")","v":"-"},{"$f":"IFERROR(DF84/DG84,\"-\")","v":"-"},null,null,null,0,0,0,{"$f":"IFERROR(N84/DO84,\"-\")","v":"-"},{"$f":"IFERROR(DN84/DO84,\"-\")","v":"-"},{"$f":"IFERROR(DO84/DP84,\"-\")","v":"-"},null,null,null,0,{"$f":"IFERROR(N84/DW84,\"-\")","v":"-"},null,null,1,1,0,0,1,{"$f":"IFERROR(N84/EA84,\"-\")","v":451},{"$f":"IFERROR(N84/EB84,\"-\")","v":451},{"$f":"IFERROR(N84/EC84,\"-\")","v":"-"},{"$f":"IFERROR(N84/ED84,\"-\")","v":"-"},{"$f":"IFERROR(N84/EE84,\"-\")","v":451},null,null,null,0,{"$f":"IFERROR(N84/EN84,\"-\")","v":"-"}]
["76.","Woods","Rural","HRSA",123,20,534,111,0.19939117199391171,989,56,5.6622851365015166E-2,{"$f":"E85+G85+J85","v":1646},{"$f":"F85+H85+K85","v":187},{"$f":"IFERROR(N85/M85,\"-\")","v":0.11360874848116646},null,null,0,1,null,{"$f":"IFERROR(N85/S85,\"-\")","v":187},{"$f":"IFERROR(R85/S85,\"-\")","v":0},{"$f":"IFERROR(S85/T85,\"-\")","v":"-"},null,null,null,32,5,null,{"$f":"IFERROR(N85/AB85,\"-\")","v":37.4},{"$f":"IFERROR(AA85/AB85,\"-\")","v":6.4},{"$f":"IFERROR(AB85/AC85,\"-\")","v":"-"},null,null,null,1,1,1,{"$f":"IFERROR(N85/AK85,\"-\")","v":187},{"$f":"IFERROR(AJ85/AK85,\"-\")","v":1},{"$f":"IFERROR(AK85/AL85,\"-\")","v":1},null,null,null,null,null,{"$f":"IFERROR(N85/AS85,\"-\")","v":"-"},{"$f":"IFERROR(AR85/AS85,\"-\")","v":"-"},{"$f":"IFERROR(AS85/AT85,\"-\")","v":"-"},null,null,null,0,null,null,{"$f":"IFERROR((F85+H85)/BB85,\"-\")","v":"-"},{"$f":"IFERROR(BA85/BB85,\"-\")","v":"-"},{"$f":"IFERROR(BB85/BC85,\"-\")","v":"-"},0,null,null,"-",{"$f":"IFERROR(BG85/BH85,\"-\")","v":"-"},{"$f":"IFERROR(BH85/BI85,\"-\")","v":"-"},null,null,null,0,0,0,"-",{"$f":"IFERROR(BP85/BQ85,\"-\")","v":"-"},{"$f":"IFERROR(BQ85/BR85,\"-\")","v":"-"},0,0,0,"-",{"$f":"IFERROR(BV85/BW85,\"-\")","v":"-"},{"$f":"IFERROR(BW85/BX85,\"-\")","v":"-"},null,null,null,0,0,{"$f":"IFERROR(N85/CF85,\"-\")","v":"-"},"-",null,null,0,0,0,0,0,0,"-","-",{"$f":"IFERROR(CK85/CM85,\"-\")","v":"-"},{"$f":"IFERROR(CL85/CN85,\"-\")","v":"-"},{"$f":"IFERROR(CM85/CO85,\"-\")","v":"-"},{"$f":"IFERROR(CN85/CP85,\"-\")","v":"-"},null,null,0,0,"-","-",null,null,0,null,null,"-",{"$f":"IFERROR(DE85/DF85,\"-\")","v":"-"},{"$f":"IFERROR(DF85/DG85,\"-\")","v":"-"},null,null,null,0,0,0,{"$f":"IFERROR(N85/DO85,\"-\")","v":"-"},{"$f":"IFERROR(DN85/DO85,\"-\")","v":"-"},{"$f":"IFERROR(DO85/DP85,\"-\")","v":"-"},null,null,null,0,{"$f":"IFERROR(N85/DW85,\"-\")","v":"-"},null,null,1,1,0,0,1,{"$f":"IFERROR(N85/EA85,\"-\")","v":187},{"$f":"IFERROR(N85/EB85,\"-\")","v":187},{"$f":"IFERROR(N85/EC85,\"-\")","v":"-"},{"$f":"IFERROR(N85/ED85,\"-\")","v":"-"},{"$f":"IFERROR(N85/EE85,\"-\")","v":187},null,null,null,0,{"$f":"IFERROR(N85/EN85,\"-\")","v":"-"}]
["77.","Woodward","Rural","HRSA",356,86,1385,358,0.25502584721424471,3064,308,0.10052219321148825,{"$f":"E86+G86+J86","v":4805},{"$f":"F86+H86+K86","v":752},{"$f":"IFERROR(N86/M86,\"-\")","v":0.15650364203954215},null,null,0,6,null,{"$f":"IFERROR(N86/S86,\"-\")","v":125.33333333333333},{"$f":"IFERROR(R86/S86,\"-\")","v":0},{"$f":"IFERROR(S86/T86,\"-\")","v":"-"},null,null,null,64,21,null,{"$f":"IFERROR(N86/AB86,\"-\")","v":35.80952380952381},{"$f":"IFERROR(AA86/AB86,\"-\")","v":3.0476190476190474},{"$f":"IFERROR(AB86/AC86,\"-\")","v":"-"},null,null,null,1,1,1,{"$f":"IFERROR(N86/AK86,\"-\")","v":752},{"$f":"IFERROR(AJ86/AK86,\"-\")","v":1},{"$f":"IFERROR(AK86/AL86,\"-\")","v":1},null,null,null,null,null,{"$f":"IFERROR(N86/AS86,\"-\")","v":"-"},{"$f":"IFERROR(AR86/AS86,\"-\")","v":"-"},{"$f":"IFERROR(AS86/AT86,\"-\")","v":"-"},null,null,null,0,null,null,{"$f":"IFERROR((F86+H86)/BB86,\"-\")","v":"-"},{"$f":"IFERROR(BA86/BB86,\"-\")","v":"-"},{"$f":"IFERROR(BB86/BC86,\"-\")","v":"-"},0,null,null,"-",{"$f":"IFERROR(BG86/BH86,\"-\")","v":"-"},{"$f":"IFERROR(BH86/BI86,\"-\")","v":"-"},null,null,null,0,1,0,308,{"$f":"IFERROR(BP86/BQ86,\"-\")","v":0},{"$f":"IFERROR(BQ86/BR86,\"-\")","v":"-"},0,0,0,"-",{"$f":"IFERROR(BV86/BW86,\"-\")","v":"-"},{"$f":"IFERROR(BW86/BX86,\"-\")","v":"-"},null,null,null,1,1,{"$f":"IFERROR(N86/CF86,\"-\")","v":752},1,null,null,0,0,0,0,0,0,"-","-",{"$f":"IFERROR(CK86/CM86,\"-\")","v":"-"},{"$f":"IFERROR(CL86/CN86,\"-\")","v":"-"},{"$f":"IFERROR(CM86/CO86,\"-\")","v":"-"},{"$f":"IFERROR(CN86/CP86,\"-\")","v":"-"},null,null,28,28,26.857142857142858,1,null,null,0,null,null,"-",{"$f":"IFERROR(DE86/DF86,\"-\")","v":"-"},{"$f":"IFERROR(DF86/DG86,\"-\")","v":"-"},null,null,null,0,0,0,{"$f":"IFERROR(N86/DO86,\"-\")","v":"-"},{"$f":"IFERROR(DN86/DO86,\"-\")","v":"-"},{"$f":"IFERROR(DO86/DP86,\"-\")","v":"-"},null,null,null,1,{"$f":"IFERROR(N86/DW86,\"-\")","v":752},null,null,1,1,0,0,1,{"$f":"IFERROR(N86/EA86,\"-\")","v":752},{"$f":"IFERROR(N86/EB86,\"-\")","v":752},{"$f":"IFERROR(N86/EC86,\"-\")","v":"-"},{"$f":"IFERROR(N86/ED86,\"-\")","v":"-"},{"$f":"IFERROR(N86/EE86,\"-\")","v":752},null,null,null,0,{"$f":"IFERROR(N86/EN86,\"-\")","v":"-"}]
["Totals:","n.a.","n.a.","n.a.",{"$f":"SUM(E10:OFFSET(E87,-1,0))","v":74280},{"$f":"SUM(F10:OFFSET(F87,-1,0))","v":17314},{"$f":"SUM(G10:OFFSET(G87,-1,0))","v":339512},{"$f":"SUM(H10:OFFSET(H87,-1,0))","v":84175},0.24526573737529966,{"$f":"SUM(J10:OFFSET(J87,-1,0))","v":645577},{"$f":"SUM(K10:OFFSET(K87,-1,0))","v":64203},9.9450569025848201E-2,{"$f":"SUM(M10:OFFSET(M87,-1,0))","v":1059369},{"$f":"SUM(N10:OFFSET(N87,-1,0))","v":165692},0.15640631356968157,"n.a.","n.a.",{"$f":"SUM(R10:OFFSET(R87,-1,0))","v":479},{"$f":"SUM(S10:OFFSET(S87,-1,0))","v":473},{"$f":"SUM(T10:OFFSET(T87,-1,0))","v":0},350.30021141649047,1.0126849894291754,"-","n.a.","n.a.","n.a.",{"$f":"SUM(AA10:OFFSET(AA87,-1,0))","v":13901},{"$f":"SUM(AB10:OFFSET(AB87,-1,0))","v":3905},{"$f":"SUM(AC10:OFFSET(AC87,-1,0))","v":0},42.430729833546735,3.5597951344430219,"-","n.a.","n.a.","n.a.",{"$f":"SUM(AJ10:OFFSET(AJ87,-1,0))","v":77},{"$f":"SUM(AK10:OFFSET(AK87,-1,0))","v":77},{"$f":"SUM(AL10:OFFSET(AL87,-1,0))","v":77},2151.8441558441559,1,1,"n.a.","n.a.",{"$f":"SUM(AR10:OFFSET(AR87,-1,0))","v":0},{"$f":"SUM(AS10:OFFSET(AS87,-1,0))","v":10},{"$f":"SUM(AT10:OFFSET(AT87,-1,0))","v":0},16569.2,0,"-","n.a.","n.a.","n.a.",{"$f":"SUM(BA10:OFFSET(BA87,-1,0))","v":14},{"$f":"SUM(BB10:OFFSET(BB87,-1,0))","v":0},{"$f":"SUM(BC10:OFFSET(BC87,-1,0))","v":0},"-","-","-",{"$f":"SUM(BG10:OFFSET(BG87,-1,0))","v":646},{"$f":"SUM(BH10:OFFSET(BH87,-1,0))","v":0},{"$f":"SUM(BI10:OFFSET(BI87,-1,0))","v":0},"-","-","-","n.a.","n.a.","n.a.",{"$f":"SUM(BP10:OFFSET(BP87,-1,0))","v":4},{"$f":"SUM(BQ10:OFFSET(BQ87,-1,0))","v":5},{"$f":"SUM(BR10:OFFSET(BR87,-1,0))","v":4},12840.6,0.8,1.25,{"$f":"SUM(BV10:OFFSET(BV87,-1,0))","v":191},{"$f":"SUM(BW10:OFFSET(BW87,-1,0))","v":191},{"$f":"SUM(BX10:OFFSET(BX87,-1,0))","v":191},336.14136125654449,1,1,"n.a.","n.a.","n.a.",{"$f":"SUM(CE10:OFFSET(CE87,-1,0))","v":14},{"$f":"SUM(CF10:OFFSET(CF87,-1,0))","v":13},12745.538461538461,1.0769230769230769,"n.a.","n.a.",{"$f":"SUM(CK10:OFFSET(CK87,-1,0))","v":14},{"$f":"SUM(CL10:OFFSET(CL87,-1,0))","v":1},{"$f":"SUM(CM10:OFFSET(CM87,-1,0))","v":14},{"$f":"SUM(CN10:OFFSET(CN87,-1,0))","v":1},{"$f":"SUM(CO10:OFFSET(CO87,-1,0))","v":14},{"$f":"SUM(CP10:OFFSET(CP87,-1,0))","v":1},11835.142857142857,165692,1,1,1,1,"n.a.","n.a.",{"$f":"SUM(CY10:OFFSET(CY87,-1,0))","v":1474},{"$f":"SUM(CZ10:OFFSET(CZ87,-1,0))","v":1474},112.40976933514247,1,"n.a.","n.a.",{"$f":"SUM(DE10:OFFSET(DE87,-1,0))","v":14},{"$f":"SUM(DF10:OFFSET(DF87,-1,0))","v":0},{"$f":"SUM(DG10:OFFSET(DG87,-1,0))","v":0},"-","-","-","n.a.","n.a.","n.a.",{"$f":"SUM(DN10:OFFSET(DN87,-1,0))","v":0},{"$f":"SUM(DO10:OFFSET(DO87,-1,0))","v":0},{"$f":"SUM(DP10:OFFSET(DP87,-1,0))","v":0},"-","-","-",null,null,null,{"$f":"SUM(DW10:OFFSET(DW87,-1,0))","v":12},13807.666666666666,"n.a.","n.a.",{"$f":"SUM(EA10:OFFSET(EA87,-1,0))","v":77},{"$f":"SUM(EB10:OFFSET(EB87,-1,0))","v":77},{"$f":"SUM(EC10:OFFSET(EC87,-1,0))","v":25},{"$f":"SUM(ED10:OFFSET(ED87,-1,0))","v":17},{"$f":"SUM(EE10:OFFSET(EE87,-1,0))","v":77},2151.8441558441559,2151.8441558441559,6627.68,9746.5882352941171,2151.8441558441559,"n.a.","n.a.","n.a.",{"$f":"SUM(EN10:OFFSET(EN87,-1,0))","v":40},4142.3,"n.a.","n.a."]
["End of worksheet",null,null,null,null,null," "]